Workbook

Sheet Portada
B14: Herramienta de viabilidad para la valorización energética de la biomasa residual

Sheet G1 (hidden)
B2: Modelo para establecer la viabilidad técnica, ambiental, financiera y económica de proyectos replicables en diferentes sectores, municipios, regiones, con diversos tipos de residuos en Colombia
E3: Hoja 1
B5: 1 | C5: ASPECTOS GENERALES
B6: =+B5+0.1 -> 1.1 | C6: Localización del proyecto | D6: Nombre del municipio: | E6: Montería
D7: Departamento: | E7: Córdoba
D8: Vereda: | E8: Campo Alegre
B9: =+B6+0.1 -> 1.2 | C9: Coordenadas, Magna Sirgas: | D9: Origen: | E9: Bogotá
D10: Norte | E10: 1030000
D11: Este: | E11: 1001010
B12: =+B9+0.1 -> 1.3 | C12: Sitio del proyecto: | D12: Area total del predio para el proyecto, Has: | E12: 25
D13: % de utilización: | E13: 0.35
D14: Distancia a Casco Urbano, Km | E14: 10
D15: Propiedad del predio: | E15: Privado:
E18: Municipal:
E21: ESP:
D24: Topografía del terreno: | E24: Plana:
E27: Ondulada:
E30: Montañosa:
E33: Mixta:
B37: =+B5+1 -> 2 | C37: ASPECTOS AMBIENTALES
B38: =+B37+0.1 -> 2.1 | C38: Altura | D38: Altura sobre el nivel del mar, msnm: | E38: 140
B39: =+B38+0.1 -> 2.2 | C39: Aspectos climáticos | D39: Precipitación promedio anual, mm/año: | E39: 1500
D40: Temperatura media anual, oC: | E40: 30
D41: Radiación solar, Ly/año: | E41: 4.5
D42: Humedad relativa promedio anual, % | E42: 0.85
D43: Velocidad del viento promedio anual, m/s: | E43: 1.5

Sheet M1 (hidden)
B2: Cantidad de Biomasa alimentada por el usuario
B4: N | C4: Municipio | D4: Población urbana DANE 2018 | E4: Cantidad Biomasa, ton/año
E5: Pecuario | H5: Agrícola | Q5: Urbano
E6: =+'M2'!C7 -> Avícola | F6: =+'M2'!C8 -> Porcícola | G6: =+'M2'!C9 -> Bovino | H6: =+'M2'!C11 -> Arroz | I6: =+'M2'!C12 -> Banano | J6: =+'M2'!C13 -> Café Pulpa | K6: =+'M2'!C14 -> Café Mucigalo | L6: Maíz | M6: =+'M2'!C16 -> Palma de Aceite | N6: =+'M2'!C17 -> Plátano | O6: =+'M2'!C18 -> Caña de Azúcar | P6: =+'M2'!C19 -> Caña Panelera | Q6: =+'M2'!C21 -> RSU | R6: =+'M2'!C22 -> Lodos PTAR
E7: =+'M2'!D7 -> Estiércol | F7: =+'M2'!D8 -> Estiércol | G7: =+'M2'!D9 -> Estiércol | H7: =+'M2'!D11 -> Paja | I7: =+'M2'!D12 -> Fruta Rechazo | J7: =+'M2'!D13 -> Pulpa | K7: =+'M2'!D14 -> Mucilago | L7: =+'M2'!D15 -> Caña | M7: =+'M2'!D16 -> RFF | N7: =+'M2'!D17 -> Fruta Rechazo | O7: =+'M2'!D18 -> Bagazo | P7: =+'M2'!D19 -> Bagazo | Q7: =+'M2'!D21 -> RSOU | R7: =+'M2'!D22 -> Lodos
B8: 1
B9: 2
B10: 3
B11: =+B10+1 -> 4
B12: 5
B13: 6
B14: 7
B15: 8
B16: 9
B17: 10
B18: 11
B19: 12
B20: 13
B21: 14
B22: 15
B23: 16
B24: 17
B25: 18
B26: 19
C27: =IF(C8="BIOMASAS TOTALES","TOTAL","B") -> B | D27: =+SUM(D8:D26) -> 0 | E27: =+SUM(E8:E26) -> 0 | F27: =+SUM(F8:F26) -> 0 | G27: =+SUM(G8:G26) -> 0 | H27: 0 | I27: 0 | J27: 0 | K27: 0 | L27: 0 | M27: =+SUM(M8:M26) -> 0 | N27: =+SUM(N8:N26) -> 0 | O27: =+SUM(O8:O26) -> 0 | P27: =+SUM(P8:P26) -> 0 | Q27: =+SUM(Q8:Q26) -> 0 | R27: =+SUM(R8:R26) -> 0
C28: Total Biomasa: | D28: =+SUM(E27:R27) -> 0 | E28: =+E6 -> Avícola | F28: =+F6 -> Porcícola | G28: Bovino | H28: Arroz | I28: Banano | J28: Café Pulpa | K28: Café Mucigalo | L28: Maíz | M28: Palma de Aceite | N28: =+N6 -> Plátano | O28: Caña de Azúcar | P28: Caña Panelera | Q28: RSU | R28: Lodos PTAR

Sheet M2 (hidden)
B2: Cantidad de Biomasa disponible por tipo de tecnología
B4: N | C4: Sector | D4: Biomasa | E4: % MV | F4: % Humedad | G4: Tecnología mas empleada | I4: Oferta biomasa, ton/año
G5: Térmica | H5: Biológica | I5: =+G5 -> Térmica | J5: Biológica
B6: Pecuario
B7: 1 | C7: Avícola | D7: Estiércol | E7: 43 | F7: 0.6 | H7: X | J7: =+'M1'!E27 -> 0
B8: 2 | C8: Porcícola | D8: Estiércol | E8: 47 | F8: 0.7 | H8: X | J8: =+'M1'!F27 -> 0
B9: 3 | C9: Bovino | D9: Estiércol | E9: 60.5 | F9: 0.75 | H9: X | J9: =+'M1'!G27 -> 0
B10: Agrícola
B11: 4 | C11: Arroz | D11: Paja | E11: 82 | F11: 0.08 | G11: X | H11: X | I11: =+'M1'!H27 -> 0 | J11: =+I11 -> 0
B12: 5 | C12: Banano | D12: Fruta Rechazo | E12: 82 | F12: 0.94 | H12: X | J12: =+'M1'!I27 -> 0
B13: 6 | C13: Café Pulpa | D13: Pulpa | F13: 0.8 | H13: X | J13: =+'M1'!J27 -> 0
B14: 7 | C14: Café Mucigalo | D14: Mucilago | F14: 0.8 | H14: X | J14: =+'M1'!K27 -> 0
B15: 8 | C15: Maíz | D15: Caña | E15: 82 | F15: 0.08 | G15: X | H15: X | I15: =+'M1'!L27 -> 0 | J15: =+I15 -> 0
B16: 9 | C16: Palma de Aceite | D16: RFF | F16: 0.1 | G16: X | H16: X | I16: =+'M1'!M27 -> 0 | J16: =+I16 -> 0
B17: 10 | C17: Plátano | D17: Fruta Rechazo | E17: 82 | F17: 0.94 | H17: X | J17: =+'M1'!N27 -> 0
B18: 11 | C18: Caña de Azúcar | D18: Bagazo | E18: 82 | F18: 0.08 | G18: X | I18: =+'M1'!O27 -> 0
B19: 12 | C19: Caña Panelera | D19: Bagazo | E19: 82 | F19: 0.08 | G19: X | I19: =+'M1'!P27 -> 0
B20: Urbano
B21: 13 | C21: RSU | D21: RSOU | E21: 51 | F21: 0.55 | H21: X | J21: =+'M1'!Q27 -> 0
B22: 14 | C22: Lodos PTAR | D22: Lodos | F22: 0.97 | H22: X | J22: =+'M1'!R27 -> 0
C23: Suma | F23: =+(F11*I11+F15*I15+F16*I16+F18*I18+F19*I19)/I23 ->  | I23: =+SUM(I6:I22) -> 0 | J23: =+SUM(J6:J22) -> 0
B24: Fuente: Estimación potencial de conversión a Biogás de la Biomasa en Colombia y su aprovechamiento. UNAL. 2018.

Sheet M3 (hidden)
B2: Cálculo de la cantidad de energía producida por el proyecto
B4: N | C4: Sector | D4: Biomasa | E4: Tecnología mas empleada | G4: Biogás | I4: Térmico - PCI
E5: Térmica | F5: Biológica | G5: m3 biogás / Ton biomasa | H5: m3/año | I5: Kcal/Kg seco | J5: MJ/Kg seco | K5: TJ/año
B6: Pecuario
B7: 1 | C7: Avícola | D7: Estiércol | F7: X | G7: 60.00000322 | H7: =+G7*'M2'!J7 -> 0 | I7: 2946.5 | J7: =+I7/238.846 -> 12.33640086 | K7: =+J7*'M2'!I7*1000*(1-'M2'!F7)/1000000 -> 0
B8: 2 | C8: Porcícola | D8: Estiércol | F8: X | G8: 40 | H8: =+G8*'M2'!J8 -> 0 | I8: 5106 | J8: =+I8/238.846 -> 21.37779155 | K8: =+J8*'M2'!I8*1000*(1-'M2'!F8)/1000000 -> 0
B9: 3 | C9: Bovino | D9: Estiércol | F9: X | G9: 40.00003191 | H9: =+G9*'M2'!J9 -> 0 | I9: 3421.333333 | J9: 14.3244322 | K9: =+J9*'M2'!I9*1000*(1-'M2'!F9)/1000000 -> 0
B11: 4 | C11: Arroz | D11: Paja * | E11: X | F11: X | G11: 73 | H11: =+G11*'M2'!J11 -> 0 | I11: 3358 | J11: =+I11/238.846 -> 14.05926832 | K11: =+J11*'M2'!I11*1000*(1-'M2'!F11)/1000000 -> 0
B12: 5 | C12: Banano | D12: Fruta Rechazo | F12: X | G12: 4.6 | H12: =+G12*'M2'!J12 -> 0 | I12: 2109.666667 | J12: =+I12/238.846 -> 8.832748577 | K12: =+J12*'M2'!I12*1000*(1-'M2'!F12)/1000000 -> 0
B13: 6 | C13: Café Pulpa | D13: Pulpa | F13: X | G13: 24.99997296 | H13: =+G13*'M2'!J13 -> 0 | I13: 4357.666667 | J13: 18.2446709 | K13: =+J13*'M2'!I13*1000*(1-'M2'!F13)/1000000 -> 0
B14: 7 | C14: Café Mucigalo | D14: Mucilago | F14: X | G14: 74.10913806 | H14: =+G14*'M2'!J14 -> 0 | I14: 0 | J14: 0 | K14: =+J14*'M2'!I14*1000*(1-'M2'!F14)/1000000 -> 0
B15: 8 | C15: Maíz | D15: Caña ** | E15: X | F15: X | G15: 55 | H15: =+G15*'M2'!J15 -> 0 | I15: 3727 | J15: 15.60419685 | K15: =+J15*'M2'!I15*1000*(1-'M2'!F15)/1000000 -> 0
B16: 9 | C16: Palma de Aceite | D16: RFF | E16: X | F16: X | G16: 20 | H16: =+G16*'M2'!J16 -> 0 | I16: 4094.333333 | J16: 17.14214738 | K16: =+J16*'M2'!I16*1000*(1-'M2'!F16)/1000000 -> 0
B17: 10 | C17: Plátano | D17: Fruta Rechazo | F17: X | G17: 1.507962817 | H17: =+G17*'M2'!J17 -> 0 | I17: 1920 | J17: 8.038652521 | K17: =+J17*'M2'!I17*1000*(1-'M2'!F17)/1000000 -> 0
B18: 11 | C18: Caña de Azúcar | D18: Bagazo ** ** | E18: X | G18: 0.1653919104 | H18: =+G18*'M2'!J18 -> 0 | I18: 4070 | J18: 17.04026862 | K18: =+J18*'M2'!I18*1000*(1-'M2'!F18)/1000000 -> 0
B19: 12 | C19: Caña Panelera | D19: Bagazo | E19: X | G19: 0.16424396 | H19: =+G19*'M2'!J19 -> 0 | I19: 4049 | J19: 16.95234586 | K19: =+J19*'M2'!I19*1000*(1-'M2'!F19)/1000000 -> 0
B20: Urbano
B21: 13 | C21: RSU | D21: RSOU | F21: X | G21: 65.99999229 | H21: =+G21*'M2'!J21 -> 0 | I21: 3772 | J21: =+I21/238.846 -> 15.79260276 | K21: =+J21*'M2'!I21*1000*(1-'M2'!F21)/1000000 -> 0
B22: 14 | C22: Lodos PTAR ** * | D22: Lodo humedo crudo al 99% de humedad | F22: X | G22: 55 | H22: =+G22*'M2'!J22 -> 0 | I22: 8.121563703e-06 | J22: 3.40033482e-08 | K22: =+J22*'M2'!I22*1000*(1-'M2'!F22)/1000000 -> 0
C23: Total: | H23: =+SUM(H6:H22) -> 0 | K23: =+SUM(K6:K22) -> 0
B24: Fuente: Estimación potencial de conversión a Biogás de la Biomasa en Combia y su aprovechamiento. UNAL. 2018.
B25: * | C25: Estimado para un potencial de biogas es de 1.400 m3/Ha; 1 Ha produce 4,8 ton paja/Ha. La disponibilidad de paja es del 25%; la paja contiene 15% de humedad.
B26: ** | C26: Estimado para un potencial de biogás de 55 m3 biogas / ton bagazo de maiz; La cantidad de biomasa por tonelada de maiz tienen una relación aproximada de 1:1
B27: *** | C27: Estimado para la PTAR Salitre, tomando en cuenta que en año 2015 se generaron 209 m3 biogás/ton de biosólido tratado con una sequedad del 27% (Fuente: EAAB. 2015)
B28: ** ** | C28: Se producen 19,4 ton / Ha - año de bagazo con un contenido de humedad del 16%.

Sheet M4 (hidden)
B2: Carga del proyecto por tipo de tecnología
B4: N | C4: Sector | D4: Biomasa | E4: Tipo de Tecnología | G4: Carga del proyecto ton/año | J4: Biogás m3/año
E5: Térmica | F5: Biológica | G5: WTE Degradación anaeróbica | H5: WTE Incineración | I5: WTE Pirolisis | J5: =+G5 -> WTE Degradación anaeróbica
B6: Pecuario
B7: 1 | C7: Avícola | D7: Estiércol | F7: X | G7: =+'M2'!J7 -> 0 | H7: =+'M2'!I7 -> 0 | I7: =+'M2'!I7 -> 0 | J7: =+G7*'M3'!G7 -> 0
B8: 2 | C8: Porcícola | D8: Estiércol | F8: X | G8: =+'M2'!J8 -> 0 | H8: =+'M2'!I8 -> 0 | I8: =+'M2'!I8 -> 0 | J8: =+G8*'M3'!G8 -> 0
B9: 3 | C9: Bovino | D9: Estiércol | F9: X | G9: =+'M2'!J9 -> 0 | H9: =+'M2'!I9 -> 0 | I9: =+'M2'!I9 -> 0 | J9: =+G9*'M3'!G9 -> 0
B10: Agrícola
B11: 4 | C11: Arroz | D11: Paja | E11: X | F11: X | G11: =+'M2'!J11 -> 0 | H11: =+'M2'!I11 -> 0 | I11: =+'M2'!I11 -> 0 | J11: =+G11*'M3'!G11 -> 0
B12: 5 | C12: Banano | D12: Fruta Rechazo | F12: X | G12: =+'M2'!J12 -> 0 | H12: =+'M2'!I12 -> 0 | I12: =+'M2'!I12 -> 0 | J12: =+G12*'M3'!G12 -> 0
B13: 6 | C13: Café Pulpa | D13: Pulpa | F13: X | G13: =+'M2'!J13 -> 0 | H13: =+'M2'!I13 -> 0 | I13: =+'M2'!I13 -> 0 | J13: =+G13*'M3'!G13 -> 0
B14: 7 | C14: Café Mucigalo | D14: Mucilago | F14: X | G14: =+'M2'!J14 -> 0 | H14: =+'M2'!I14 -> 0 | I14: =+'M2'!I14 -> 0 | J14: =+G14*'M3'!G14 -> 0
B15: 8 | C15: Maíz | D15: Caña | E15: X | F15: X | G15: =+'M2'!J15 -> 0 | H15: =+'M2'!I15 -> 0 | I15: =+'M2'!I15 -> 0 | J15: =+G15*'M3'!G15 -> 0
B16: 9 | C16: Palma de Aceite | D16: RFF | E16: X | F16: X | G16: =+'M2'!J16 -> 0 | H16: =+'M2'!I16 -> 0 | I16: =+'M2'!I16 -> 0 | J16: =+G16*'M3'!G16 -> 0
B17: 10 | C17: Plátano | D17: Fruta Rechazo | F17: X | G17: =+'M2'!J17 -> 0 | H17: =+'M2'!I17 -> 0 | I17: =+'M2'!I17 -> 0 | J17: =+G17*'M3'!G17 -> 0
B18: 11 | C18: Caña de Azúcar | D18: Bagazo | E18: X | G18: =+'M2'!J18 -> 0 | H18: =+'M2'!I18 -> 0 | I18: =+'M2'!I18 -> 0 | J18: =+G18*'M3'!G18 -> 0
B19: 12 | C19: Caña Panelera | D19: Bagazo | E19: X | G19: =+'M2'!J19 -> 0 | H19: =+'M2'!I19 -> 0 | I19: =+'M2'!I19 -> 0 | J19: =+G19*'M3'!G19 -> 0
B20: Urbano
B21: 13 | C21: RSU | D21: RSOU | F21: X | G21: =+'M2'!J21 -> 0 | H21: =+'M2'!I21 -> 0 | I21: =+'M2'!I21 -> 0 | J21: =+G21*'M3'!G21 -> 0
B22: 14 | C22: Lodos PTAR | D22: Lodos | F22: X | G22: =+'M2'!J22 -> 0 | H22: =+'M2'!I22 -> 0 | I22: =+'M2'!I22 -> 0 | J22: =+G22*'M3'!G22 -> 0
C23: Total: | D23: ton/año: | G23: =+SUM(G6:G22) -> 0 | H23: =+SUM(H6:H22) -> 0 | I23: =+SUM(I6:I22) -> 0 | J23: =+SUM(J6:J22) -> 0
D24: ton/d | E24: (312d/año) | G24: =+G23/312 -> 0 | H24: =+H23/312 -> 0 | I24: 0 | J24: =+J23/312 -> 0
C25: Capacidad : | D25: ton/d | G25: =+ROUNDUP(G24*1.03,0) -> 0 | H25: =+ROUNDUP(H24*1.03,0) -> 0 | I25: =+ROUNDUP(I24*1.03,0) -> 0
B26: Fuente: Estimación potencial de conversión a Biogás de la Biomasa en Colombia y su aprovechamiento. UNAL. 2018.
B28: Distribución de las biomasas en la Planta
B30: N | C30: Tipo de biomasa según proceso | E30: Tecnología mas empleada | G30: Carga del proyecto ton/año | J30: Biogás m3/año
E31: Térmica | F31: Biológica | G31: Tecnología 1 | H31: Tecnología 2 | I31: Tecnología 3 | J31: =+G31 -> Tecnología 1
B33: 1 | C33: RSUO | F33: X | G33: =+G21 -> 0 | H33: =+H21 -> 0 | I33: =+I21 -> 0 | J33: =+J21 -> 0
B34: 2 | C34: Líquidas | F34: X | G34: =+G22+G9+G8+G7 -> 0 | H34: =+H22+H9+H8+H7 -> 0 | I34: =+I22+I9+I8+I7 -> 0 | J34: =+J22+J9+J8+J7 -> 0
B35: 3 | C35: Otras Biomasas sólidas | F35: X | G35: =+G23-G33-G34 -> 0 | H35: =+H23-H33-H34 -> 0 | I35: 0 | J35: 0
C36: Total: | D36: ton/año: | G36: =+SUM(G33:G35) -> 0 | H36: =+SUM(H33:H35) -> 0 | I36: 0 | J36: =+SUM(J33:J35) -> 0
D37: ton/d | E37: (312d/año) | G37: =+G36/312 -> 0 | H37: =+H36/312 -> 0 | I37: 0 | J37: 0

Sheet WTE1 (hidden)
B2: WTE Degradación anaeróbica
F3: Versión: 190117
B4: N | C4: Parámetro | D4: Unidad | E4: Valor | F4: Observación
E5: WTE Biogas
E6: =+'M4'!G25 -> 0
B7: 1 | C7: BAHÍA DESCARGUE DE RSOU
B8: =+B7+0.1 -> 1.1 | C8: Carga inicial, W: | D8: Ton/d | E8: =+'M4'!G21/312 -> 0 | F8: RSOU
B9: =+B8+0.1 -> 1.2 | C9: Densidad del material | D9: ton/m3 | E9: 0.35
B10: =+B9+0.1 -> 1.3 | C10: Capacidad báscula de pesaje | D10: tn | E10: 40 | F10: Báscula camionera
B11: =+B10+0.1 -> 1.4 | C11: Peso promedio por vehículo recolector: | D11: ton/viaje | E11: 10.5
B12: =+B11+0.1 -> 1.5 | C12: Viajes promedio entrada PT-WTE: | D12: Viajes/d | E12: =+ROUND(E8/E11,0) -> 0
D13: viajes/hr | E13: =+ROUNDUP(E12/24,0) -> 0 | F13: Ingreso las 24 H
B14: =+B12+0.1 -> 1.6 | C14: Relación viajes máximo horario / prom horario: | D14: viajes/viajes | E14: 3.5 | F14: Estimado con base en diagrama frecuencias en Relleno sanitario
B15: =+B14+0.1 -> 1.7 | C15: Viajes máximo entrada PT-WTE (hora pico): | D15: viajes/hr | E15: =+ROUNDUP(E12*E14/24,0) -> 0
B16: =+B15+0.1 -> 1.8 | C16: Tiempo total en la bahía de descarga (tiempo de servicio): | D16: min/vehículo | E16: 8 | F16: Número de vehículos que se pueden atender en una unidad de servicio
D17: veh/hr | E17: =+ROUNDUP(60/E16,0) -> 8
B18: =+B16+0.1 -> 1.9 | C18: Número de unidades de servicio: | D18: Und | E18: =+ROUNDUP(E15/E17,0)+1 -> 1 | F18: Bahías de descarga
B19: =+B8 -> 1.1 | C19: Ancho unitario área de descargue, a: | D19: m/veh | E19: 3.5
B20: =+B19+0.01 -> 1.11 | C20: Separación entre vehículos: | D20: m | E20: 1
B21: =+B20+0.01 -> 1.12 | C21: Total ancho bahía de descarga, A: | D21: m | E21: =+E18*(E19+E20) -> 4.5 | F21: RSOU
B23: N | C23: Parámetro | D23: Unidad | E23: Valor | F23: Observación
E24: =+E43 -> 0
B25: =+B7+1 -> 2 | C25: BAHÍA DESCARGUE DE LAS OTRAS BIOMASAS SOLIDAS
B26: =+B25+0.1 -> 2.1 | C26: Carga inicial, W: | D26: Ton/d | E26: =+E24-E45 -> 0 | F26: Material orgánico en bolsas plásticas
B27: =+B26+0.1 -> 2.2 | C27: Densidad del material | D27: ton/m3 | E27: 0.35
B28: =+B27+0.1 -> 2.3 | C28: Peso promedio por vehículo recolector: | D28: ton/viaje | E28: 12.5 | F28: Vehículos recolectores otras biomasas
B29: =+B28+0.1 -> 2.4 | C29: Viajes promedio entrada PT-WTE: | D29: Viajes/d | E29: =+ROUND(E26/E28,0) -> 0
D30: viajes/hr | E30: =+ROUNDUP(E29/24,0) -> 0 | F30: Ingreso las 24 H
B31: =+B29+0.1 -> 2.5 | C31: Viajes promedio diario por vehículo: | D31: viajes/d-v | E31: 5
B32: =+B31+0.1 -> 2.6 | C32: Número de vehículos requeridos: | E32: =+ROUND(E29/E31,0) -> 0 | F32: Vehículos recolectores otras biomasas
B33: =+B32+0.1 -> 2.7 | C33: Relación viajes máximo horario / prom horario: | D33: viajes/viajes | E33: 3.5 | F33: Estimado con base en diagrama frecuencias en Relleno sanitario
B34: =+B33+0.1 -> 2.8 | C34: Viajes máximo entrada PT-WTE (hora pico): | D34: viajes/hr | E34: =+ROUNDUP(E29*E33/24,0) -> 0
B35: =+B34+0.1 -> 2.9 | C35: Tiempo total en la bahía de descarga (tiempo de servicio): | D35: min/vehículo | E35: 8 | F35: Número de vehículos que se pueden atender en una unidad de servicio
D36: veh/hr | E36: =+ROUNDUP(60/E35,0) -> 8
B37: =+B26 -> 2.1 | C37: Número de unidades de servicio: | D37: Und | E37: =+ROUNDUP(E34/E36,0)+1 -> 1 | F37: Bahías de descarga
B38: =+B37+0.01 -> 2.11 | C38: Ancho unitario área de descargue, a: | D38: m/veh | E38: 3.5
B39: =+B38+0.01 -> 2.12 | C39: Separación entre vehículos: | D39: m | E39: 1
B40: =+B39+0.01 -> 2.13 | C40: Total ancho bahía de descarga, A: | D40: m | E40: =+E37*(E38+E39) -> 4.5 | F40: Otras Biomasas
B42: N | C42: Parámetro | D42: Unidad | E42: Valor | F42: Observación
E43: =+E6 -> 0
B44: =+B25+1 -> 3 | C44: FOSO DE RSOU
B45: =+B44+0.1 -> 3.1 | C45: Carga de trabajo: | D45: Ton/d | E45: =+E8 -> 0
B46: =+B45+0.1 -> 3.2 | C46: Retención: | D46: días | E46: 1
B47: 3.3 | C47: Volumen: | D47: m3 | E47: =+E45/E9 -> 0
B48: 3.4 | C48: Profundidad: | D48: m | E48: 3.5
B49: 3.5 | C49: Area: | D49: m2 | E49: =+E47/E48 -> 0
B50: 3.6 | C50: Ancho medio: | D50: m | E50: =+E49/E21 -> 0
B51: 3.7 | C51: Contenido de humedad inicial: | D51: % | E51: 0.75
B52: 3.8 | C52: Contenido de humedad final: | D52: % | E52: 0.7
B53: 3.9 | C53: Cantidad de lixiviados: | D53: m3/d | E53: =+(E51-E52)*E8 -> 0 | F53: Lixiviado a enviar al tanque homogenizador
B55: N | C55: Parámetro | D55: Unidad | E55: Valor | F55: Observación
E56: =+E24 -> 0
B57: =+B44+1 -> 4 | C57: FOSO DE OTRAS BIOMASAS SOLIDAS
B58: =+B57+0.1 -> 4.1 | C58: Carga de trabajo: | D58: Ton/d | E58: =+E26 -> 0 | F58: Otras biomasas
B59: =+B58+0.1 -> 4.2 | C59: Retención: | D59: días | E59: 1
B60: 4.3 | C60: Volumen: | D60: m3 | E60: =+E58/E27 -> 0
B61: 4.4 | C61: Profundidad: | D61: m | E61: 0
B62: 4.5 | C62: Area: | D62: m2 | E62: 0
B63: 4.6 | C63: Ancho medio: | D63: m | E63: 0
B64: 4.7 | C64: Contenido de humedad inicial: | D64: % | E64: 0.75
B65: 4.8 | C65: Contenido de humedad final: | D65: % | E65: 0.7
B66: 4.9 | C66: Cantidad de lixiviados: | D66: m3/d | E66: =+(E64-E65)*E26 -> 0 | F66: Lixiviado a enviar al tanque homogenizador
B68: N | C68: Parámetro | D68: Unidad | E68: Valor | F68: Observación
E69: =+E56 -> 0
B70: =+B57+1 -> 5 | C70: TRITURACIÓN OTRAS BIOMASAS + CARGUE AL HOMOGENIZADOR
B71: =+B70+0.1 -> 5.1 | C71: Carga: | D71: ton/d | E71: =+'M4'!G17/312 -> 0 | F71: Residuos de plátano
D72: ton/hr | E72: =+E71/18 -> 0
B73: =+B71+0.1 -> 5.2 | C73: Rendimiento trituradora otras biomasas | D73: ton/hr | E73: 20 | F73: Capacidad requerida del equipo
B74: =+B73+0.1 -> 5.3 | C74: Número de trituradoras otras biomasas | D74: Und | E74: =+ROUNDUP(E72/E73,0) -> 0
B75: 5.4 | C75: Tornillo sin fin para cargue: | D75: mL | E75: =+E74*30 -> 0 | F75: Cargue a tanque homogenizador
B77: N | C77: Parámetro | D77: Unidad | E77: Valor | F77: Observación
E78: =+E43 -> 0
B79: =+B70+1 -> 6 | C79: ROMPEDORAS DE BOLSAS DE RSOU
B80: =+B79+0.1 -> 6.1 | C80: Carga: | D80: ton/d | E80: =+E45-E53 -> 0
D81: m3/d | E81: =+E80/E9 -> 0
D82: ton/hr | E82: =+E80/18 -> 0 | F82: Para 18 horas/d
B83: =+B80+0.1 -> 6.2 | C83: Rendimiento rompedora de bolsas: | D83: ton/hr | E83: 30
B84: =+B83+0.1 -> 6.3 | C84: Equipo rompedora de bolsas: | D84: Und | E84: =+ROUNDUP(E82/E83,0) -> 0
B85: =+B84+0.1 -> 6.4 | C85: Contenido de humedad final: | D85: % | E85: 0.65
B86: 6.5 | C86: Cantidad de lixiviados: | D86: m3/d | E86: =+(E52-E85)*E80 -> 0 | F86: Lixiviado a enviar al tanque homogenizador
B88: N | C88: Parámetro | D88: Unidad | E88: Valor | F88: Observación
E89: =+E78 -> 0
B90: =+B79+1 -> 7 | C90: SEPARACIÓN MAGNÉTICA RSOU
B91: =+B90+0.1 -> 7.1 | C91: Carga de trabajo: | D91: ton/d | E91: =+E80-E86 -> 0
D92: ton/hr | E92: =+E82 -> 0 | F92: Para 18 horas/d
B93: =+B91+0.1 -> 7.2 | C93: Rendimiento rompedora de separador magnético: | D93: ton/hr | E93: =+E83 -> 30
B94: =+B93+0.1 -> 7.3 | C94: % Metales: | D94: % | E94: 0.01
B95: =+B94+0.1 -> 7.4 | C95: Cantidad de metal de rechazo: | D95: Ton/d | E95: =+E91*E94 -> 0 | F95: Material de rechazo
B97: N | C97: Parámetro | D97: Unidad | E97: Valor | F97: Observación
E98: =+E89 -> 0
B99: =+B90+1 -> 8 | C99: CLASIFICACION MANUAL EN BANDA HORIZONTAL RSOU
B100: =+B99+0.1 -> 8.1 | C100: Carga: | D100: ton/d | E100: =+E91-E95 -> 0
B101: =+B100+0.1 -> 8.2 | C101: Rendimiento por persona | D101: ton/d-p | E101: 7 | F101: Para 8 horas/día
B102: 8.3 | C102: Número de personas requeridas | D102: Und | E102: =+ROUNDUP(E91/E101,0) -> 0
B103: 8.4 | C103: Longitud de la banda | D103: m | E103: =+ROUNDUP(E102*0.75,0) -> 0
B104: 8.5 | C104: % material de rechazo: | D104: % | E104: 0.05
B105: 8.6 | C105: Cantidad de material de rechazo: | D105: Ton/d | E105: =+E104*E8 -> 0
B106: 8.7 | C106: Densidad de bolsas compactado, potencia enfardado 100 HP: | D106: ton/m3 | E106: 0.35
B107: 8.8 | C107: Volumen de enfardado: | D107: m3/d | E107: =+E105/E106 -> 0
B108: 8.9 | C108: Rendimiento enfardadora: | D108: m3/hr | E108: 4 | F108: Para 8 horas/día
B109: =+B100 -> 8.1 | C109: Número de enfardadoras de rechazo: | D109: Und | E109: =+ROUND(E107/E108/8,0) -> 0 | F109: Para 8 horas/día
B110: =+B109+0.01 -> 8.11 | C110: Número de fardos | D110: Und/d | E110: =+ROUNDUP(E107,) -> 0
B111: =+B110+0.01 -> 8.12 | C111: Tiempo de almacenamiento | D111: días | E111: 3
B112: 8.13 | C112: Niveles de fardos: | D112: Und | E112: 3
B113: 8.14 | C113: Area Almacén fardos: | D113: m2 | E113: =+E110*1.35 -> 0
B115: N | C115: Parámetro | D115: Unidad | E115: Valor | F115: Observación
E116: =+E98 -> 0
B117: =+B99+1 -> 9 | C117: TRITURACIÓN DE ORGÁNICOS RSOU
B118: =+B117+0.1 -> 9.1 | C118: Carga: | D118: ton/d | E118: =+E100-E105 -> 0
D119: ton/hr | E119: =+E118/18 -> 0
B120: =+B118+0.1 -> 9.2 | C120: Rendimiento trituradora de orgánicos: | D120: ton/hr | E120: 30 | F120: Capacidad requerida del equipo
B121: =+B120+0.1 -> 9.3 | C121: Número de trituradoras de orgánicos: | D121: Und | E121: =+ROUNDUP(E119/E120,0) -> 0
B122: 9.4 | C122: Contenido de humedad final: | D122: % | E122: 0.6
B124: N | C124: Parámetro | D124: Unidad | E124: Valor | F124: Observación
E125: =+E116 -> 0
B126: =+B117+1 -> 10 | C126: HOMOGENIZACIÓN BIOMASAS (RSOU + OTRAS BIOMASAS)
B127: =+B126+0.1 -> 10.1 | C127: Carga: | D127: ton/d | E127: =+E118+E58 -> 0 | F127: RSUO + VERDES
D128: m3/d | E128: =+E127/E9 -> 0
B129: =+B127+0.1 -> 10.2 | C129: Contenido de Humedad inicial: | D129: % | E129: =+E122 -> 0.6
D130: ton/d | E130: =+E127*E129 -> 0 | F130: Contenido de agua en la biomasa
B131: =+B129+0.1 -> 10.3 | C131: Carga seco: | D131: ton/d | E131: =+E127-E130 -> 0
B132: =+B131+0.1 -> 10.4 | C132: Contenido de Humedad en el Homogenizador: | D132: % | E132: 0.95 | F132: Humedad de diseño
B133: =+B132+0.1 -> 10.5 | C133: Densidad del sustrato en el homogenizador: | D133: ton/m3 | E133: 1
B134: =+B133+0.1 -> 10.6 | C134: Aporte lixiviados pretratamiento: | D134: m3/d | E134: =+E53+E86+E66 -> 0 | F134: Lixiviados recolectados en pretratamiento
B135: 10.7 | C135: Adición de agua de mezcla: | D135: m3/d | E135: =+E127*1.7 -> 0 | F135: Cantidad de agua requerida para alcanzar humedad de diseño en el Homogenizador
B136: =+B135+0.1 -> 10.8 | C136: Cantidad de agua total en la mezcla: | D136: m3/d | E136: =+E135+E130+E134 -> 0
B137: =+B136+0.1 -> 10.9 | C137: Volumen diario de mezcla en el homogenizador: | D137: m3/d | E137: =+E136+E128 -> 0
B138: =+B127 -> 10.1 | C138: Tiempo retención homogenizador: | D138: días | E138: 3
B139: =+B138+0.01 -> 10.11 | C139: Volumen Tanque Homogenizador: | D139: m3 | E139: =+E137*E138 -> 0
B140: =+B139+0.01 -> 10.12 | C140: Volumen 1 TQ Homogenizador | D140: m3 | E140: 20000
B141: 10.13 | C141: Número de TQs Homogenizador | D141: Unidad | E141: =+ROUNDUP(E139/E140,0) -> 0
B143: N | C143: Parámetro | D143: Unidad | E143: Valor | F143: Observación
E144: =+E125 -> 0
B145: =+B126+1 -> 11 | C145: DIGESTION ANAERÓBICA (RSOU + OTRAS BIOMASAS)
B146: =+B145+0.1 -> 11.1 | C146: Carga: | D146: ton/d | E146: =+E127 -> 0 | F146: Peso húmedo
D147: m3/d | E147: 0
B148: =+B146+0.1 -> 11.2 | C148: Temperatura de trabajo: | D148: oC | E148: 35 | F148: Para operación en rango Mesofílico
B149: =+B148+0.1 -> 11.3 | C149: Tiempo de retención: | D149: días | E149: 27 | F149: Para operación en rango Mesofílico
B150: =+B149+0.1 -> 11.4 | C150: Volumen de digestor: | D150: m3 | E150: =+E137*E149 -> 0
B151: =+B150+0.1 -> 11.5 | C151: Diametro reactor: | D151: m | E151: 50
B152: 11.6 | C152: Area reactor: | D152: m2 | E152: =3.1516*(E151/2)^2 -> 1969.75
B153: 11.7 | C153: Altura reactor: | D153: m | E153: 25
B154: =+B153+0.1 -> 11.8 | C154: Volumen 1 Reactor: | D154: m3 | E154: =+ROUNDUP(E153*E152,0) -> 49244
D155: m3 | E155: 50000
B156: =+B154+0.1 -> 11.9 | C156: Número de Reactores: | D156: Unidad | E156: =+ROUNDUP(E150/E155,0) -> 0
B158: N | C158: Parámetro | D158: Unidad | E158: Valor | F158: Observación
E159: =+E144 -> 0
B160: =+B145+1 -> 12 | C160: PRODUCCION DE ENERGÍA
B161: =+B160+0.1 -> 12.1 | C161: Cantidad Biomasa: | D161: ton/d | E161: =+E127 -> 0 | F161: Peso húmedo
D162: m3/d | E162: =+E161/E9 -> 0
B163: =+B161+0.1 -> 12.2 | C163: Tasa de generación: | D163: m3/ton rs | E163: =+E164/E161 ->  | F163: Rango típico 60 a 150 m3 biogas / ton rs
B164: =+B163+0.1 -> 12.3 | C164: Generación biogás: | D164: m3/d | E164: =+'M4'!J23/312 -> 0 | F164: % CH4, 65 %
D165: m3/hr | E165: =+E164/24 -> 0 | F165: 24 horas
D166: m3/min | E166: =+E165/60 -> 0 | F166: 25 horas
B167: =+B164+0.1 -> 12.4 | C167: Poder calorífico inferior biogás: | D167: kW/m3 CH4 | E167: 5
B168: =+B167+0.1 -> 12.5 | C168: % CH4 biogás | D168: % | E168: 0.65 | F168: Contenido de metano en el Biogás
B169: 12.6 | C169: Rendimiento térmico: | D169: % | E169: 0.35
B170: 12.7 | C170: Potencial disponible: | D170: kWh | E170: =E169*E167*E168*E165 -> 0
B171: 12.8 | C171: Factor de disponibilidad: | E171: 0.85
B172: 12.9 | C172: Electricidad generada: | D172: KWh/día | E172: =+E170*E171*24 -> 0
B173: =+B161 -> 12.1 | C173: Rendimiento de la biomasa seca: | D173: MW/ton | E173: =+E172*0.001/E161 ->  | F173: Rendimiento en generación eléctrica (Rango típico es de 0,05 a 0,30 MW/ton)
B174: =+B173+0.01 -> 12.11 | C174: Potencia del equipo: | D174: kW | E174: =+ROUNDUP(E170*1.03,0) -> 0 | F174: Capacidad Equipo de generación eléctrica
D175: MW | E175: =+ROUND(E174/1000,1) -> 0
B177: N | C177: Parámetro | D177: Unidad | E177: Valor | F177: Observación
E178: =+E159 -> 0
B179: =+B160+1 -> 13 | C179: MANEJO DEL DIGESTATO
B180: =+B179+0.1 -> 13.1 | C180: Fracción de digestato: | D180: % | E180: 0.97
B181: =+B180+0.1 -> 13.2 | C181: Producción de digestato: | D181: m3/d | E181: =+E180*E137*0.25 -> 0
D182: ton/d | E182: =+E181 -> 0
B183: =+B181+0.1 -> 13.3 | C183: Contenido de Humedad inicial: | D183: % | E183: 0.95
D184: ton/d | E184: =+E181*E183 -> 0
B185: =+B183+0.1 -> 13.4 | C185: Solidos secos: | D185: ton/d | E185: =+(1-E183)*E182 -> 0
B186: =+B185+0.1 -> 13.5 | C186: Tiempo de retención: | D186: días | E186: 3
B187: =+B186+0.1 -> 13.6 | C187: Volumen del reactor de digestato: | D187: m3 | E187: =+E181*E186 -> 0
B188: 13.7 | C188: Contenido de humedad final para tratamiento final: | D188: % | E188: 0.35
B189: 13.8 | C189: Cantidad de agua producida residual: | D189: m3/d | E189: =+(E183-E188)*E182 -> 0 | F189: Agua residual orgánica a recircular al homogenizador
B190: 13.9 | C190: Densidad de digestato deshidratado: | D190: ton/m3 | E190: 0.6
B191: =+B180 -> 13.1 | C191: Cantidad de digestato deshidratado: | D191: ton/d | E191: =+E182-E189 -> 0 | F191: Con humedad del 35%
D192: m3/d | E192: =+E191/E190 -> 0
B194: N | C194: Parámetro | D194: Unidad | E194: Valor | F194: Observación
E195: =+E178 -> 0
B196: =+B179+1 -> 14 | C196: VARIOS
B197: 14.1 | C197: Número de personas | D197: Personas | E197: =ROUNDUP((+E198+E199+E200),0) -> 0
B198: 14.2 | C198: Pretratamiento de residuos | D198: Personas | E198: =ROUND(+E102*1.2,0) -> 0
B199: 14.3 | C199: Valoración energética | D199: Personas | E199: =45*E174/1000 -> 0
B200: 14.4 | C200: Recolección biomasas | D200: Personas | E200: =+E32 -> 0 | F200: Otras biomasas (sin RSOU)

Sheet WTE2 (hidden)
B2: WTE Incineración y pirolisis
F3: =+'WTE1'!F3 -> Versión: 190117
B4: N | C4: Parámetro | D4: Unidad | E4: Valor | F4: Observación
E5: =+'M4'!H25 -> 0
B6: 1 | C6: BAHÍA DESCARGUE
B7: =+B6+0.1 -> 1.1 | C7: Carga inicial, W: | D7: Ton/d | E7: =+E5 -> 0 | F7: Material orgánico en bolsas plásticas
B8: =+B7+0.1 -> 1.2 | C8: Densidad del material | D8: ton/m3 | E8: 0.25
B9: =+B8+0.1 -> 1.3 | C9: Peso promedio por vehículo recolector: | D9: ton/viaje | E9: 12.5 | F9: Vehículos recolectores biomasas
B10: =+B9+0.1 -> 1.4 | C10: Viajes promedio entrada PT-WTE: | D10: Viajes/d | E10: =+ROUND(E7/E9,0) -> 0
D11: viajes/hr | E11: =+ROUNDUP(E10/24,0) -> 0 | F11: Ingreso las 24 H
B12: =+B10+0.1 -> 1.5 | C12: Viajes promedio diario por vehículo: | D12: viajes/d-v | E12: 5
B13: =+B12+0.1 -> 1.6 | C13: Número de vehículos requeridos: | E13: =+ROUND(E10/E12,0) -> 0 | F13: Vehículos recolectores biomasas
B14: =+B13+0.1 -> 1.7 | C14: Relación viajes máximo horario / prom horario: | D14: viajes/viajes | E14: 3.5 | F14: Estimado con base en diagrama frecuencias en Relleno sanitario
B15: =+B14+0.1 -> 1.8 | C15: Viajes máximo entrada PT-WTE (hora pico): | D15: viajes/hr | E15: =+ROUNDUP(E10*E14/24,0) -> 0
B16: =+B15+0.1 -> 1.9 | C16: Tiempo total en la bahía de descarga (tiempo de servicio): | D16: min/vehículo | E16: 8 | F16: Número de vehículos que se pueden atender en una unidad de servicio
D17: veh/hr | E17: =+ROUNDUP(60/E16,0) -> 8
B18: =+B7 -> 1.1 | C18: Número de unidades de servicio: | D18: Und | E18: =+ROUNDUP(E15/E17,0)+1 -> 1 | F18: Bahías de descarga
B19: =+B18+0.01 -> 1.11 | C19: Ancho unitario área de descargue, a: | D19: m/veh | E19: 3.5
B20: =+B19+0.01 -> 1.12 | C20: Separación entre vehículos: | D20: m | E20: 1
B21: =+B20+0.01 -> 1.13 | C21: Total ancho bahía de descarga, A: | D21: m | E21: =+E18*(E19+E20) -> 4.5
B23: N | C23: Parámetro | D23: Unidad | E23: Valor | F23: Observación
E24: =+E5 -> 0
B25: =+B6+1 -> 2 | C25: FOSO DE DESCARGUE
B26: =+B25+0.1 -> 2.1 | C26: Carga de trabajo: | D26: Ton/d | E26: =+E7 -> 0 | F26: Otras biomasas
B27: =+B26+0.1 -> 2.2 | C27: Retención: | D27: días | E27: 1
B28: 2.3 | C28: Volumen: | D28: m3 | E28: =+E26/E8 -> 0
B29: 2.4 | C29: Profundidad: | D29: m | E29: 3.5
B30: 2.5 | C30: Area: | D30: m2 | E30: =+E28/E29 -> 0
B31: 2.6 | C31: Grua tipo pulpo | D31: Und | E31: 1 | F31: Para cargue de la tolva alimentadora
B33: N | C33: Parámetro | D33: Unidad | E33: Valor | F33: Observación
E34: =+E26 -> 0
B35: =+B25+1 -> 3 | C35: UNIDAD DE INCINERACIÓN
B36: =+B35+0.1 -> 3.1 | C36: Carga: | D36: ton/d | E36: =+E34 -> 0 | F36: Biomasas mezcladas
D37: m3/d | E37: =+E36/E8 -> 0 | F37: El corazón del incinerador térmico es una flama estabilizada por medio de una boquilla, mantenida por una combinación de combustible auxiliar, compuestos del gas residual y aire auxiliar que es agregado cuando es necesario.
B38: =+B36+0.1 -> 3.2 | C38: Contenido de Humedad inicial: | D38: % | E38: 0.15
D39: ton/d | E39: =+E36*E38 -> 0 | F39: Contenido de agua en la biomasa
B40: =+B38+0.1 -> 3.3 | C40: Carga seco: | D40: ton/d | E40: =+E36-E39 -> 0
B41: =+B40+0.1 -> 3.4 | C41: Tolva de cargue:
C42: Tiempo de retención: | D42: hr | E42: 0.1666666667
C43: Carga: | D43: ton/hr | E43: =+E36/18 -> 0 | F43: 18 horas de operación
D44: m3/hr | E44: =+E43/E8 -> 0
C45: Capacidad: | D45: m3 | E45: =+E44*E42*1.5 -> 0 | F45: Capacidad requerida, con factor de seguridad de 1,5
B46: =+B41+0.1 -> 3.5 | C46: Banda transportadora | F46: Requiere motor trifásico con variador de frecuencia
C47: Ancho: | D47: m | E47: 1.5
C48: Longitud: | D48: m | E48: 30
B49: =+B46+0.1 -> 3.6 | C49: Horno
C50: Tipo | E50: Parrilla
C51: Cámaras | D51: Und | E51: 3 | F51: Precalentamiento, combustión y postcombustión
C52: Temperatura cámara combustión: | D52: oC | E52: 1200
C53: Temperatura cámara de postcombustión: | D53: oC | E53: 850
C54: Tiempo retención de gases en postcombustión: | D54: sg | E54: 2 | F54: Permite eliminar dioxinas y furanos
C55: Escorea de horno | D55: % | E55: 0.15
D56: ton/d | E56: =+E55*E36 -> 0
B57: =+B49+0.1 -> 3.7 | C57: Tratamiento de gases
C58: Electrofiltro | D58: Und | E58: 1
C59: Torre de enfriamiento | D59: Und | E59: 1
C60: Filtro de mangas | D60: Und | E60: 1
C61: Cenizas de tratamiento | D61: % | E61: 0.07
D62: ton/d | E62: =+E61*E36 -> 0
B63: =+B57+0.1 -> 3.8 | C63: Total residuos | D63: ton/d | E63: =+E62+E56 -> 0 | F63: Escorea + Cenizas a disponer en relleno sanitario
B65: N | C65: Parámetro | D65: Unidad | E65: Valor | F65: Observación
E66: =+E34 -> 0
B67: =+B35+1 -> 4 | C67: UNIDAD DE GENERACIÓN ELÉCTRICA
B68: =+B67+0.1 -> 4.1 | C68: Carga humeda: | D68: ton/d | E68: =+'M2'!I23/312 -> 0
B69: =+B68+0.1 -> 4.2 | C69: Carga seca: | D69: ton/d | E69: =+E68*(1-E70) -> 
B70: =+B69+0.1 -> 4.3 | C70: Contenido de humedad: | D70: % | E70: =+'M2'!F23 ->  | F70: Humedad promedio de la Biomasa
B71: =+B70+0.1 -> 4.4 | C71: Potencial energético: | D71: TJ/año | E71: =+'M3'!K23 -> 0
D72: MWh/año | E72: =+E71/D86 -> 0
D73: MJ/kg seco | E73: =+E71*1000000/(E69*1000*312) -> 
B74: =+B71+0.1 -> 4.5 | C74: Efiencia energética: | D74: % | E74: 0.22 | F74: Electricidad + Calor
B75: =+B74+0.1 -> 4.6 | C75: Electricidad generada: | D75: MWh/año | E75: =+E72*E74*0.3 -> 0 | F75: Electricidad (El 30% de la energía corresponde a eléctrica y el 70% a calor)
B76: 4.7 | C76: Factor de disponibilidad: | E76: 0.85
B77: 4.8 | C77: Potencia requerida: | D77: MW | E77: =+ROUNDUP(E75/(312*24*E76),0) -> 0
B78: 4.9 | C78: Rendimiento biomasa seca: | D78: MWh/ton | E78: =+E75/(E69*312) ->  | F78: Rendimiento en generación eléctrica (Rango típico es de 0,3 a 1,00 MW/ton rs seco)
B79: =+B68 -> 4.1 | C79: Caldera | F79: Los gases calientes que vienen de la cámara de post-combustión, se hacen pasar por una caldera recuperadora de calor tipo acuotubular, para así, generar vapor sobrecalentado, llevarlo a una turbina y Generar potencia eléctrica.
C80: Consumo específico de Vapor | D80: kg/kWh | E80: 5 | F80: Cantidad de vapor necesario para generar potencia eléctrica en las turbinas,
C81: Intercambiadores de calor | F81: Tipo placa a placa
B82: =+B79+0.1 -> 4.2 | C82: Turbina de vapor | F82: Turbina de alta presión. Las turbinas son las encargadas en transformar la energía térmica del fluido, en energía mecánica,
C83: Potencia de la turbina | D83: KW/ ton-d | E83: 0.02
D84: KW | E84: =ROUND(+E83*E69,0) -> 
B85: =+B82+0.1 -> 4.3 | C85: Condensador | D85: Und | E85: 1 | F85: Condensa el vapor húmedo que sale de la turbina para obtener agua líquida saturada, que será la que recojan las bombas para impulsarlas hacia el regenerador o caldera.
C86: MWH | D86: 0.0036 | E86: TJ

Sheet Salida datos tecnicos (hidden)
B3: HOJA DE SALIDA DE DATOS TÉCNICOS
B5: Tecnología: WTE Degradacion anaeróbica
B6: n | C6: Parámetro | D6: Valor | E6: Unidad
B8: 1 | C8: Capacidad de la planta: | D8: =+'WTE1'!E6 -> 0 | E8: ton/d
B9: 2 | C9: Capacidad para RSUO: | D9: =+'WTE1'!E8 -> 0 | E9: ton/d
B10: 3 | C10: Capacidad para otras biomasas: | D10: =+D8-D9 -> 0 | E10: ton/d
B11: =+B10+1 -> 4 | C11: Area total de la planta: | D11: =+Costos!I6 -> 0 | E11: Has
B12: =+B11+1 -> 5 | C12: Cantidad de biogás producida: | D12: =+'WTE1'!E164 -> 0 | E12: m3/d
B13: 6 | C13: % metano en el Biogás | D13: 0.65 | E13: %
B14: 7 | C14: Electricidad generada: | D14: =+'WTE1'!E172*3655 -> 0 | E14: kWh/año
B15: 8 | C15: Cantidad de digestato generado: | D15: =+'WTE1'!E182 -> 0 | E15: ton/d
B16: 9 | C16: Bonos de carbón: | D16: =+Ingresos!E15 -> 0 | E16: Ton CO2e /año
B18: Tecnología: WTE Incineración
B19: n | C19: Parámetro | D19: Valor | E19: Unidad
B21: 1 | C21: Capacidad de la planta: | D21: =+'WTE2'!E5 -> 0 | E21: ton/d
B22: 2 | C22: Capacidad para RSUO: | D22: 0 | E22: ton/d
B23: 3 | C23: Capacidad para otras biomasas: | D23: =+D21-D22 -> 0 | E23: ton/d
B24: =+B23+1 -> 4 | C24: Area total de la planta: | D24: =+Costos!I7 -> 0 | E24: Has
B25: =+B24+1 -> 5 | C25: Potencial energético: | D25: =+'M3'!K23 -> 0 | E25: Tj/año
B26: 6 | C26: Electricidad generada: | D26: =+Ingresos!E25/0.85 -> 0 | E26: kWh/año
B27: 7 | C27: Cantidad de cenizas y escoreas: | D27: =+'WTE2'!E63 -> 0 | E27: ton/d
B28: 8 | C28: Bonos de carbón: | D28: =+Ingresos!E27 -> 0 | E28: Ton CO2e /año
B30: Tecnología: WTE Pirólisis
B31: n | C31: Parámetro | D31: Valor | E31: Unidad
B33: 1 | C33: Capacidad de la planta: | D33: =+D21 -> 0 | E33: ton/d
B34: 2 | C34: Capacidad para RSUO: | D34: 0 | E34: ton/d
B35: 3 | C35: Capacidad para otras biomasas: | D35: =+D33-D34 -> 0 | E35: ton/d
B36: =+B35+1 -> 4 | C36: Area total de la planta: | D36: =+Costos!I8 -> 0 | E36: Has
B37: =+B36+1 -> 5 | C37: Potencial energético: | D37: =+D25 -> 0 | E37: Tj/año
B38: 6 | C38: Electricidad generada: | D38: =+Ingresos!E38/0.5 -> 0 | E38: kWh/año
B39: 7 | C39: Aceite pirolítico | D39: =+Ingresos!E42 -> 0 | E39: ton/año
B40: 8 | C40: Bonos de carbón: | D40: =+Ingresos!E40 -> 0 | E40: Ton CO2e /año

Sheet Costos (hidden)
B2: Costos de inversión y operación
B4: N | C4: Parámetro | D4: Tecnología | E4: Unidad | F4: Capacidad | G4: Curva de area | I4: Valor
G5: a | H5: m | I5: Valor | J5: Unidad
B6: =+B5+1 -> 1 | C6: Predio | D6: WTE degradación anaeróbica | E6: ton/d | F6: =+'M4'!G25 -> 0 | G6: 0.67 | H6: 0.0013 | I6: =++IF(F6=0,0,G6+H6*F6) -> 0 | J6: Has
D7: WTE incineración | E7: ton/d | F7: =+'M4'!H25 -> 0 | G7: =+G6*0.75 -> 0.5025 | H7: =+H6 -> 0.0013 | I7: =++IF(F$7=0,0,G7+H7*F7) -> 0 | J7: Has
D8: WTE Pirólisis | E8: ton/d | F8: =+'M4'!I25 -> 0 | G8: =+G7*0.98 -> 0.49245 | H8: =+H7*1.1 -> 0.00143 | I8: =++IF(F$8=0,0,G8+H8*F8) -> 0 | J8: Has
B10: N | C10: Parámetro | D10: Tecnología | E10: Capacidad | F10: Valor | G10: Curva de area | I10: Valor
G11: a | H11: m | I11: Valor | J11: Unidad
B12: 1 | C12: COSTOS DE INVERSIÓN
B13: =+B12+0.1 -> 1.1 | C13: Predio | D13: WTE degradación anaeróbica | E13: Has | F13: =+I6 -> 0 | I13: =+IF(F$6=0,0,F13*100000) -> 0 | J13: Mil $
D14: WTE incineración | F14: =+I7 -> 0 | I14: =++IF(F$7=0,0,F14*100000) -> 0 | J14: Mil $
D15: WTE Pirólisis | F15: =+I8 -> 0 | I15: =++IF(F$8=0,0,F15*100000) -> 0 | J15: Mil $
B16: =+B13+0.1 -> 1.2 | C16: Estudios y diseños | D16: WTE degradación anaeróbica | E16: ton/d | F16: =+F6 -> 0 | G16: 664135 | H16: 116.99 | I16: =++IF(F$6=0,0,G16+H16*F16) -> 0 | J16: Mil $
D17: WTE incineración | F17: =+F7 -> 0 | G17: =+G16*1.1 -> 730548.5 | H17: =+H16 -> 116.99 | I17: =++IF($F$7=0,0,G17+H17*F17) -> 0 | J17: Mil $
D18: WTE Pirólisis | F18: =+F8 -> 0 | G18: =+G17*1.1 -> 803603.35 | H18: =+H17 -> 116.99 | I18: =++IF(F$8=0,0,(G18+H18*F18)) -> 0 | J18: Mil $
B19: =+B16+0.1 -> 1.3 | C19: Preliminares | D19: WTE degradación anaeróbica | E19: =+E13 -> Has | F19: =+F13 -> 0 | G19: 18574 | H19: 16049 | I19: =++IF(F$6=0,0,(G19+H19*F19)) -> 0 | J19: Mil $
D20: WTE incineración | F20: =+F14 -> 0 | G20: =18574*1.1 -> 20431.4 | H20: 16049 | I20: =++IF(F$7=0,0,(G20+H20*F20)) -> 0 | J20: Mil $
D21: WTE Pirólisis | F21: 0 | G21: =18574*1.1 -> 20431.4 | H21: 16049 | I21: =++IF(F$8=0,0,(G21+H21*F21)) -> 0 | J21: Mil $
B22: =+B19+0.1 -> 1.4 | C22: Obras generales | D22: WTE degradación anaeróbica | E22: =+E19 -> Has | F22: =+F19 -> 0 | G22: 701087 | H22: 355478 | I22: =++IF(F$6=0,0,(G22+H22*F22)) -> 0 | J22: Mil $
D23: WTE incineración | F23: =+F20 -> 0 | G23: =701087*1.2 -> 841304.4 | H23: 355478 | I23: =++IF(F$7=0,0,(G23+H23*F23)) -> 0 | J23: Mil $
D24: WTE Pirólisis | F24: 0 | G24: =701087*1.2 -> 841304.4 | H24: 355478 | I24: =++IF(F$8=0,0,(G24+H24*F24)) -> 0 | J24: Mil $
B25: =+B22+0.1 -> 1.5 | C25: Edificaciones | D25: WTE degradación anaeróbica | E25: =+E22 -> Has | F25: 0 | G25: 2626800 | H25: 308772 | I25: =IF(F$6=0,0,(G25+H25*F25)) -> 0 | J25: Mil $
D26: WTE incineración | F26: 0 | G26: =485715 -> 485715 | H26: 308772 | I26: =++IF(F$7=0,0,(G26+H26*F26)) -> 0 | J26: Mil $
D27: WTE Pirólisis | F27: 0 | G27: =+G26*1.05 -> 510000.75 | H27: 308772 | I27: =++IF(F$8=0,0,(G27+H27*F27)) -> 0 | J27: Mil $
B28: =+B25+0.1 -> 1.6 | C28: Equipos pretratamiento RSU | D28: WTE degradación anaeróbica | E28: ton/d | F28: =+'M4'!G21/312 -> 0 | G28: 26398 | H28: 0.6157 | I28: =++IF(F$6=0,0,+G28*F28^H28) -> 0 | J28: Mil $
D29: WTE incineración | E29: ton/d | F29: =+F28 -> 0 | G29: =+G28 -> 26398 | H29: 0.6157 | I29: =++IF(F$7=0,0,G29*F29^H29) -> 0 | J29: Mil $
D30: WTE Pirólisis | E30: ton/d | F30: =+F29 -> 0 | G30: =+G29 -> 26398 | H30: 0.6157 | I30: =+++IF(F$8=0,0,G30*F30^H30) -> 0 | J30: Mil $
B31: =+B28+0.1 -> 1.7 | C31: Equipos pretratamiento otras biomasas | D31: WTE degradación anaeróbica | E31: ton/d | F31: =+F6-F28 -> 0 | G31: 7569 | H31: 0.9429 | I31: =++IF(F6=0,0,G31*F31^H31) -> 0 | J31: Mil $
D32: WTE incineración | E32: ton/d | F32: =+F31 -> 0 | G32: =+G31 -> 7569 | H32: 0.9429 | I32: =++IF(F$7=0,0,G32*F32^H32) -> 0 | J32: Mil $
D33: WTE Pirólisis | E33: ton/d | F33: =+F32 -> 0 | G33: =+G32 -> 7569 | H33: 0.9429 | I33: =++IF(F$8=0,0,G33*F33^H33) -> 0 | J33: Mil $
B34: =+B31+0.1 -> 1.8 | C34: Valoración energética | D34: WTE degradación anaeróbica | E34: ton/d | F34: =+F16 -> 0 | G34: 55705 | H34: 0.8808 | I34: =++IF(F$6=0,0,G34*F34^H34) -> 0 | J34: Mil $
D35: WTE incineración | E35: ton/d | F35: =+F17 -> 0 | G35: 289684 | H35: -1.101 | I35: =++IF(F$7=0,0,(G35*F35^H35)*F35*1000) -> 0 | J35: Mil $
D36: WTE Pirólisis | E36: ton/d | F36: =+F35 -> 0 | G36: 8042 | H36: -0.768 | I36: =++IF(F$8=0,0,(G36*F36^H36)*F36*1000) -> 0 | J36: Mil $
B37: =+B12+1 -> 2 | C37: COSTOS DE OPERACIÓN
B38: =+B37+0.1 -> 2.1 | C38: Aspectos generales | D38: WTE degradación anaeróbica | E38: ton/d | F38: =+F34 -> 0 | G38: -548847 | H38: 1382.4 | I38: =++IF(F$6=0,0,(G38+H38*F38)) -> 0 | J38: Mil $/año
D39: WTE incineración | E39: ton/d | F39: =+F35 -> 0 | G39: -548847 | H39: 1382.4 | I39: =++IF(F$7=0,0,(G39+H39*F39)) -> 0 | J39: Mil $/año
D40: WTE Pirólisis | E40: ton/d | F40: 0 | G40: -548847 | H40: 1382.4 | I40: =++IF(F$8=0,0,(G40+H40*F40)) -> 0 | J40: Mil $/año
B41: =+B38+0.1 -> 2.2 | C41: Personal | D41: WTE degradación anaeróbica | E41: ton/d | F41: =+F38 -> 0 | G41: 4487400 | H41: 2727.5 | I41: =++IF(F$6=0,0,(G41+H41*F41)) -> 0 | J41: Mil $/año
D42: WTE incineración | E42: ton/d | F42: =+F39 -> 0 | G42: 4487400 | H42: 2727.5 | I42: =++IF(F$7=0,0,(G42+H42*F42)) -> 0 | J42: Mil $/año
D43: WTE Pirólisis | E43: ton/d | F43: 0 | G43: 4487400 | H43: 2727.5 | I43: =++IF(F$8=0,0,(G43+H43*F43)) -> 0 | J43: Mil $/año
B44: =+B41+0.1 -> 2.3 | C44: Valoración energética | D44: WTE degradación anaeróbica | E44: ton/d | F44: 0 | G44: 9444 | H44: 0.7391 | I44: =++IF(F$6=0,0,G44*F44^H44) -> 0 | J44: Mil $/año
D45: WTE incineración | E45: ton/d | F45: 0 | G45: 269290 | H45: -1.107 | I45: =++IF(F$7=0,0,(G45*F45^H45)*F45*312) -> 0 | J45: Mil $/año
D46: WTE Pirólisis | E46: ton/d | F46: 0 | G46: 4812.7 | H46: -0.427 | I46: =++IF(F$8=0,0,(G46*F46^H46)*F46*312) -> 0 | J46: Mil $/año
B47: =+B44+0.1 -> 2.4 | C47: Gestión ambiental | D47: WTE degradación anaeróbica | E47: ton/d | F47: 0 | I47: =++IF(F$6=0,0,25000) -> 0 | J47: Mil $/año
D48: WTE incineración | E48: ton/d | F48: 0 | I48: =++IF(F$7=0,0,25000) -> 0 | J48: Mil $/año
D49: WTE Pirólisis | E49: ton/d | F49: 0 | I49: =++IF(F$8=0,0,25000) -> 0 | J49: Mil $/año

Sheet Ingresos (hidden)
B2: Ingresos Anuales
C4: WTE Degradación anaeróbica
B5: N | C5: Concepto | D5: Unidad | E5: Cantidad anual | F5: V. Unitario Mil $ | G5: Subtotal, Mil $/año | H5: % Participación
E6: =Costos!F66 -> 0 | G6: =+E6 -> 0 | H6: =+G6 -> 0
B7: 1 | C7: INGRESOS | G7: =+SUM(G8:G16) -> 0
B8: =+B7+0.1 -> 1.1 | C8: Servicio de tratamiento de RSOU: | D8: ton/año | E8: =+'M2'!J21 -> 0 | F8: 35 | G8: =+E8*$F$8 -> 0 | H8: =+G8/$G$7 -> 
B9: =+B10+0.1 -> 1.3 | C9: Servicio de tratamiento lodos crudos de PTAR: | D9: m3/año | E9: =+'M4'!G22 -> 0 | F9: 20 | G9: =+E9*F9 -> 0 | H9: =+G9/$G$7 -> 
B10: =+B8+0.1 -> 1.2 | C10: Servicio de tratamiento otras biomasas: | D10: ton/año | E10: =+'M2'!J23-E8-E9 -> 0 | F10: 10 | G10: =+E10*$F$10 -> 0
B11: =+B10+0.1 -> 1.3 | C11: Venta materiales metálicos: | D11: ton/año | E11: =+'WTE1'!E95*365 -> 0 | F11: 0.5 | G11: =+E11*F11 -> 0
B12: =+B11+0.1 -> 1.4 | C12: Venta de materiales plásticos: | D12: Glob | E12: =+'WTE1'!E105*0.75*365 -> 0 | F12: 0.1 | G12: =+E12*F12 -> 0
B13: 1.5 | C13: Venta energía eléctrica: | D13: kWh/año | E13: =+'WTE1'!E172*365*0.9 -> 0 | F13: 0.18 | G13: =+E13*F13 -> 0
B14: 1.6 | C14: Mejorador de suelos (digestato): | D14: ton/año | E14: =+'WTE1'!E191*0.2*312 -> 0 | F14: 100 | G14: =+E14*F14 -> 0
B15: 1.7 | C15: Bonos de carbón: | D15: Ton CO2e /año | E15: =+E13*0.37/1000/0.9 -> 0 | F15: 15 | G15: =+E15*F15 -> 0
C17: WTE Incineración
B18: N | C18: Concepto | D18: Unidad | E18: Cantidad anual | F18: V. Unitario Mil $ | G18: Subtotal, Mil $ | H18: % Participación
E19: =+'WTE2'!E5 -> 0 | G19: =+E19 -> 0 | H19: =+G19 -> 0
B20: =+B7+1 -> 2 | C20: INGRESOS | G20: =+SUM(G21:G29) -> 0
B21: =+B20+0.1 -> 2.1 | C21: Servicio de tratamiento de RSOU | D21: ton/año | E21: 0 | F21: =+F8 -> 35 | G21: =+E21*$F$8 -> 0 | H21: =+G21/$G$20 -> 
B22: =+B21+0.1 -> 2.2 | C22: Servicio de tratamiento otras biomasas: | D22: ton/año | E22: =+'M2'!I23 -> 0 | F22: =+F10 -> 10 | G22: =+E22*$F$10 -> 0
B23: =+B22+0.1 -> 2.3 | C23: Venta materiales metalicos: | D23: ton/año | E23: 0 | F23: 0.5 | G23: =+E23*F23 -> 0
B24: 2.4 | C24: Venta de materiales plásticos: | D24: Glob | E24: 0 | F24: 0.1 | G24: 0
B25: 2.5 | C25: Venta energía eléctrica: | D25: kWh/año | E25: =+'WTE2'!E75*1000*0.85 -> 0 | F25: 0.18 | G25: 0
B26: 2.6 | C26: Mejorador de suelos (digestato): | D26: ton/año | E26: =+'WTE1'!E204*0.2*312 -> 0 | F26: 100 | G26: 0
B27: 2.7 | C27: Bonos de carbón: | D27: Ton CO2e /año | E27: =+E25*0.37/1000/0.85 -> 0 | F27: 15 | G27: 0
B28: 2.8 | C28: Energía como calor: | D28: =+D25 -> kWh/año | E28: =+E25*0.7*0.1/0.3 -> 0 | F28: =+F25*0.5 -> 0.09 | G28: 0
C30: WTE pirolisis
B31: N | C31: Concepto | D31: Unidad | E31: Cantidad anual | F31: V. Unitario Mil $ | G31: Subtotal, Mil $ | H31: % Participación
E32: =+E19 -> 0 | G32: =+E32 -> 0 | H32: =+G32 -> 0
B33: =+B20+1 -> 3 | C33: INGRESOS | G33: =+SUM(G34:G43) -> 0
B34: =+B33+0.1 -> 3.1 | C34: Servicio de tratamiento de RSOU: | D34: ton/año | E34: 0 | F34: =+F21 -> 35 | G34: =+E34*$F$8 -> 0 | H34: =+G34/$G$33 -> 
B35: =+B34+0.1 -> 3.2 | C35: Servicio de tratamiento otras biomasas: | D35: ton/año | E35: =+E22 -> 0 | F35: =+F22 -> 10 | G35: =+E35*$F$10 -> 0
B36: =+B35+0.1 -> 3.3 | C36: Venta materiales metalicos: | D36: ton/año | E36: 0 | F36: 0.5 | G36: =+E36*F36 -> 0
B37: 3.4 | C37: Venta de materiales plásticos: | D37: Glob | E37: 0 | F37: 0.1 | G37: 0
B38: 3.5 | C38: =+C25 -> Venta energía eléctrica: | D38: kWh/año | E38: =1.12*E35*1000*0.5 -> 0 | F38: 0.18 | G38: 0
B39: 3.6 | C39: Mejorador de suelos (Digestato): | D39: ton/año | E39: =+'WTE1'!E217*0.2*312 -> 0 | F39: 100 | G39: 0
B40: 3.7 | C40: Bonos de carbón: | D40: Ton CO2e /año | E40: =+E38*0.37/1000/0.85 -> 0 | F40: 15 | G40: 0
B41: 3.8 | C41: Energía como calor: | D41: =+D38 -> kWh/año | E41: =+E38*0.7*0.1/0.3 -> 0 | F41: =F28 -> 0.09 | G41: 0
B42: 3.9 | C42: Aceite Pirolítico: | D42: =+D39 -> ton/año | E42: =+E35*0.25 -> 0 | F42: =700*2.7/1000 -> 1.89 | G42: 0

Sheet 6 (hidden)
B2: WTE Degradación anaeróbica
B4: N | C4: Concepto | D4: Año, Miles $Col
D5: 0 | E5: =+D5+1 -> 1 | F5: =+E5+1 -> 2 | G5: 3 | H5: 4 | I5: 5 | J5: 6 | K5: 7 | L5: 8 | M5: 9 | N5: 10 | O5: 11 | P5: 12 | Q5: 13 | R5: 14 | S5: 15 | T5: 16 | U5: 17 | V5: =+U5+1 -> 18 | W5: =+V5+1 -> 19 | X5: =+W5+1 -> 20
B6: 1 | C6: PREINVERSIONES
B7: =+B6+0.1 -> 1.1 | C7: Estudios y diseños | D7: =+Costos!I16 -> 0
B8: =+B7+0.1 -> 1.2 | C8: Predio | D8: =+Costos!I13 -> 0
B10: =+B6+1 -> 2 | C10: OBRAS CIVILES
B11: =+B10+0.1 -> 2.1 | C11: Preliminares | D11: =+Costos!I19 -> 0
B12: 2.2 | C12: Obras Generales | D12: =+Costos!I22 -> 0
B13: 2.3 | C13: Edificaciones | D13: =+Costos!I25 -> 0
B14: 2.4 | C14: Equipos pretratamiento RSUO | D14: =+Costos!I28 -> 0
B15: 2.5 | C15: Equipos pretratamiento otras biomasas | D15: =+Costos!I31 -> 0
B16: =+B14+0.1 -> 2.5 | C16: Obras y equipos para valoración energética | D16: =+Costos!I34 -> 0
B18: =+B10+1 -> 3 | C18: OPERACIÓN Y MANTENIMIENTO
B19: =+B18+0.1 -> 3.1 | C19: Aspectos generales | E19: =+Costos!I38 -> 0 | F19: =+E19 -> 0 | G19: =+F19 -> 0 | H19: 0 | I19: 0 | J19: 0 | K19: 0 | L19: 0 | M19: 0 | N19: 0 | O19: 0 | P19: 0 | Q19: 0 | R19: 0 | S19: 0 | T19: 0 | U19: 0 | V19: 0 | W19: 0 | X19: 0
B20: =+B19+0.1 -> 3.2 | C20: Personal | E20: =+Costos!I41 -> 0 | F20: =+E20 -> 0 | G20: =+F20 -> 0 | H20: 0 | I20: 0 | J20: 0 | K20: 0 | L20: 0 | M20: 0 | N20: 0 | O20: 0 | P20: 0 | Q20: 0 | R20: 0 | S20: 0 | T20: 0 | U20: 0 | V20: 0 | W20: 0 | X20: 0
B21: 3.3 | C21: Valoración energética | E21: =+Costos!I44 -> 0 | F21: =+E21 -> 0 | G21: =+F21 -> 0 | H21: 0 | I21: 0 | J21: 0 | K21: 0 | L21: 0 | M21: 0 | N21: 0 | O21: 0 | P21: 0 | Q21: 0 | R21: 0 | S21: 0 | T21: 0 | U21: 0 | V21: 0 | W21: 0 | X21: 0
B22: 3.4 | C22: Varios | E22: =+Costos!I47 -> 0 | F22: =+E22 -> 0 | G22: =+F22 -> 0 | H22: 0 | I22: 0 | J22: 0 | K22: 0 | L22: 0 | M22: 0 | N22: 0 | O22: 0 | P22: 0 | Q22: 0 | R22: 0 | S22: 0 | T22: 0 | U22: 0 | V22: 0 | W22: 0 | X22: 0
B23: 3.5 | C23: Reposición equipos | K23: =+D16*0.23 -> 0 | R23: =+K23 -> 0
C24: SUMA (Milles $) | D24: =+SUM(D6:D23) -> 0 | E24: =+SUM(E6:E23) -> 0 | F24: 0 | G24: 0 | H24: 0 | I24: 0 | J24: 0 | K24: 0 | L24: 0 | M24: 0 | N24: 0 | O24: 0 | P24: 0 | Q24: 0 | R24: 0 | S24: 0 | T24: 0 | U24: 0 | V24: 0 | W24: 0 | X24: 0
C25: Suma (USD) | D25: =+D24*1000/$D$40 -> 0 | E25: 0 | F25: 0 | G25: 0 | H25: 0 | I25: 0 | J25: 0 | K25: 0 | L25: 0 | M25: 0 | N25: 0 | O25: 0 | P25: 0 | Q25: 0 | R25: 0 | S25: 0 | T25: 0 | U25: 0 | V25: 0 | W25: 0 | X25: 0
B27: =+B18+1 -> 4 | C27: INGRESOS
B28: =+B27+0.1 -> 4.1 | C28: =+Ingresos!C8 -> Servicio de tratamiento de RSOU: | E28: =+Ingresos!G8 -> 0 | F28: =+E28 -> 0 | G28: =+F28 -> 0 | H28: 0 | I28: 0 | J28: 0 | K28: 0 | L28: 0 | M28: 0 | N28: 0 | O28: 0 | P28: 0 | Q28: 0 | R28: 0 | S28: 0 | T28: 0 | U28: 0 | V28: 0 | W28: 0 | X28: 0
B29: =+B28+0.1 -> 4.2 | C29: =+Ingresos!C9 -> Servicio de tratamiento lodos crudos de PTAR: | E29: =+Ingresos!G9 -> 0 | F29: =+E29 -> 0 | G29: =+F29 -> 0 | H29: 0 | I29: 0 | J29: 0 | K29: 0 | L29: 0 | M29: 0 | N29: 0 | O29: 0 | P29: 0 | Q29: 0 | R29: 0 | S29: 0 | T29: 0 | U29: 0 | V29: 0 | W29: 0 | X29: 0
B30: =+B29+0.1 -> 4.3 | C30: =+Ingresos!C10 -> Servicio de tratamiento otras biomasas: | E30: =+Ingresos!G10 -> 0 | F30: =+E30 -> 0 | G30: =+F30 -> 0 | H30: =+G30 -> 0 | I30: =+H30 -> 0 | J30: =+I30 -> 0 | K30: =+J30 -> 0 | L30: =+K30 -> 0 | M30: =+L30 -> 0 | N30: =+M30 -> 0 | O30: =+N30 -> 0 | P30: =+O30 -> 0 | Q30: =+P30 -> 0 | R30: =+Q30 -> 0 | S30: =+R30 -> 0 | T30: =+S30 -> 0 | U30: =+T30 -> 0 | V30: =+U30 -> 0 | W30: =+V30 -> 0 | X30: =+W30 -> 0
B31: =+B30+0.1 -> 4.4 | C31: =+Ingresos!C11 -> Venta materiales metálicos: | E31: =+Ingresos!G11 -> 0 | F31: 0 | G31: =+F31 -> 0 | H31: 0 | I31: 0 | J31: 0 | K31: 0 | L31: 0 | M31: 0 | N31: 0 | O31: 0 | P31: 0 | Q31: 0 | R31: 0 | S31: 0 | T31: 0 | U31: 0 | V31: 0 | W31: 0 | X31: 0
B32: =+B31+0.1 -> 4.5 | C32: =+Ingresos!C12 -> Venta de materiales plásticos: | E32: =+Ingresos!G12 -> 0 | F32: 0 | G32: =+F32 -> 0 | H32: 0 | I32: 0 | J32: 0 | K32: 0 | L32: 0 | M32: 0 | N32: 0 | O32: 0 | P32: 0 | Q32: 0 | R32: 0 | S32: 0 | T32: 0 | U32: 0 | V32: 0 | W32: 0 | X32: 0
B33: 4.6 | C33: =+Ingresos!C13 -> Venta energía eléctrica: | E33: =+Ingresos!G13 -> 0 | F33: 0 | G33: =+F33 -> 0 | H33: 0 | I33: 0 | J33: 0 | K33: 0 | L33: 0 | M33: 0 | N33: 0 | O33: 0 | P33: 0 | Q33: 0 | R33: 0 | S33: 0 | T33: 0 | U33: 0 | V33: 0 | W33: 0 | X33: 0
B34: 4.7 | C34: =+Ingresos!C14 -> Mejorador de suelos (digestato): | E34: =+Ingresos!G14 -> 0 | F34: =+E34 -> 0 | G34: =+F34 -> 0 | H34: =+G34 -> 0 | I34: =+H34 -> 0 | J34: =+I34 -> 0 | K34: =+J34 -> 0 | L34: =+K34 -> 0 | M34: =+L34 -> 0 | N34: =+M34 -> 0 | O34: =+N34 -> 0 | P34: =+O34 -> 0 | Q34: =+P34 -> 0 | R34: =+Q34 -> 0 | S34: =+R34 -> 0 | T34: =+S34 -> 0 | U34: =+T34 -> 0 | V34: =+U34 -> 0 | W34: =+V34 -> 0 | X34: =+W34 -> 0
B35: 4.8 | C35: =+Ingresos!C15 -> Bonos de carbón: | E35: =+Ingresos!G15 -> 0 | F35: 0 | G35: 0 | H35: 0 | I35: 0 | J35: 0 | K35: 0 | L35: 0 | M35: 0 | N35: 0 | O35: 0 | P35: 0 | Q35: 0 | R35: 0 | S35: 0 | T35: 0 | U35: 0 | V35: 0 | W35: 0 | X35: 0
C37: SUMA (Milles $) | E37: =+SUM(E28:E36) -> 0 | F37: =+SUM(F28:F36) -> 0 | G37: =+SUM(G28:G36) -> 0 | H37: =+SUM(H28:H36) -> 0 | I37: 0 | J37: 0 | K37: 0 | L37: 0 | M37: 0 | N37: 0 | O37: 0 | P37: =+SUM(P28:P36) -> 0 | Q37: 0 | R37: 0 | S37: 0 | T37: 0 | U37: 0 | V37: 0 | W37: 0 | X37: 0
C38: Suma (USD) | E38: =+E37*1000/$D$40 -> 0 | F38: 0 | G38: 0 | H38: 0 | I38: 0 | J38: 0 | K38: 0 | L38: 0 | M38: 0 | N38: 0 | O38: 0 | P38: 0 | Q38: 0 | R38: 0 | S38: 0 | T38: 0 | U38: 0 | V38: 0 | W38: 0 | X38: 0
C40: Dólar | D40: 2900 | E40: $Col / USD

Sheet 7 (hidden)
B2: WTE Incineración
B4: N | C4: Concepto | D4: Año, Miles $Col
D5: 0 | E5: =+D5+1 -> 1 | F5: =+E5+1 -> 2 | G5: 3 | H5: 4 | I5: 5 | J5: 6 | K5: 7 | L5: 8 | M5: 9 | N5: 10 | O5: 11 | P5: 12 | Q5: 13 | R5: 14 | S5: 15 | T5: 16 | U5: 17 | V5: 18 | W5: 19 | X5: 20
B6: 1 | C6: PREINVERSIONES
B7: =+B6+0.1 -> 1.1 | C7: Estudios y diseños | D7: =+Costos!I17 -> 0
B8: =+B7+0.1 -> 1.2 | C8: Predio | D8: =+Costos!I14 -> 0
B10: =+B6+1 -> 2 | C10: OBRAS CIVILES
B11: =+B10+0.1 -> 2.1 | C11: =+'6'!C11 -> Preliminares | D11: =+Costos!I20 -> 0
B12: 2.2 | C12: =+'6'!C12 -> Obras Generales | D12: =+Costos!I23 -> 0
B13: 2.3 | C13: =+'6'!C13 -> Edificaciones | D13: =+Costos!I26 -> 0
B14: 2.4 | C14: =+'6'!C14 -> Equipos pretratamiento RSUO | D14: =+Costos!I29 -> 0
B15: 2.5 | C15: =+'6'!C15 -> Equipos pretratamiento otras biomasas | D15: =+Costos!I32 -> 0
B16: =+B14+0.1 -> 2.5 | C16: =+'6'!C16 -> Obras y equipos para valoración energética | D16: =+Costos!I35 -> 0
B18: =+B10+1 -> 3 | C18: OPERACIÓN Y MANTENIMIENTO
B19: =+B18+0.1 -> 3.1 | C19: Aspectos generales | E19: =+Costos!I39 -> 0 | F19: =+E19 -> 0 | G19: =+F19 -> 0 | H19: 0 | I19: 0 | J19: 0 | K19: 0 | L19: 0 | M19: 0 | N19: 0 | O19: 0 | P19: 0 | Q19: 0 | R19: 0 | S19: 0 | T19: 0 | U19: 0 | V19: 0 | W19: 0 | X19: 0
B20: =+B19+0.1 -> 3.2 | C20: Personal | E20: =+Costos!I42 -> 0 | F20: =+E20 -> 0 | G20: =+F20 -> 0 | H20: 0 | I20: 0 | J20: 0 | K20: 0 | L20: 0 | M20: 0 | N20: 0 | O20: 0 | P20: 0 | Q20: 0 | R20: 0 | S20: 0 | T20: 0 | U20: 0 | V20: 0 | W20: 0 | X20: 0
B21: 3.3 | C21: Valoración energética | E21: =+Costos!I45 -> 0 | F21: =+E21 -> 0 | G21: =+F21 -> 0 | H21: 0 | I21: 0 | J21: 0 | K21: 0 | L21: 0 | M21: 0 | N21: 0 | O21: 0 | P21: 0 | Q21: 0 | R21: 0 | S21: 0 | T21: 0 | U21: 0 | V21: 0 | W21: 0 | X21: 0
B22: 3.4 | C22: Varios | E22: =+Costos!I48 -> 0 | F22: =+E22 -> 0 | G22: =+F22 -> 0 | H22: 0 | I22: 0 | J22: 0 | K22: 0 | L22: 0 | M22: 0 | N22: 0 | O22: 0 | P22: 0 | Q22: 0 | R22: 0 | S22: 0 | T22: 0 | U22: 0 | V22: 0 | W22: 0 | X22: 0
B23: 3.5 | C23: Reposición equipos | K23: =+D16*0.23 -> 0 | R23: =+K23 -> 0
C24: SUMA (Milles $) | D24: =+SUM(D6:D23) -> 0 | E24: 0 | F24: 0 | G24: 0 | H24: 0 | I24: 0 | J24: 0 | K24: 0 | L24: 0 | M24: 0 | N24: 0 | O24: 0 | P24: 0 | Q24: 0 | R24: 0 | S24: 0 | T24: 0 | U24: 0 | V24: 0 | W24: 0 | X24: 0
C25: Suma (USD) | D25: =+D24*1000/$D$40 -> 0 | E25: =+E24*1000/$D$40 -> 0 | F25: 0 | G25: 0 | H25: 0 | I25: 0 | J25: 0 | K25: 0 | L25: 0 | M25: 0 | N25: 0 | O25: 0 | P25: 0 | Q25: 0 | R25: 0 | S25: 0 | T25: 0 | U25: 0 | V25: 0 | W25: 0 | X25: 0
B27: =+B18+1 -> 4 | C27: INGRESOS
B28: =+B27+0.1 -> 4.1 | C28: =+Ingresos!C21 -> Servicio de tratamiento de RSOU | E28: =+Ingresos!G21 -> 0 | F28: =+E28 -> 0 | G28: =+F28 -> 0 | H28: 0 | I28: 0 | J28: 0 | K28: 0 | L28: 0 | M28: 0 | N28: 0 | O28: 0 | P28: 0 | Q28: 0 | R28: 0 | S28: 0 | T28: 0 | U28: 0 | V28: 0 | W28: 0 | X28: 0
B29: =+B28+0.1 -> 4.2 | C29: =+Ingresos!C22 -> Servicio de tratamiento otras biomasas: | E29: =+Ingresos!G22 -> 0 | F29: =+E29 -> 0 | G29: =+F29 -> 0 | H29: =+G29 -> 0 | I29: =+H29 -> 0 | J29: =+I29 -> 0 | K29: =+J29 -> 0 | L29: =+K29 -> 0 | M29: =+L29 -> 0 | N29: =+M29 -> 0 | O29: =+N29 -> 0 | P29: =+O29 -> 0 | Q29: =+P29 -> 0 | R29: =+Q29 -> 0 | S29: =+R29 -> 0 | T29: =+S29 -> 0 | U29: =+T29 -> 0 | V29: =+U29 -> 0 | W29: =+V29 -> 0 | X29: =+W29 -> 0
B30: 4.3 | C30: =+Ingresos!C23 -> Venta materiales metalicos: | E30: =+Ingresos!G23 -> 0 | F30: 0 | G30: 0 | H30: 0 | I30: 0 | J30: 0 | K30: 0 | L30: 0 | M30: 0 | N30: 0 | O30: 0 | P30: 0 | Q30: 0 | R30: 0 | S30: 0 | T30: 0 | U30: 0 | V30: 0 | W30: 0 | X30: 0
B31: =+B30+0.1 -> 4.4 | C31: =+Ingresos!C24 -> Venta de materiales plásticos: | E31: =+Ingresos!G24 -> 0 | F31: 0 | G31: 0 | H31: 0 | I31: 0 | J31: 0 | K31: 0 | L31: 0 | M31: 0 | N31: 0 | O31: 0 | P31: 0 | Q31: 0 | R31: 0 | S31: 0 | T31: 0 | U31: 0 | V31: 0 | W31: 0 | X31: 0
B32: 4.5 | C32: =+Ingresos!C25 -> Venta energía eléctrica: | E32: =+Ingresos!G25 -> 0 | F32: 0 | G32: 0 | H32: 0 | I32: 0 | J32: 0 | K32: 0 | L32: 0 | M32: 0 | N32: 0 | O32: 0 | P32: 0 | Q32: 0 | R32: 0 | S32: 0 | T32: 0 | U32: 0 | V32: 0 | W32: 0 | X32: 0
B33: 4.6 | C33: =+Ingresos!C26 -> Mejorador de suelos (digestato): | E33: =+Ingresos!G26 -> 0 | F33: =+E33 -> 0 | G33: =+F33 -> 0 | H33: =+G33 -> 0 | I33: =+H33 -> 0 | J33: =+I33 -> 0 | K33: =+J33 -> 0 | L33: =+K33 -> 0 | M33: =+L33 -> 0 | N33: =+M33 -> 0 | O33: =+N33 -> 0 | P33: =+O33 -> 0 | Q33: =+P33 -> 0 | R33: =+Q33 -> 0 | S33: =+R33 -> 0 | T33: =+S33 -> 0 | U33: =+T33 -> 0 | V33: =+U33 -> 0 | W33: =+V33 -> 0 | X33: =+W33 -> 0
B34: 4.7 | C34: =+Ingresos!C27 -> Bonos de carbón: | E34: =+Ingresos!G27 -> 0 | F34: 0 | G34: 0 | H34: 0 | I34: 0 | J34: 0 | K34: 0 | L34: 0 | M34: 0 | N34: 0 | O34: 0 | P34: 0 | Q34: 0 | R34: 0 | S34: 0 | T34: 0 | U34: 0 | V34: 0 | W34: 0 | X34: 0
B35: 4.8 | C35: =+Ingresos!C28 -> Energía como calor: | E35: =+Ingresos!G28 -> 0 | F35: 0 | G35: 0 | H35: 0 | I35: 0 | J35: 0 | K35: 0 | L35: 0 | M35: 0 | N35: 0 | O35: 0 | P35: 0 | Q35: 0 | R35: 0 | S35: 0 | T35: 0 | U35: 0 | V35: 0 | W35: 0 | X35: 0
C37: SUMA (Milles $) | E37: =+SUM(E28:E35) -> 0 | F37: =+SUM(F28:F35) -> 0 | G37: 0 | H37: 0 | I37: 0 | J37: 0 | K37: 0 | L37: 0 | M37: 0 | N37: 0 | O37: 0 | P37: =+SUM(P28:P35) -> 0 | Q37: 0 | R37: 0 | S37: 0 | T37: 0 | U37: 0 | V37: 0 | W37: 0 | X37: 0
C38: Suma (USD) | E38: =+E37*1000/$D$40 -> 0 | F38: =+F37*1000/$D$40 -> 0 | G38: 0 | H38: 0 | I38: 0 | J38: 0 | K38: 0 | L38: 0 | M38: 0 | N38: 0 | O38: =+O37*1000/$D$40 -> 0 | P38: =+P37*1000/$D$40 -> 0 | Q38: =+Q37*1000/$D$40 -> 0 | R38: =+R37*1000/$D$40 -> 0 | S38: =+S37*1000/$D$40 -> 0 | T38: =+T37*1000/$D$40 -> 0 | U38: =+U37*1000/$D$40 -> 0 | V38: =+V37*1000/$D$40 -> 0 | W38: =+W37*1000/$D$40 -> 0 | X38: =+X37*1000/$D$40 -> 0
C40: Dólar | D40: =+'6'!D40 -> 2900 | E40: $Col / USD

Sheet 8 (hidden)
B2: WTE Pirolisis
B4: N | C4: Concepto | D4: Año, Miles $Col
D5: 0 | E5: =+D5+1 -> 1 | F5: =+E5+1 -> 2 | G5: 3 | H5: 4 | I5: 5 | J5: 6 | K5: 7 | L5: 8 | M5: 9 | N5: 10 | O5: 11 | P5: 12 | Q5: 13 | R5: 14 | S5: 15 | T5: 16 | U5: 17 | V5: 18 | W5: 19 | X5: 20
B6: 1 | C6: PREINVERSIONES
B7: =+B6+0.1 -> 1.1 | C7: Estudios y diseños | D7: =+Costos!I18 -> 0
B8: =+B7+0.1 -> 1.2 | C8: Predio | D8: =+Costos!I15 -> 0
B10: =+B6+1 -> 2 | C10: OBRAS CIVILES
B11: =+B10+0.1 -> 2.1 | C11: =+'6'!C11 -> Preliminares | D11: =+Costos!I21 -> 0
B12: 2.2 | C12: =+'6'!C12 -> Obras Generales | D12: =+Costos!I24 -> 0
B13: 2.3 | C13: =+'6'!C13 -> Edificaciones | D13: =+Costos!I27 -> 0
B14: 2.4 | C14: =+'6'!C14 -> Equipos pretratamiento RSUO | D14: =+Costos!I30 -> 0
B15: 2.5 | C15: =+'6'!C15 -> Equipos pretratamiento otras biomasas | D15: =+Costos!I33 -> 0
B16: 2.6 | C16: =+'6'!C16 -> Obras y equipos para valoración energética | D16: =+Costos!I36 -> 0
B18: =+B10+1 -> 3 | C18: OPERACIÓN Y MANTENIMIENTO
B19: =+B18+0.1 -> 3.1 | C19: Aspectos generales | E19: =+Costos!I40 -> 0 | F19: =+E19 -> 0 | G19: =+F19 -> 0 | H19: 0 | I19: 0 | J19: 0 | K19: 0 | L19: 0 | M19: 0 | N19: 0 | O19: 0 | P19: 0 | Q19: 0 | R19: 0 | S19: 0 | T19: 0 | U19: 0 | V19: 0 | W19: 0 | X19: 0
B20: =+B19+0.1 -> 3.2 | C20: Personal | E20: =+Costos!I43 -> 0 | F20: =+E20 -> 0 | G20: 0 | H20: 0 | I20: 0 | J20: 0 | K20: 0 | L20: 0 | M20: 0 | N20: 0 | O20: 0 | P20: 0 | Q20: 0 | R20: 0 | S20: 0 | T20: 0 | U20: 0 | V20: 0 | W20: 0 | X20: 0
B21: 3.3 | C21: Valoración energética | E21: =+Costos!I46 -> 0 | F21: =+E21 -> 0 | G21: 0 | H21: 0 | I21: 0 | J21: 0 | K21: 0 | L21: 0 | M21: 0 | N21: 0 | O21: 0 | P21: 0 | Q21: 0 | R21: 0 | S21: 0 | T21: 0 | U21: 0 | V21: 0 | W21: 0 | X21: 0
B22: 3.4 | C22: Varios | E22: =+Costos!I49 -> 0 | F22: =+E22 -> 0 | G22: 0 | H22: 0 | I22: 0 | J22: 0 | K22: 0 | L22: 0 | M22: 0 | N22: 0 | O22: 0 | P22: 0 | Q22: 0 | R22: 0 | S22: 0 | T22: 0 | U22: 0 | V22: 0 | W22: 0 | X22: 0
B23: 3.5 | C23: Reposición equipos | K23: =+D16*0.23 -> 0 | R23: =+K23 -> 0
C24: SUMA (Milles $) | D24: =+SUM(D6:D23) -> 0 | E24: =+SUM(E6:E23) -> 0 | F24: 0 | G24: 0 | H24: 0 | I24: 0 | J24: 0 | K24: 0 | L24: 0 | M24: 0 | N24: 0 | O24: 0 | P24: 0 | Q24: 0 | R24: 0 | S24: 0 | T24: 0 | U24: 0 | V24: 0 | W24: 0 | X24: 0
C25: Suma (USD) | D25: =+D24*1000/$D$41 -> 0 | E25: =+E24*1000/$D$41 -> 0 | F25: 0 | G25: 0 | H25: 0 | I25: 0 | J25: 0 | K25: 0 | L25: 0 | M25: 0 | N25: 0 | O25: 0 | P25: 0 | Q25: 0 | R25: 0 | S25: 0 | T25: 0 | U25: 0 | V25: 0 | W25: 0 | X25: 0
B27: =+B18+1 -> 4 | C27: INGRESOS
B28: =+B27+0.1 -> 4.1 | C28: =+Ingresos!C34 -> Servicio de tratamiento de RSOU: | E28: =+Ingresos!G34 -> 0 | F28: =+E28 -> 0 | G28: =+F28 -> 0 | H28: 0 | I28: 0 | J28: 0 | K28: 0 | L28: 0 | M28: 0 | N28: 0 | O28: 0 | P28: 0 | Q28: 0 | R28: 0 | S28: 0 | T28: 0 | U28: 0 | V28: 0 | W28: 0 | X28: 0
B29: =+B28+0.1 -> 4.2 | C29: =+Ingresos!C35 -> Servicio de tratamiento otras biomasas: | E29: =+Ingresos!G35 -> 0 | F29: =+E29 -> 0 | G29: =+F29 -> 0 | H29: =+G29 -> 0 | I29: =+H29 -> 0 | J29: =+I29 -> 0 | K29: =+J29 -> 0 | L29: =+K29 -> 0 | M29: =+L29 -> 0 | N29: =+M29 -> 0 | O29: =+N29 -> 0 | P29: =+O29 -> 0 | Q29: =+P29 -> 0 | R29: =+Q29 -> 0 | S29: =+R29 -> 0 | T29: =+S29 -> 0 | U29: =+T29 -> 0 | V29: =+U29 -> 0 | W29: =+V29 -> 0 | X29: =+W29 -> 0
B30: 4.3 | C30: =+Ingresos!C36 -> Venta materiales metalicos: | E30: =+Ingresos!G36 -> 0 | F30: 0 | G30: 0 | H30: 0 | I30: 0 | J30: 0 | K30: 0 | L30: 0 | M30: 0 | N30: 0 | O30: 0 | P30: 0 | Q30: 0 | R30: 0 | S30: 0 | T30: 0 | U30: 0 | V30: 0 | W30: 0 | X30: 0
B31: =+B30+0.1 -> 4.4 | C31: =+Ingresos!C37 -> Venta de materiales plásticos: | E31: =+Ingresos!G37 -> 0 | F31: 0 | G31: 0 | H31: 0 | I31: 0 | J31: 0 | K31: 0 | L31: 0 | M31: 0 | N31: 0 | O31: 0 | P31: 0 | Q31: 0 | R31: 0 | S31: 0 | T31: 0 | U31: 0 | V31: 0 | W31: 0 | X31: 0
B32: 4.5 | C32: =+Ingresos!C38 -> Venta energía eléctrica: | E32: =+Ingresos!G38 -> 0 | F32: 0 | G32: 0 | H32: 0 | I32: 0 | J32: 0 | K32: 0 | L32: 0 | M32: 0 | N32: 0 | O32: 0 | P32: 0 | Q32: 0 | R32: 0 | S32: 0 | T32: 0 | U32: 0 | V32: 0 | W32: 0 | X32: 0
B33: 4.6 | C33: =+Ingresos!C39 -> Mejorador de suelos (Digestato): | E33: =+Ingresos!G39 -> 0 | F33: =+E33 -> 0 | G33: =+F33 -> 0 | H33: =+G33 -> 0 | I33: =+H33 -> 0 | J33: =+I33 -> 0 | K33: =+J33 -> 0 | L33: =+K33 -> 0 | M33: =+L33 -> 0 | N33: =+M33 -> 0 | O33: =+N33 -> 0 | P33: =+O33 -> 0 | Q33: =+P33 -> 0 | R33: =+Q33 -> 0 | S33: =+R33 -> 0 | T33: =+S33 -> 0 | U33: =+T33 -> 0 | V33: =+U33 -> 0 | W33: =+V33 -> 0 | X33: =+W33 -> 0
B34: 4.7 | C34: =+Ingresos!C40 -> Bonos de carbón: | E34: =+Ingresos!G40 -> 0 | F34: 0 | G34: 0 | H34: 0 | I34: 0 | J34: 0 | K34: 0 | L34: 0 | M34: 0 | N34: 0 | O34: 0 | P34: 0 | Q34: 0 | R34: 0 | S34: 0 | T34: 0 | U34: 0 | V34: 0 | W34: 0 | X34: 0
B35: 4.8 | C35: =+Ingresos!C41 -> Energía como calor: | E35: =+Ingresos!G41 -> 0 | F35: =+E35 -> 0 | G35: 0 | H35: 0 | I35: 0 | J35: 0 | K35: 0 | L35: 0 | M35: 0 | N35: 0 | O35: 0 | P35: 0 | Q35: 0 | R35: 0 | S35: 0 | T35: 0 | U35: 0 | V35: 0 | W35: 0 | X35: 0
B36: 4.9 | C36: =+Ingresos!C42 -> Aceite Pirolítico: | E36: =+Ingresos!G42 -> 0 | F36: =+E36 -> 0 | G36: 0 | H36: 0 | I36: 0 | J36: 0 | K36: 0 | L36: 0 | M36: 0 | N36: 0 | O36: 0 | P36: 0 | Q36: 0 | R36: 0 | S36: 0 | T36: 0 | U36: 0 | V36: 0 | W36: 0 | X36: 0
C38: SUMA (Milles $) | E38: =+SUM(E28:E37) -> 0 | F38: =+SUM(F28:F37) -> 0 | G38: =+SUM(G28:G37) -> 0 | H38: 0 | I38: 0 | J38: 0 | K38: 0 | L38: 0 | M38: 0 | N38: 0 | O38: 0 | P38: =+SUM(P28:P37) -> 0 | Q38: 0 | R38: 0 | S38: 0 | T38: 0 | U38: 0 | V38: 0 | W38: 0 | X38: 0
C39: Suma (USD) | E39: =+E38*1000/$D$41 -> 0 | F39: =+F38*1000/$D$41 -> 0 | G39: 0 | H39: 0 | I39: 0 | J39: 0 | K39: 0 | L39: 0 | M39: 0 | N39: 0 | O39: 0 | P39: 0 | Q39: 0 | R39: 0 | S39: 0 | T39: 0 | U39: 0 | V39: 0 | W39: 0 | X39: 0
C41: Dólar | D41: =+'7'!D40 -> 2900 | E41: $Col / USD

Sheet dbTemp (hidden)
A1: DANE | B1: DEPARTAMENTO ATENDIDO | C1: ANTIOQUIA - COCORNÁ | D1: Departamento-Municipio | E1: OPERADOR SITIO DE DF | F1: AÑO | G1: NOMBRE DEL SITIO | H1: TIPO DE SDF
A2: 0 | B2: TODOS | C2: TODOS | D2: BIOMASAS TOTALES | E2: 0 | F2: 0 | G2: 0 | H2: 0
A3: 5197 | B3: ANTIOQUIA | C3: COCORNÁ | D3: ANTIOQUIA - COCORNÁ | E3: EMPRESA DE SERVICIOS PUBLICOS DE COCORNA E.S.P. | F3: 2016 | G3: RELLENO SANITARIO MUNICIPAL | H3: RELLENO SANITARIO
A4: 5206 | B4: ANTIOQUIA | C4: CONCEPCIÓN | D4: ANTIOQUIA - CONCEPCIÓN | E4: MUNICIPIO DE CONCEPCION | F4: 2016 | G4: RELLENO SANITARIO CERRO DE LA VIRGEN | H4: RELLENO SANITARIO
A5: 5209 | B5: ANTIOQUIA | C5: CONCORDIA | D5: ANTIOQUIA - CONCORDIA | E5: EMPRESAS PUBLICAS MUNICIPALES DE CONCORDIA E.S.P. | F5: 2016 | G5: RELLENO SANITARIO CONCORDIA | H5: RELLENO SANITARIO
A6: 5212 | B6: ANTIOQUIA | C6: COPACABANA | D6: ANTIOQUIA - COPACABANA | E6: EMPRESAS VARIAS DE MEDELLIN S.A. E.S. P. | F6: 2016 | G6: PARQUE AMBIENTAL LA PRADERA | H6: RELLENO SANITARIO
A7: 5234 | B7: ANTIOQUIA | C7: DABEIBA | D7: ANTIOQUIA - DABEIBA | E7: EMPRESAS PUBLICAS DE DABEIBA S.A.S E.S.P | F7: 2016 | G7: RELLENO SANITARIO DABEIBA | H7: RELLENO SANITARIO
A8: 5237 | B8: ANTIOQUIA | C8: DONMATÍAS | D8: ANTIOQUIA - DONMATÍAS | E8: SERVIDONMATIAS ESP SAS | F8: 2016 | G8: EL PINAR | H8: RELLENO SANITARIO
A9: 5240 | B9: ANTIOQUIA | C9: EBÉJICO | D9: ANTIOQUIA - EBÉJICO | E9: EMPRESAS VARIAS DE MEDELLIN S.A. E.S. P. | F9: 2016 | G9: PARQUE AMBIENTAL LA PRADERA | H9: RELLENO SANITARIO
A10: 5001 | B10: ANTIOQUIA | C10: MEDELLÍN | D10: ANTIOQUIA - MEDELLÍN | E10: EMPRESAS VARIAS DE MEDELLIN S.A. E.S. P. | F10: 2016 | G10: PARQUE AMBIENTAL LA PRADERA | H10: RELLENO SANITARIO
A11: 5002 | B11: ANTIOQUIA | C11: ABEJORRAL | D11: ANTIOQUIA - ABEJORRAL | E11: EMPRESAS PUBLICAS DE ABEJORRAL E.S.P. | F11: 2016 | G11: LOS MOLINOS | H11: RELLENO SANITARIO
A12: 5004 | B12: ANTIOQUIA | C12: ABRIAQUÍ | D12: ANTIOQUIA - ABRIAQUÍ | E12: UNIDAD DE SERVICIOS PUBLICOS DE ABRIAQUI | F12: 2016 | G12: FINCA EL LIBANO | H12: BOTADERO A CIELO ABIERTO
A13: 5021 | B13: ANTIOQUIA | C13: ALEJANDRÍA | D13: ANTIOQUIA - ALEJANDRÍA | E13: UNIDAD DE SERVICIOS PUBLICOS DOMICILIARIOS MUNICIPIO DE ALEJANDRIA | F13: 2016 | G13: RELLENO SANITARIO ALEJANDRIA | H13: RELLENO SANITARIO
A14: 5030 | B14: ANTIOQUIA | C14: AMAGÁ | D14: ANTIOQUIA - AMAGÁ | E14: EMPRESAS VARIAS DE MEDELLIN S.A. E.S. P. | F14: 2016 | G14: PARQUE AMBIENTAL LA PRADERA | H14: RELLENO SANITARIO
A15: 5031 | B15: ANTIOQUIA | C15: AMALFI | D15: ANTIOQUIA - AMALFI | E15: ASESORIAS Y SERVICIOS E.S.P. S.A. | F15: 2016 | G15: LA ESPAÑOLA | H15: RELLENO SANITARIO
A16: 5034 | B16: ANTIOQUIA | C16: ANDES | D16: ANTIOQUIA - ANDES | E16: EMPRESA DE SERVICIOS PUBLICOS DE ANDES S.A. E.S.P. | F16: 2016 | G16: LA SOLITA | H16: RELLENO SANITARIO
A17: 5036 | B17: ANTIOQUIA | C17: ANGELÓPOLIS | D17: ANTIOQUIA - ANGELÓPOLIS | E17: JUNTA DE SERVICIOS PUBLICOS DEL MUNICIPIO DE ANGELOPOLIS | F17: 2016 | G17: RELLENO SANITARIO SAN ISIDRO | H17: RELLENO SANITARIO
A18: 5038 | B18: ANTIOQUIA | C18: ANGOSTURA | D18: ANTIOQUIA - ANGOSTURA | E18: EMPRESA DE SERVICIOS PUBLICOS DOMICILIARIOS DE ANGOSTURA S.A. E.S.P. | F18: 2016 | G18: BUENAVISTA | H18: RELLENO SANITARIO
A19: 5040 | B19: ANTIOQUIA | C19: ANORÍ | D19: ANTIOQUIA - ANORÍ | E19: MUNICIPIO DE ANORI | F19: 2016 | G19: RELLENO SANITARIO SAN ANTONIO | H19: RELLENO SANITARIO
A20: 5042 | B20: ANTIOQUIA | C20: SANTA FÉ DE ANTIOQUIA | D20: ANTIOQUIA - SANTA FÉ DE ANTIOQUIA | E20: EMPRESAS VARIAS DE MEDELLIN S.A. E.S. P. | F20: 2016 | G20: PARQUE AMBIENTAL LA PRADERA | H20: RELLENO SANITARIO
A21: 5044 | B21: ANTIOQUIA | C21: ANZÁ | D21: ANTIOQUIA - ANZÁ | E21: OFICINA DE SERVICIOS PUBLICOS MUNICIPIO DE ANZA | F21: 2016 | G21: LOS CEDROS | H21: RELLENO SANITARIO
A22: 5045 | B22: ANTIOQUIA | C22: APARTADÓ | D22: ANTIOQUIA - APARTADÓ | E22: FUTURASEO S.A. E.S.P | F22: 2016 | G22: CENTRO INDUSTRIAL DE RESIDUOS SOLIDOS DE URABA | H22: RELLENO SANITARIO
A23: 5051 | B23: ANTIOQUIA | C23: ARBOLETES | D23: ANTIOQUIA - ARBOLETES | E23: FUTURASEO S.A. E.S.P | F23: 2016 | G23: CENTRO INDUSTRIAL DE RESIDUOS SOLIDOS DE URABA | H23: RELLENO SANITARIO
A24: 5055 | B24: ANTIOQUIA | C24: ARGELIA | D24: ANTIOQUIA - ARGELIA | E24: EMPRESA DE SERVICIOS PÙBLICOS ARGELIA DE MARIA S.A | F24: 2016 | G24: RELLENO SANITARIO VEREDA LA MINA | H24: RELLENO SANITARIO
A25: 5059 | B25: ANTIOQUIA | C25: ARMENIA | D25: ANTIOQUIA - ARMENIA | E25: EMPRESAS VARIAS DE MEDELLIN S.A. E.S. P. | F25: 2016 | G25: PARQUE AMBIENTAL LA PRADERA | H25: RELLENO SANITARIO
A26: 5079 | B26: ANTIOQUIA | C26: BARBOSA | D26: ANTIOQUIA - BARBOSA | E26: EMPRESAS VARIAS DE MEDELLIN S.A. E.S. P. | F26: 2016 | G26: PARQUE AMBIENTAL LA PRADERA | H26: RELLENO SANITARIO
A27: 5086 | B27: ANTIOQUIA | C27: BELMIRA | D27: ANTIOQUIA - BELMIRA | E27: EMPRESAS PUBLICAS DE BELMIRA ESP | F27: 2016 | G27: RELLENO SANITARIO MUNICIPAL | H27: RELLENO SANITARIO
A28: 5088 | B28: ANTIOQUIA | C28: BELLO | D28: ANTIOQUIA - BELLO | E28: EMPRESAS VARIAS DE MEDELLIN S.A. E.S. P. | F28: 2016 | G28: PARQUE AMBIENTAL LA PRADERA | H28: RELLENO SANITARIO
A29: 5091 | B29: ANTIOQUIA | C29: BETANIA | D29: ANTIOQUIA - BETANIA | E29: EMPRESAS PÚBLICAS MUNICIPALES DE BETANIA S.A E.S.P | F29: 2016 | G29: LAS MERCEDES | H29: RELLENO SANITARIO
A30: 5093 | B30: ANTIOQUIA | C30: BETULIA | D30: ANTIOQUIA - BETULIA | E30: EMPRESAS PUBLICAS DE BETULIA S.A E.S.P | F30: 2016 | G30: LA FLORIDA | H30: RELLENO SANITARIO
A31: 5101 | B31: ANTIOQUIA | C31: CIUDAD BOLÍVAR | D31: ANTIOQUIA - CIUDAD BOLÍVAR | E31: EMPRESA PRESTADORA DEL SERVICIO PUBLICO DE ASEO CIUDAD BOLIVAR | F31: 2016 | G31: BUENAVISTA | H31: RELLENO SANITARIO
A32: 5107 | B32: ANTIOQUIA | C32: BRICEÑO | D32: ANTIOQUIA - BRICEÑO | E32: EMPRESAS PUBLICAS DE BRICEÑO S.A. E.S.P. | F32: 2016 | G32: PARQUE AMBIENTAL LLANADAS | H32: RELLENO SANITARIO
A33: 5113 | B33: ANTIOQUIA | C33: BURITICÁ | D33: ANTIOQUIA - BURITICÁ | E33: EMPRESAS VARIAS DE MEDELLIN S.A. E.S. P. | F33: 2016 | G33: PARQUE AMBIENTAL LA PRADERA | H33: RELLENO SANITARIO
A34: 5120 | B34: ANTIOQUIA | C34: CÁCERES | D34: ANTIOQUIA - CÁCERES | E34: CAUCASIA MEDIO AMBIENTE S.A. E.S.P. | F34: 2016 | G34: RELLENO CAUCASIA | H34: RELLENO SANITARIO
A35: 5125 | B35: ANTIOQUIA | C35: CAICEDO | D35: ANTIOQUIA - CAICEDO | E35: UNIDAD DE SERVICIOS PUBLICOS DOMICILIARIOS DEL MUNICIPIO DE CAICEDO. | F35: 2016 | G35: PARQUE ECOLOGICO LA LIBERTAD | H35: RELLENO SANITARIO
A36: 5129 | B36: ANTIOQUIA | C36: CALDAS | D36: ANTIOQUIA - CALDAS | E36: EMPRESAS VARIAS DE MEDELLIN S.A. E.S. P. | F36: 2016 | G36: PARQUE AMBIENTAL LA PRADERA | H36: RELLENO SANITARIO
A37: 5134 | B37: ANTIOQUIA | C37: CAMPAMENTO | D37: ANTIOQUIA - CAMPAMENTO | E37: MUNICIPIO DE CAMPAMENTO ANTIOQUIA | F37: 2016 | G37: RELLENO SANITARIO MUNICIPAL RANCHOS | H37: RELLENO SANITARIO
A38: 5138 | B38: ANTIOQUIA | C38: CAÑASGORDAS | D38: ANTIOQUIA - CAÑASGORDAS | E38: EMPRESAS PUBLICAS DE CAÑASGORSA SA ESP | F38: 2016 | G38: RECICLIN | H38: CELDA TRANSITORIA
A39: 5142 | B39: ANTIOQUIA | C39: CARACOLÍ | D39: ANTIOQUIA - CARACOLÍ | E39: EMPRESA DE SERVICIOS PUBLICOS DOMICILIARIOS DE CARACOLI S.A E.S.P. | F39: 2016 | G39: ROSARITO | H39: RELLENO SANITARIO
A40: 5145 | B40: ANTIOQUIA | C40: CARAMANTA | D40: ANTIOQUIA - CARAMANTA | E40: EMPRESAS PUBLICAS DE CARAMANTA S.A.S. E.S.P. | F40: 2016 | G40: RELLENO SANITARIO EL JARDIN | H40: RELLENO SANITARIO
A41: 5147 | B41: ANTIOQUIA | C41: CAREPA | D41: ANTIOQUIA - CAREPA | E41: FUTURASEO S.A. E.S.P | F41: 2016 | G41: CENTRO INDUSTRIAL DE RESIDUOS SOLIDOS DE URABA | H41: RELLENO SANITARIO
A42: 5148 | B42: ANTIOQUIA | C42: EL CARMEN DE VIBORAL | D42: ANTIOQUIA - EL CARMEN DE VIBORAL | E42: EMPRESA DE SERVICIOS PUBLICOS DE EL CARMEN DE VIBORAL E.S.P. | F42: 2016 | G42: RELLENO SANITARIO ALTO GRANDE | H42: RELLENO SANITARIO
A43: 5150 | B43: ANTIOQUIA | C43: CAROLINA | D43: ANTIOQUIA - CAROLINA | E43: UNIDAD ADMINISTRATIVA ESPECIAL DE SERVICIOS PUBLICOS DOMICILIARIOS DE CAROLINA DEL PRINCIPE | F43: 2016 | G43: LA GRANJA | H43: RELLENO SANITARIO
A44: 5154 | B44: ANTIOQUIA | C44: CAUCASIA | D44: ANTIOQUIA - CAUCASIA | E44: CAUCASIA MEDIO AMBIENTE S.A. E.S.P. | F44: 2016 | G44: RELLENO CAUCASIA | H44: RELLENO SANITARIO
A45: 5172 | B45: ANTIOQUIA | C45: CHIGORODÓ | D45: ANTIOQUIA - CHIGORODÓ | E45: FUTURASEO S.A. E.S.P | F45: 2016 | G45: CENTRO INDUSTRIAL DE RESIDUOS SOLIDOS DE URABA | H45: RELLENO SANITARIO
A46: 5190 | B46: ANTIOQUIA | C46: CISNEROS | D46: ANTIOQUIA - CISNEROS | E46: EMPRESAS VARIAS DE MEDELLIN S.A. E.S. P. | F46: 2016 | G46: PARQUE AMBIENTAL LA PRADERA | H46: RELLENO SANITARIO
A47: 5368 | B47: ANTIOQUIA | C47: JERICÓ | D47: ANTIOQUIA - JERICÓ | E47: EMPRESA REGIONAL DE ASEO DEL NORTE DE CALDAS S.A., E.S.P. | F47: 2016 | G47: LOS EUCALIPTOS | H47: RELLENO SANITARIO
A48: 5376 | B48: ANTIOQUIA | C48: LA CEJA | D48: ANTIOQUIA - LA CEJA | E48: EMPRESAS PUBLICAS DE LA CEJA E.S.P. | F48: 2016 | G48: RELLENO RANCHO TRISTE | H48: RELLENO SANITARIO
A49: 5380 | B49: ANTIOQUIA | C49: LA ESTRELLA | D49: ANTIOQUIA - LA ESTRELLA | E49: EMPRESAS VARIAS DE MEDELLIN S.A. E.S. P. | F49: 2016 | G49: PARQUE AMBIENTAL LA PRADERA | H49: RELLENO SANITARIO
A50: 5390 | B50: ANTIOQUIA | C50: LA PINTADA | D50: ANTIOQUIA - LA PINTADA | E50: EMPRESA METROPOLITANA DE ASEO S.A. E.S.P. | F50: 2016 | G50: RELLENO SANITARIO LA ESMERALDA | H50: RELLENO SANITARIO
A51: 5400 | B51: ANTIOQUIA | C51: LA UNIÓN | D51: ANTIOQUIA - LA UNIÓN | E51: EMPRESA DE SERVICIOS PUBLICOS LA UNION S.A E.S.P. | F51: 2016 | G51: BUENA VISTA | H51: RELLENO SANITARIO
A52: 5411 | B52: ANTIOQUIA | C52: LIBORINA | D52: ANTIOQUIA - LIBORINA | E52: EMPRESA DE SERVICIOS PUBLICOS DOMICILIARIOS DEL MUNICIPIO DE LIBORINA S.A. E.S.P. | F52: 2016 | G52: MIRAFLORES | H52: RELLENO SANITARIO
A53: 5425 | B53: ANTIOQUIA | C53: MACEO | D53: ANTIOQUIA - MACEO | E53: EMPRESA DE SERVICIOS PÚBLICOS DOMICILIARIOS DE MACEO S.A.S E.S.P | F53: 2016 | G53: TINAJAS | H53: RELLENO SANITARIO
A54: 5440 | B54: ANTIOQUIA | C54: MARINILLA | D54: ANTIOQUIA - MARINILLA | E54: EMPRESA DE SERVICIOS PUBLICOS DE SAN JOSE DE LA MARINILLA E.S.P. | F54: 2016 | G54: RELLENO SANITARIO Y GRANJA AMBIENTAL LOS SALTOS | H54: RELLENO SANITARIO
A55: 5467 | B55: ANTIOQUIA | C55: MONTEBELLO | D55: ANTIOQUIA - MONTEBELLO | E55: EMPRESAS VARIAS DE MEDELLIN S.A. E.S. P. | F55: 2016 | G55: PARQUE AMBIENTAL LA PRADERA | H55: RELLENO SANITARIO
A56: 5475 | B56: ANTIOQUIA | C56: MURINDÓ | D56: ANTIOQUIA - MURINDÓ | E56: ND | F56: 2016 | G56: ND | H56: ND
A57: 5480 | B57: ANTIOQUIA | C57: MUTATÁ | D57: ANTIOQUIA - MUTATÁ | E57: FUTURASEO S.A. E.S.P | F57: 2016 | G57: CENTRO INDUSTRIAL DE RESIDUOS SOLIDOS DE URABA | H57: RELLENO SANITARIO
A58: 5483 | B58: ANTIOQUIA | C58: NARIÑO | D58: ANTIOQUIA - NARIÑO | E58: UNIDAD DE SERVICIOS PUBLICOS NARIÑO ANTIOQUIA | F58: 2016 | G58: RELLENO SANITARIO QUIEBRA HONDA | H58: RELLENO SANITARIO
A59: 5490 | B59: ANTIOQUIA | C59: NECOCLÍ | D59: ANTIOQUIA - NECOCLÍ | E59: FUTURASEO S.A. E.S.P | F59: 2016 | G59: CENTRO INDUSTRIAL DE RESIDUOS SOLIDOS DE URABA | H59: RELLENO SANITARIO
A60: 5495 | B60: ANTIOQUIA | C60: NECHÍ | D60: ANTIOQUIA - NECHÍ | E60: MUNICIPIO DE NECHI | F60: 2016 | G60: GRANADA - TABOGA | H60: RELLENO SANITARIO
A61: 5501 | B61: ANTIOQUIA | C61: OLAYA | D61: ANTIOQUIA - OLAYA | E61: EMPRESA DE SERVICIOS PUBLICOS DOMICILIARIOS DEL MUNICIPIO DE LIBORINA S.A. E.S.P. | F61: 2016 | G61: MIRAFLORES | H61: RELLENO SANITARIO
A62: 5541 | B62: ANTIOQUIA | C62: PEÑOL | D62: ANTIOQUIA - PEÑOL | E62: AGUAS Y ASEO DE EL PEÑOL E.S.P. | F62: 2016 | G62: LAS HOYERAS | H62: RELLENO SANITARIO
A63: 5543 | B63: ANTIOQUIA | C63: PEQUE | D63: ANTIOQUIA - PEQUE | E63: EMPRESA DE SERVICIOS PUBLICOS DOMICILIARIOS DEL MUNICIPIO DE PEQUE ANTIOQUIA S.A E.S.P | F63: 2016 | G63: LA GRANJA | H63: BOTADERO A CIELO ABIERTO
A64: 5576 | B64: ANTIOQUIA | C64: PUEBLORRICO | D64: ANTIOQUIA - PUEBLORRICO | E64: EMPRESA REGIONAL DE ASEO DEL NORTE DE CALDAS S.A., E.S.P. | F64: 2016 | G64: LOS EUCALIPTOS | H64: RELLENO SANITARIO
A65: 5579 | B65: ANTIOQUIA | C65: PUERTO BERRÍO | D65: ANTIOQUIA - PUERTO BERRÍO | E65: AGUAS DEL PUERTO SA ESP | F65: 2016 | G65: LA TABACA | H65: RELLENO SANITARIO
A66: 5585 | B66: ANTIOQUIA | C66: PUERTO NARE | D66: ANTIOQUIA - PUERTO NARE | E66: EMPRESAS PUBLICAS MUNICIPALES DE PUERTO NARE E.S.P. | F66: 2016 | G66: EL PESCADO | H66: RELLENO SANITARIO
A67: 5591 | B67: ANTIOQUIA | C67: PUERTO TRIUNFO | D67: ANTIOQUIA - PUERTO TRIUNFO | E67: EMPRESA DE SERVICIOS PUBLICOS DE PUERTO TRIUNFO S.A. E.S.P. | F67: 2016 | G67: RELLENO SANITARIO BRUCELAS | H67: RELLENO SANITARIO
A68: 5604 | B68: ANTIOQUIA | C68: REMEDIOS | D68: ANTIOQUIA - REMEDIOS | E68: AGUAS Y SERVICIOS DEL ITE S.A.S. E.S.P. | F68: 2016 | G68: RELLENO SANITARIO PARAJE PUENTE ROJO | H68: RELLENO SANITARIO
A69: 5607 | B69: ANTIOQUIA | C69: RETIRO | D69: ANTIOQUIA - RETIRO | E69: EMPRESAS VARIAS DE MEDELLIN S.A. E.S. P. | F69: 2016 | G69: PARQUE AMBIENTAL LA PRADERA | H69: RELLENO SANITARIO
A70: 5615 | B70: ANTIOQUIA | C70: RIONEGRO | D70: ANTIOQUIA - RIONEGRO | E70: EMPRESAS VARIAS DE MEDELLIN S.A. E.S. P. | F70: 2016 | G70: PARQUE AMBIENTAL LA PRADERA | H70: RELLENO SANITARIO
A71: 5628 | B71: ANTIOQUIA | C71: SABANALARGA | D71: ANTIOQUIA - SABANALARGA | E71: EMPRESA DE SERVICIOS PUBLICOS DOMICILIAMRIOS DEL MUNICIPIO DE SABANALARGA S.A E.S.P | F71: 2016 | G71: PARQUE AMBIENTAL Y ECOLOGICO EL JUNQUITO | H71: RELLENO SANITARIO
A72: 5631 | B72: ANTIOQUIA | C72: SABANETA | D72: ANTIOQUIA - SABANETA | E72: EMPRESAS VARIAS DE MEDELLIN S.A. E.S. P. | F72: 2016 | G72: PARQUE AMBIENTAL LA PRADERA | H72: RELLENO SANITARIO
A73: 5250 | B73: ANTIOQUIA | C73: EL BAGRE | D73: ANTIOQUIA - EL BAGRE | E73: EMPRESA MUNICIPAL DE ACUEDUCTO ALCANTARILLADO Y ASEO DEL MUNICIPIO DE EL BAGRE ANTIOQUIA SA ESP | F73: 2016 | G73: RELLENO SANITARIO EL BAGRE | H73: BOTADERO A CIELO ABIERTO
A74: 5264 | B74: ANTIOQUIA | C74: ENTRERRÍOS | D74: ANTIOQUIA - ENTRERRÍOS | E74: UNIDAD DE SERVICIOS PUBLICOS DEL MUNICIPIO DE ENTRERRIOS | F74: 2016 | G74: RELLENO SANITARIO | H74: RELLENO SANITARIO
A75: 5266 | B75: ANTIOQUIA | C75: ENVIGADO | D75: ANTIOQUIA - ENVIGADO | E75: EMPRESAS VARIAS DE MEDELLIN S.A. E.S. P. | F75: 2016 | G75: PARQUE AMBIENTAL LA PRADERA | H75: RELLENO SANITARIO
A76: 5282 | B76: ANTIOQUIA | C76: FREDONIA | D76: ANTIOQUIA - FREDONIA | E76: EMPRESA REGIONAL DE ASEO DEL NORTE DE CALDAS S.A., E.S.P. | F76: 2016 | G76: LOS EUCALIPTOS | H76: RELLENO SANITARIO
A77: 5284 | B77: ANTIOQUIA | C77: FRONTINO | D77: ANTIOQUIA - FRONTINO | E77: EMPRESA DE SERVICIOS PUBLICOS DE FRONTINO E.S.P. FRONTINO | F77: 2016 | G77: PARQUE DE APROVECHAMIENTO LA ESPERANZA | H77: RELLENO SANITARIO
A78: 5306 | B78: ANTIOQUIA | C78: GIRALDO | D78: ANTIOQUIA - GIRALDO | E78: EMPRESAS PUBLICAS DE BELMIRA ESP | F78: 2016 | G78: RELLENO SANITARIO MUNICIPAL | H78: RELLENO SANITARIO
A79: 5308 | B79: ANTIOQUIA | C79: GIRARDOTA | D79: ANTIOQUIA - GIRARDOTA | E79: EMPRESAS VARIAS DE MEDELLIN S.A. E.S. P. | F79: 2016 | G79: PARQUE AMBIENTAL LA PRADERA | H79: RELLENO SANITARIO
A80: 5310 | B80: ANTIOQUIA | C80: GÓMEZ PLATA | D80: ANTIOQUIA - GÓMEZ PLATA | E80: EMPRESAS VARIAS DE MEDELLIN S.A. E.S. P. | F80: 2016 | G80: PARQUE AMBIENTAL LA PRADERA | H80: RELLENO SANITARIO
A81: 5313 | B81: ANTIOQUIA | C81: GRANADA | D81: ANTIOQUIA - GRANADA | E81: EMPRESA DE SERVICIOS PUBLICOS DE GRANADA | F81: 2016 | G81: RELLENO SANITARIO MUNICIPIO DE GRANADA | H81: RELLENO SANITARIO
A82: 5315 | B82: ANTIOQUIA | C82: GUADALUPE | D82: ANTIOQUIA - GUADALUPE | E82: EMPRESA DE SERVICIOS PUBLICOS DE GUADALUPE S.A.S ESP | F82: 2016 | G82: EL PLACER | H82: RELLENO SANITARIO
A83: 5318 | B83: ANTIOQUIA | C83: GUARNE | D83: ANTIOQUIA - GUARNE | E83: EMPRESAS VARIAS DE MEDELLIN S.A. E.S. P. | F83: 2016 | G83: PARQUE AMBIENTAL LA PRADERA | H83: RELLENO SANITARIO
A84: 5321 | B84: ANTIOQUIA | C84: GUATAPÉ | D84: ANTIOQUIA - GUATAPÉ | E84: EMPRESA DE SERVICIOS PUBLICOS DOMICILIARIOS DE GUATAPE E.S.P. | F84: 2016 | G84: RELLENO SANITARIO MIRA FLORES | H84: RELLENO SANITARIO
A85: 5347 | B85: ANTIOQUIA | C85: HELICONIA | D85: ANTIOQUIA - HELICONIA | E85: EMPRESAS VARIAS DE MEDELLIN S.A. E.S. P. | F85: 2016 | G85: PARQUE AMBIENTAL LA PRADERA | H85: RELLENO SANITARIO
A86: 5353 | B86: ANTIOQUIA | C86: HISPANIA | D86: ANTIOQUIA - HISPANIA | E86: EMPRESA REGIONAL DE ASEO DEL NORTE DE CALDAS S.A., E.S.P. | F86: 2016 | G86: LOS EUCALIPTOS | H86: RELLENO SANITARIO
A87: 5360 | B87: ANTIOQUIA | C87: ITAGÜÍ | D87: ANTIOQUIA - ITAGÜÍ | E87: EMPRESAS VARIAS DE MEDELLIN S.A. E.S. P. | F87: 2016 | G87: PARQUE AMBIENTAL LA PRADERA | H87: RELLENO SANITARIO
A88: 5361 | B88: ANTIOQUIA | C88: ITUANGO | D88: ANTIOQUIA - ITUANGO | E88: EMPRESAS VARIAS DE MEDELLIN S.A. E.S. P. | F88: 2016 | G88: PARQUE AMBIENTAL LA PRADERA | H88: RELLENO SANITARIO
A89: 5364 | B89: ANTIOQUIA | C89: JARDÍN | D89: ANTIOQUIA - JARDÍN | E89: EMPRESA REGIONAL DE ASEO DEL NORTE DE CALDAS S.A., E.S.P. | F89: 2016 | G89: LOS EUCALIPTOS | H89: RELLENO SANITARIO
A90: 5697 | B90: ANTIOQUIA | C90: EL SANTUARIO | D90: ANTIOQUIA - EL SANTUARIO | E90: EMPRESAS PUBLICAS DEL MUNICIPIO DE EL SANTUARIO E.S.P. | F90: 2016 | G90: GRANJA MANEJO DE RESIDUOS SOLIDOS MUNICIPIO DE EL SANTUARIO | H90: RELLENO SANITARIO
A91: 5736 | B91: ANTIOQUIA | C91: SEGOVIA | D91: ANTIOQUIA - SEGOVIA | E91: SEGOVIA ASEO S.A. E.S.P. | F91: 2016 | G91: LA VERA | H91: RELLENO SANITARIO
A92: 5756 | B92: ANTIOQUIA | C92: SONSÓN | D92: ANTIOQUIA - SONSÓN | E92: AGUAS DEL PARAMO DE SONSON S.A.S. E.S.P | F92: 2016 | G92: AMBIENTE SONSON | H92: RELLENO SANITARIO
A93: 5761 | B93: ANTIOQUIA | C93: SOPETRÁN | D93: ANTIOQUIA - SOPETRÁN | E93: EMPRESAS VARIAS DE MEDELLIN S.A. E.S. P. | F93: 2016 | G93: PARQUE AMBIENTAL LA PRADERA | H93: RELLENO SANITARIO
A94: 5789 | B94: ANTIOQUIA | C94: TÁMESIS | D94: ANTIOQUIA - TÁMESIS | E94: EMPRESA DE SERVICIOS PUBLICOS DOMICILIARIOS TAMESIS ESP SAS | F94: 2016 | G94: RELLENO SANITARIO MANUAL | H94: RELLENO SANITARIO
A95: 5790 | B95: ANTIOQUIA | C95: TARAZÁ | D95: ANTIOQUIA - TARAZÁ | E95: ND | F95: 2016 | G95: ND | H95: ND
A96: 5792 | B96: ANTIOQUIA | C96: TARSO | D96: ANTIOQUIA - TARSO | E96: EMPRESA DE SERVICIOS PUBLICOS DE TARSO S.A. E.S.P. | F96: 2016 | G96: GUAYACANES | H96: RELLENO SANITARIO
A97: 5809 | B97: ANTIOQUIA | C97: TITIRIBÍ | D97: ANTIOQUIA - TITIRIBÍ | E97: EMPRESAS VARIAS DE MEDELLIN S.A. E.S. P. | F97: 2016 | G97: PARQUE AMBIENTAL LA PRADERA | H97: RELLENO SANITARIO
A98: 5819 | B98: ANTIOQUIA | C98: TOLEDO | D98: ANTIOQUIA - TOLEDO | E98: UNIDAD DE SERVICIOS PUBLICOS DOMICILIARIOS DEL MUNICIPIO DE SAN JOSE DE LA MONTAÑA | F98: 2016 | G98: LOS ROBLES | H98: RELLENO SANITARIO
A99: 5837 | B99: ANTIOQUIA | C99: TURBO | D99: ANTIOQUIA - TURBO | E99: FUTURASEO S.A. E.S.P | F99: 2016 | G99: CENTRO INDUSTRIAL DE RESIDUOS SOLIDOS DE URABA | H99: RELLENO SANITARIO
A100: 5842 | B100: ANTIOQUIA | C100: URAMITA | D100: ANTIOQUIA - URAMITA | E100: EMPRESA DE SERVICIOS PUBLICOS DE URAMITA S.A.S. E.S.P. | F100: 2016 | G100: EL MANGO | H100: CELDA TRANSITORIA
A101: 5847 | B101: ANTIOQUIA | C101: URRAO | D101: ANTIOQUIA - URRAO | E101: EMPRESAS PUBLICAS DE URRAO E.S.P. | F101: 2016 | G101: PARQUE AMBIENTAL LAS ORQUIDEAS | H101: RELLENO SANITARIO
A102: 5854 | B102: ANTIOQUIA | C102: VALDIVIA | D102: ANTIOQUIA - VALDIVIA | E102: EMPRESAS PUBLICAS DE VALDIVIA ANTIOQUIA S.A. E.S.P | F102: 2016 | G102: RELLENO SANITARIO VALDIVI | H102: RELLENO SANITARIO
A103: 5856 | B103: ANTIOQUIA | C103: VALPARAÍSO | D103: ANTIOQUIA - VALPARAÍSO | E103: EMPRESA REGIONAL DE ASEO DEL NORTE DE CALDAS S.A., E.S.P. | F103: 2016 | G103: LOS EUCALIPTOS | H103: RELLENO SANITARIO
A104: 5858 | B104: ANTIOQUIA | C104: VEGACHÍ | D104: ANTIOQUIA - VEGACHÍ | E104: EMPRESAS PUBLICAS DE VEGACHI S.A. E.S.P. | F104: 2016 | G104: RELLENO SANITARIO VEGACHI | H104: RELLENO SANITARIO
A105: 5861 | B105: ANTIOQUIA | C105: VENECIA | D105: ANTIOQUIA - VENECIA | E105: EMPRESAS VARIAS DE MEDELLIN S.A. E.S. P. | F105: 2016 | G105: PARQUE AMBIENTAL LA PRADERA | H105: RELLENO SANITARIO
A106: 5873 | B106: ANTIOQUIA | C106: VIGÍA DEL FUERTE | D106: ANTIOQUIA - VIGÍA DEL FUERTE | E106: MUNICIPIO DE VIGIA DEL FUERTE | F106: 2016 | G106: VIGIA DEL FUERTE | H106: SIN INFORMACION
A107: 5885 | B107: ANTIOQUIA | C107: YALÍ | D107: ANTIOQUIA - YALÍ | E107: SERVICIOS PUBLICOS YALI S.A. E.S.P. | F107: 2016 | G107: LA AURORA | H107: RELLENO SANITARIO
A108: 5887 | B108: ANTIOQUIA | C108: YARUMAL | D108: ANTIOQUIA - YARUMAL | E108: AGUAS DEL NORTE ANTIOQUEÑO S.A E.S.P | F108: 2016 | G108: YARUMOS II | H108: RELLENO SANITARIO
A109: 5890 | B109: ANTIOQUIA | C109: YOLOMBÓ | D109: ANTIOQUIA - YOLOMBÓ | E109: EMPRESAS VARIAS DE MEDELLIN S.A. E.S. P. | F109: 2016 | G109: PARQUE AMBIENTAL LA PRADERA | H109: RELLENO SANITARIO
A110: 5893 | B110: ANTIOQUIA | C110: YONDÓ | D110: ANTIOQUIA - YONDÓ | E110: EMPRESA DE SERVICIOS PÚBLICOS DOMICILIARIOS DE ACUEDUCTO, ALCANTARILLADO Y ASEO DE YONDÓ E.S.P. | F110: 2016 | G110: LA AMERICAS | H110: RELLENO SANITARIO
A111: 5895 | B111: ANTIOQUIA | C111: ZARAGOZA | D111: ANTIOQUIA - ZARAGOZA | E111: JUNTA MUNICIPAL DE SERVICIOS PUBLICOS DEL MUNICIPIO DE ZARAGOZA | F111: 2016 | G111: EL CRIMINAL | H111: BOTADERO A CIELO ABIERTO
A112: 8001 | B112: ATLANTICO | C112: BARRANQUILLA | D112: ATLANTICO - BARRANQUILLA | E112: SOCIEDAD DE ACUEDUCTO, ALCANTARILLADO Y ASEO DE BARRANQUILLA S.A. E.S.P. | F112: 2016 | G112: PARQUE AMBIENTAL LOS POCITOS | H112: RELLENO SANITARIO
A113: 8078 | B113: ATLANTICO | C113: BARANOA | D113: ATLANTICO - BARANOA | E113: INTERASEO S.A E.S.P | F113: 2016 | G113: EL CLAVO | H113: RELLENO SANITARIO
A114: 5642 | B114: ANTIOQUIA | C114: SALGAR | D114: ANTIOQUIA - SALGAR | E114: EMPRESA REGIONAL DE ASEO DEL NORTE DE CALDAS S.A., E.S.P. | F114: 2016 | G114: LOS EUCALIPTOS | H114: RELLENO SANITARIO
A115: 5647 | B115: ANTIOQUIA | C115: SAN ANDRÉS DE CUERQUÍA | D115: ANTIOQUIA - SAN ANDRÉS DE CUERQUÍA | E115: EMPRESAS PUBLICAS DE SAN ANDRES DE CUERQUIA SA ESP | F115: 2016 | G115: AGUAS VIVAS | H115: RELLENO SANITARIO
A116: 5649 | B116: ANTIOQUIA | C116: SAN CARLOS | D116: ANTIOQUIA - SAN CARLOS | E116: UNIDAD DE SERVICIOS PUBLICOS DOMICILIARIOS DEL MUNICIPIO DE SAN CARLOS AGUAS Y ASEO DEL TABOR | F116: 2016 | G116: EL CAIMO | H116: RELLENO SANITARIO
A117: 5652 | B117: ANTIOQUIA | C117: SAN FRANCISCO | D117: ANTIOQUIA - SAN FRANCISCO | E117: EMPRESA DE SERVICIOS PUBLICOS DE SAN FRANCISCO ANTIOQUIA SAS ESP | F117: 2016 | G117: RELLENO SANITARIO EL PAJUI | H117: RELLENO SANITARIO
A118: 5656 | B118: ANTIOQUIA | C118: SAN JERÓNIMO | D118: ANTIOQUIA - SAN JERÓNIMO | E118: EMPRESAS VARIAS DE MEDELLIN S.A. E.S. P. | F118: 2016 | G118: PARQUE AMBIENTAL LA PRADERA | H118: RELLENO SANITARIO
A119: 5658 | B119: ANTIOQUIA | C119: SAN JOSÉ DE LA MONTAÑA | D119: ANTIOQUIA - SAN JOSÉ DE LA MONTAÑA | E119: UNIDAD DE SERVICIOS PUBLICOS DOMICILIARIOS DEL MUNICIPIO DE SAN JOSE DE LA MONTAÑA | F119: 2016 | G119: LOS ROBLES | H119: RELLENO SANITARIO
A120: 5659 | B120: ANTIOQUIA | C120: SAN JUAN DE URABÁ | D120: ANTIOQUIA - SAN JUAN DE URABÁ | E120: FUTURASEO S.A. E.S.P | F120: 2016 | G120: CENTRO INDUSTRIAL DE RESIDUOS SOLIDOS DE URABA | H120: RELLENO SANITARIO
A121: 5660 | B121: ANTIOQUIA | C121: SAN LUIS | D121: ANTIOQUIA - SAN LUIS | E121: EMPRESAS PUBLICAS DE SAN LUIS S.A.S. E.S.P. | F121: 2016 | G121: SAN FRANCISCO | H121: RELLENO SANITARIO
A122: 5664 | B122: ANTIOQUIA | C122: SAN PEDRO DE LOS MILAGROS | D122: ANTIOQUIA - SAN PEDRO DE LOS MILAGROS | E122: EMPRESAS VARIAS DE MEDELLIN S.A. E.S. P. | F122: 2016 | G122: PARQUE AMBIENTAL LA PRADERA | H122: RELLENO SANITARIO
A123: 5665 | B123: ANTIOQUIA | C123: SAN PEDRO DE URABÁ | D123: ANTIOQUIA - SAN PEDRO DE URABÁ | E123: FUTURASEO S.A. E.S.P | F123: 2016 | G123: CENTRO INDUSTRIAL DE RESIDUOS SOLIDOS DE URABA | H123: RELLENO SANITARIO
A124: 5667 | B124: ANTIOQUIA | C124: SAN RAFAEL | D124: ANTIOQUIA - SAN RAFAEL | E124: EMPRESAS PUBLICAS DE SAN RAFAEL S.A. E.S.P. | F124: 2016 | G124: RELLENO SANITARIO LOS GUAICOS | H124: RELLENO SANITARIO
A125: 5670 | B125: ANTIOQUIA | C125: SAN ROQUE | D125: ANTIOQUIA - SAN ROQUE | E125: EMPRESAS PUBLICAS DE SAN ROQUE S.A.S E.S.P. | F125: 2016 | G125: RELLENO SANITARIO PATIO BONITO | H125: RELLENO SANITARIO
A126: 5674 | B126: ANTIOQUIA | C126: SAN VICENTE FERRER | D126: ANTIOQUIA - SAN VICENTE FERRER | E126: SECRETARIA DE SERVICIOS PUBLICOS MUNICIPIO DE SAN VICENTE | F126: 2016 | G126: GRANJA EXPERIMENTAL | H126: RELLENO SANITARIO
A127: 5679 | B127: ANTIOQUIA | C127: SANTA BÁRBARA | D127: ANTIOQUIA - SANTA BÁRBARA | E127: EMPRESAS VARIAS DE MEDELLIN S.A. E.S. P. | F127: 2016 | G127: PARQUE AMBIENTAL LA PRADERA | H127: RELLENO SANITARIO
A128: 5686 | B128: ANTIOQUIA | C128: SANTA ROSA DE OSOS | D128: ANTIOQUIA - SANTA ROSA DE OSOS | E128: EMPRESAS VARIAS DE MEDELLIN S.A. E.S. P. | F128: 2016 | G128: PARQUE AMBIENTAL LA PRADERA | H128: RELLENO SANITARIO
A129: 5690 | B129: ANTIOQUIA | C129: SANTO DOMINGO | D129: ANTIOQUIA - SANTO DOMINGO | E129: EMPRESAS VARIAS DE MEDELLIN S.A. E.S. P. | F129: 2016 | G129: PARQUE AMBIENTAL LA PRADERA | H129: RELLENO SANITARIO
A130: 8137 | B130: ATLANTICO | C130: CAMPO DE LA CRUZ | D130: ATLANTICO - CAMPO DE LA CRUZ | E130: INTERASEO S.A E.S.P | F130: 2016 | G130: EL CLAVO | H130: RELLENO SANITARIO
A131: 8141 | B131: ATLANTICO | C131: CANDELARIA | D131: ATLANTICO - CANDELARIA | E131: INTERASEO S.A E.S.P | F131: 2016 | G131: EL CLAVO | H131: RELLENO SANITARIO
A132: 8296 | B132: ATLANTICO | C132: GALAPA | D132: ATLANTICO - GALAPA | E132: SOCIEDAD DE ACUEDUCTO, ALCANTARILLADO Y ASEO DE BARRANQUILLA S.A. E.S.P. | F132: 2016 | G132: PARQUE AMBIENTAL LOS POCITOS | H132: RELLENO SANITARIO
A133: 8372 | B133: ATLANTICO | C133: JUAN DE ACOSTA | D133: ATLANTICO - JUAN DE ACOSTA | E133: INTERASEO S.A E.S.P | F133: 2016 | G133: EL CLAVO | H133: RELLENO SANITARIO
A134: 8421 | B134: ATLANTICO | C134: LURUACO | D134: ATLANTICO - LURUACO | E134: CARIBE VERDE S. A. E. S. P. | F134: 2016 | G134: PARQUE AMBIENTAL LOMA DE LOS COCOS | H134: RELLENO SANITARIO
A135: 8433 | B135: ATLANTICO | C135: MALAMBO | D135: ATLANTICO - MALAMBO | E135: INTERASEO S.A E.S.P | F135: 2016 | G135: EL CLAVO | H135: RELLENO SANITARIO
A136: 8436 | B136: ATLANTICO | C136: MANATÍ | D136: ATLANTICO - MANATÍ | E136: INTERASEO S.A E.S.P | F136: 2016 | G136: EL CLAVO | H136: RELLENO SANITARIO
A137: 8520 | B137: ATLANTICO | C137: PALMAR DE VARELA | D137: ATLANTICO - PALMAR DE VARELA | E137: INTERASEO S.A E.S.P | F137: 2016 | G137: EL CLAVO | H137: RELLENO SANITARIO
A138: 8549 | B138: ATLANTICO | C138: PIOJÓ | D138: ATLANTICO - PIOJÓ | E138: INTERASEO S.A E.S.P | F138: 2016 | G138: EL CLAVO | H138: RELLENO SANITARIO
A139: 8558 | B139: ATLANTICO | C139: POLONUEVO | D139: ATLANTICO - POLONUEVO | E139: INTERASEO S.A E.S.P | F139: 2016 | G139: EL CLAVO | H139: RELLENO SANITARIO
A140: 8560 | B140: ATLANTICO | C140: PONEDERA | D140: ATLANTICO - PONEDERA | E140: INTERASEO S.A E.S.P | F140: 2016 | G140: EL CLAVO | H140: RELLENO SANITARIO
A141: 8573 | B141: ATLANTICO | C141: PUERTO COLOMBIA | D141: ATLANTICO - PUERTO COLOMBIA | E141: SOCIEDAD DE ACUEDUCTO, ALCANTARILLADO Y ASEO DE BARRANQUILLA S.A. E.S.P. | F141: 2016 | G141: PARQUE AMBIENTAL LOS POCITOS | H141: RELLENO SANITARIO
A142: 8606 | B142: ATLANTICO | C142: REPELÓN | D142: ATLANTICO - REPELÓN | E142: INTERASEO S.A E.S.P | F142: 2016 | G142: EL CLAVO | H142: RELLENO SANITARIO
A143: 8634 | B143: ATLANTICO | C143: SABANAGRANDE | D143: ATLANTICO - SABANAGRANDE | E143: INTERASEO S.A E.S.P | F143: 2016 | G143: EL CLAVO | H143: RELLENO SANITARIO
A144: 8638 | B144: ATLANTICO | C144: SABANALARGA | D144: ATLANTICO - SABANALARGA | E144: SOCIEDAD DE ACUEDUCTO, ALCANTARILLADO Y ASEO DE BARRANQUILLA S.A. E.S.P. | F144: 2016 | G144: PARQUE AMBIENTAL LOS POCITOS | H144: RELLENO SANITARIO
A145: 8675 | B145: ATLANTICO | C145: SANTA LUCÍA | D145: ATLANTICO - SANTA LUCÍA | E145: INTERASEO S.A E.S.P | F145: 2016 | G145: EL CLAVO | H145: RELLENO SANITARIO
A146: 8685 | B146: ATLANTICO | C146: SANTO TOMÁS | D146: ATLANTICO - SANTO TOMÁS | E146: INTERASEO S.A E.S.P | F146: 2016 | G146: EL CLAVO | H146: RELLENO SANITARIO
A147: 8758 | B147: ATLANTICO | C147: SOLEDAD | D147: ATLANTICO - SOLEDAD | E147: INTERASEO S.A E.S.P | F147: 2016 | G147: EL CLAVO | H147: RELLENO SANITARIO
A148: 8770 | B148: ATLANTICO | C148: SUAN | D148: ATLANTICO - SUAN | E148: INTERASEO S.A E.S.P | F148: 2016 | G148: EL CLAVO | H148: RELLENO SANITARIO
A149: 8832 | B149: ATLANTICO | C149: TUBARÁ | D149: ATLANTICO - TUBARÁ | E149: INTERASEO S.A E.S.P | F149: 2016 | G149: EL CLAVO | H149: RELLENO SANITARIO
A150: 8849 | B150: ATLANTICO | C150: USIACURÍ | D150: ATLANTICO - USIACURÍ | E150: INTERASEO S.A E.S.P | F150: 2016 | G150: EL CLAVO | H150: RELLENO SANITARIO
A151: 11001 | B151: BOGOTA, D.C. | C151: BOGOTÁ, D.C. | D151: BOGOTA, D.C. - BOGOTÁ, D.C. | E151: CENTRO DE GERENCIAMIENTO DE RESIDUOS DOÑA JUANA S.A. E.S.P. | F151: 2016 | G151: RELLENO SANITARIO DOÑA JUANA | H151: RELLENO SANITARIO
A152: 13001 | B152: BOLIVAR | C152: CARTAGENA DE INDIAS DE INDIAS | D152: BOLIVAR - CARTAGENA DE INDIAS DE INDIAS | E152: CARIBE VERDE S. A. E. S. P. | F152: 2016 | G152: PARQUE AMBIENTAL LOMA DE LOS COCOS | H152: RELLENO SANITARIO
A153: 88001 | B153: ARCHIPIELAGO DE SAN ANDRES, PROVIDENCIA Y SANTA CATALINA | C153: SAN ANDRÉS | D153: ARCHIPIELAGO DE SAN ANDRES, PROVIDENCIA Y SANTA CATALINA - SAN ANDRÉS | E153: SECRETARIA DE SERVICIOS PUBLICOS Y MEDIO AMBIENTE | F153: 2016 | G153: MAGIC GARDEN | H153: RELLENO SANITARIO
A154: 88564 | B154: ARCHIPIELAGO DE SAN ANDRES, PROVIDENCIA Y SANTA CATALINA | C154: PROVIDENCIA | D154: ARCHIPIELAGO DE SAN ANDRES, PROVIDENCIA Y SANTA CATALINA - PROVIDENCIA | E154: ND | F154: 2016 | G154: ND | H154: ND
A155: 13433 | B155: BOLIVAR | C155: MAHATES | D155: BOLIVAR - MAHATES | E155: ND | F155: 2016 | G155: ND | H155: ND
A156: 13440 | B156: BOLIVAR | C156: MARGARITA | D156: BOLIVAR - MARGARITA | E156: MUNICIPIO DE MARGARITA | F156: 2016 | G156: CELDA | H156: CELDA DE CONTINGENCIA
A157: 13442 | B157: BOLIVAR | C157: MARÍA LA BAJA | D157: BOLIVAR - MARÍA LA BAJA | E157: CARIBE VERDE S. A. E. S. P. | F157: 2016 | G157: PARQUE AMBIENTAL LOMA DE LOS COCOS | H157: RELLENO SANITARIO
A158: 13458 | B158: BOLIVAR | C158: MONTECRISTO | D158: BOLIVAR - MONTECRISTO | E158: ND | F158: 2016 | G158: ND | H158: ND
A159: 13468 | B159: BOLIVAR | C159: MOMPÓS | D159: BOLIVAR - MOMPÓS | E159: ALCALDIA SANTA CRUZ DE MOMPOX | F159: 2016 | G159: LA MONTA | H159: BOTADERO A CIELO ABIERTO
A160: 13473 | B160: BOLIVAR | C160: MORALES | D160: BOLIVAR - MORALES | E160: EMPRESA DE SERVICIOS PUBLICOS DE MORALES | F160: 2016 | G160: MORA | H160: BOTADERO A CIELO ABIERTO
A161: 13549 | B161: BOLIVAR | C161: PINILLOS | D161: BOLIVAR - PINILLOS | E161: ND | F161: 2016 | G161: ND | H161: ND
A162: 13580 | B162: BOLIVAR | C162: REGIDOR | D162: BOLIVAR - REGIDOR | E162: ND | F162: 2016 | G162: ND | H162: ND
A163: 13600 | B163: BOLIVAR | C163: RÍO VIEJO | D163: BOLIVAR - RÍO VIEJO | E163: EMPRESA DE SERVICOS PUBLICOS DOMICILIARIO DE RIOVIEJO SA ESP | F163: 2016 | G163: BOTADERO A CIELO ABIERTO | H163: BOTADERO A CIELO ABIERTO
A164: 13620 | B164: BOLIVAR | C164: SAN CRISTÓBAL | D164: BOLIVAR - SAN CRISTÓBAL | E164: ND | F164: 2016 | G164: ND | H164: ND
A165: 13647 | B165: BOLIVAR | C165: SAN ESTANISLAO | D165: BOLIVAR - SAN ESTANISLAO | E165: ND | F165: 2016 | G165: ND | H165: ND
A166: 13650 | B166: BOLIVAR | C166: SAN FERNANDO | D166: BOLIVAR - SAN FERNANDO | E166: EMPRESA MUNICIPAL DE SERVICIOS PUBLICOS EMPOSAN E.S.P. | F166: 2016 | G166: GUATIZO | H166: BOTADERO A CIELO ABIERTO
A167: 13654 | B167: BOLIVAR | C167: SAN JACINTO | D167: BOLIVAR - SAN JACINTO | E167: ND | F167: 2016 | G167: ND | H167: ND
A168: 13655 | B168: BOLIVAR | C168: SAN JACINTO DEL CAUCA | D168: BOLIVAR - SAN JACINTO DEL CAUCA | E168: AGUAS DE SAN JACINTO DEL CAUCA SA ESP | F168: 2016 | G168: LOTE | H168: ENTERRAMIENTO
A169: 13006 | B169: BOLIVAR | C169: ACHÍ | D169: BOLIVAR - ACHÍ | E169: ND | F169: 2016 | G169: ND | H169: ND
A170: 13030 | B170: BOLIVAR | C170: ALTOS DEL ROSARIO | D170: BOLIVAR - ALTOS DEL ROSARIO | E170: ADMINISTRACION PUBLICA COOPERATIVA DE SERVICIOS PUBLICOS DE ALTOS DEL ROSARIO | F170: 2016 | G170: BOTADERO | H170: BOTADERO A CIELO ABIERTO
A171: 13042 | B171: BOLIVAR | C171: ARENAL | D171: BOLIVAR - ARENAL | E171: UNIDAD DE SERVICIOS PUBLICOS DE ACUEDUCTO Y ASEO DE ARENAL | F171: 2016 | G171: BASURAL | H171: BOTADERO A CIELO ABIERTO
A172: 13052 | B172: BOLIVAR | C172: ARJONA | D172: BOLIVAR - ARJONA | E172: CARIBE VERDE S. A. E. S. P. | F172: 2016 | G172: PARQUE AMBIENTAL LOMA DE LOS COCOS | H172: RELLENO SANITARIO
A173: 13062 | B173: BOLIVAR | C173: ARROYOHONDO | D173: BOLIVAR - ARROYOHONDO | E173: ND | F173: 2016 | G173: ND | H173: ND
A174: 13074 | B174: BOLIVAR | C174: BARRANCO DE LOBA | D174: BOLIVAR - BARRANCO DE LOBA | E174: ND | F174: 2016 | G174: ND | H174: ND
A175: 13140 | B175: BOLIVAR | C175: CALAMAR | D175: BOLIVAR - CALAMAR | E175: ND | F175: 2016 | G175: ND | H175: ND
A176: 13160 | B176: BOLIVAR | C176: CANTAGALLO | D176: BOLIVAR - CANTAGALLO | E176: ASEO URBANO S.A.S. E.S.P. | F176: 2016 | G176: PARQUE TECNOLOGICO AMBIENTAL LAS BATEAS | H176: RELLENO SANITARIO
A177: 13188 | B177: BOLIVAR | C177: CICUCO | D177: BOLIVAR - CICUCO | E177: NA | F177: 2016 | G177: SALIDA TALIGUA | H177: ENTERRAMIENTO
A178: 13212 | B178: BOLIVAR | C178: CÓRDOBA | D178: BOLIVAR - CÓRDOBA | E178: ND | F178: 2016 | G178: ND | H178: ND
A179: 13222 | B179: BOLIVAR | C179: CLEMENCIA | D179: BOLIVAR - CLEMENCIA | E179: CARIBE VERDE S. A. E. S. P. | F179: 2016 | G179: PARQUE AMBIENTAL LOMA DE LOS COCOS | H179: RELLENO SANITARIO
A180: 13244 | B180: BOLIVAR | C180: EL CARMEN DE BOLÍVAR | D180: BOLIVAR - EL CARMEN DE BOLÍVAR | E180: SERVIASEO S.A. E.S.P. | F180: 2016 | G180: LA CANDELARIA | H180: RELLENO SANITARIO
A181: 13248 | B181: BOLIVAR | C181: EL GUAMO | D181: BOLIVAR - EL GUAMO | E181: ND | F181: 2016 | G181: ND | H181: ND
A182: 13268 | B182: BOLIVAR | C182: EL PEÑÓN | D182: BOLIVAR - EL PEÑÓN | E182: ADMINISTRACION PUBLICA COOPERATIVA DEL MUNICIPIO DE EL PEÑON | F182: 2016 | G182: BOTADERO A CIELO ABIERTO | H182: BOTADERO A CIELO ABIERTO
A183: 13300 | B183: BOLIVAR | C183: HATILLO DE LOBA | D183: BOLIVAR - HATILLO DE LOBA | E183: COOPERATIVA DE SERVICIOS PUBLICOS DE HATILLO DE LOBA | F183: 2016 | G183: CELDA | H183: CELDA TRANSITORIA
A184: 13430 | B184: BOLIVAR | C184: MAGANGUÉ | D184: BOLIVAR - MAGANGUÉ | E184: SERVIASEO S.A. E.S.P. | F184: 2016 | G184: LA CANDELARIA | H184: RELLENO SANITARIO
A185: 15180 | B185: BOYACA | C185: CHISCAS | D185: BOYACA - CHISCAS | E185: COMPAÑIA DE SERVICIOS PUBLICOS DE SOGAMOSO S.A. E.S.P. | F185: 2016 | G185: TERRAZAS DEL PORVENIR | H185: RELLENO SANITARIO
A186: 15183 | B186: BOYACA | C186: CHITA | D186: BOYACA - CHITA | E186: COMPAÑIA DE SERVICIOS PUBLICOS DE SOGAMOSO S.A. E.S.P. | F186: 2016 | G186: TERRAZAS DEL PORVENIR | H186: RELLENO SANITARIO
A187: 15185 | B187: BOYACA | C187: CHITARAQUE | D187: BOYACA - CHITARAQUE | E187: SERVIGENERALES CIUDAD DE TUNJA S.A. E.S.P. | F187: 2016 | G187: RELLENO SANITARIO PIRGUA | H187: RELLENO SANITARIO
A188: 15187 | B188: BOYACA | C188: CHIVATÁ | D188: BOYACA - CHIVATÁ | E188: SERVIGENERALES CIUDAD DE TUNJA S.A. E.S.P. | F188: 2016 | G188: RELLENO SANITARIO PIRGUA | H188: RELLENO SANITARIO
A189: 15189 | B189: BOYACA | C189: CIÉNEGA | D189: BOYACA - CIÉNEGA | E189: SERVIGENERALES CIUDAD DE TUNJA S.A. E.S.P. | F189: 2016 | G189: RELLENO SANITARIO PIRGUA | H189: RELLENO SANITARIO
A190: 15204 | B190: BOYACA | C190: CÓMBITA | D190: BOYACA - CÓMBITA | E190: SERVIGENERALES CIUDAD DE TUNJA S.A. E.S.P. | F190: 2016 | G190: RELLENO SANITARIO PIRGUA | H190: RELLENO SANITARIO
A191: 15212 | B191: BOYACA | C191: COPER | D191: BOYACA - COPER | E191: EMPRESA DE SERVICIOS PUBLICOS DE AGUA POTABLE , ALCANTARILLADO Y ASEO DEL MUNIIPIO DE COPER | F191: 2016 | G191: EL VIVERO | H191: CELDA TRANSITORIA
A192: 15215 | B192: BOYACA | C192: CORRALES | D192: BOYACA - CORRALES | E192: COMPAÑIA DE SERVICIOS PUBLICOS DE SOGAMOSO S.A. E.S.P. | F192: 2016 | G192: TERRAZAS DEL PORVENIR | H192: RELLENO SANITARIO
A193: 15218 | B193: BOYACA | C193: COVARACHÍA | D193: BOYACA - COVARACHÍA | E193: COMPAÑIA DE SERVICIOS PUBLICOS DE SOGAMOSO S.A. E.S.P. | F193: 2016 | G193: TERRAZAS DEL PORVENIR | H193: RELLENO SANITARIO
A194: 15223 | B194: BOYACA | C194: CUBARÁ | D194: BOYACA - CUBARÁ | E194: EMPRESA DE ASEO DE ARAUCA S.A. ESP | F194: 2016 | G194: RELLENO SANITARIO LAS GARZAS | H194: RELLENO SANITARIO
A195: 15224 | B195: BOYACA | C195: CUCAITA | D195: BOYACA - CUCAITA | E195: SERVIGENERALES CIUDAD DE TUNJA S.A. E.S.P. | F195: 2016 | G195: RELLENO SANITARIO PIRGUA | H195: RELLENO SANITARIO
A196: 15226 | B196: BOYACA | C196: CUÍTIVA | D196: BOYACA - CUÍTIVA | E196: COMPAÑIA DE SERVICIOS PUBLICOS DE SOGAMOSO S.A. E.S.P. | F196: 2016 | G196: TERRAZAS DEL PORVENIR | H196: RELLENO SANITARIO
A197: 15232 | B197: BOYACA | C197: CHÍQUIZA | D197: BOYACA - CHÍQUIZA | E197: SERVIGENERALES CIUDAD DE TUNJA S.A. E.S.P. | F197: 2016 | G197: RELLENO SANITARIO PIRGUA | H197: RELLENO SANITARIO
A198: 15236 | B198: BOYACA | C198: CHIVOR | D198: BOYACA - CHIVOR | E198: EMPRESAS PUBLICAS DE GARAGOA S.A. E.S.P | F198: 2016 | G198: PLANTA REGIONAL DE RESIDUOS SOLIDOS | H198: RELLENO SANITARIO
A199: 15238 | B199: BOYACA | C199: DUITAMA | D199: BOYACA - DUITAMA | E199: COMPAÑIA DE SERVICIOS PUBLICOS DE SOGAMOSO S.A. E.S.P. | F199: 2016 | G199: TERRAZAS DEL PORVENIR | H199: RELLENO SANITARIO
A200: 15244 | B200: BOYACA | C200: EL COCUY | D200: BOYACA - EL COCUY | E200: COMPAÑIA DE SERVICIOS PUBLICOS DE SOGAMOSO S.A. E.S.P. | F200: 2016 | G200: TERRAZAS DEL PORVENIR | H200: RELLENO SANITARIO
... 928 more rows

Sheet EFINA-1 (hidden)
B1: Evaluación financiera del proyecto WTE
B2: Alternativa 1. Gen. Energía Eléctrica
B3: g
B4: WTE Degradación anaeróbica
B5: Parámetros | F5: SI
B6: Concepto | C6: Unidad | D6: Valor | F6: NO
B7: Tasa de descuento | C7: % | D7: 0.118 | E7: Tasa de retorno para la actividad de distribución de energía eléctrica -CREG
B8: Porcentaje de inversión inicial con fuente publica | C8: % | D8: =+'Reporte viabilidad'!Q22 -> 0
B9: Años de vida util | C9: # | D9: =20 -> 20
B10: % Costos de gerenciamiento sobre Costos de Op. | D10: 0.03
B11: Beneficio tributario (Impuesto de Renta) | D11: SI
B12: Impuesto de Renta | C12: % | D12: 0.35
B14: (Miles de $)
B15: FLUJO DE CAJA
B16: Concepto | C16: Unidad | D16: Año 0 | E16: Año 1 | F16: Año 2 | G16: Año 3 | H16: Año 4 | I16: Año 5 | J16: Año 6 | K16: Año 7 | L16: Año 8 | M16: Año 9 | N16: Año 10 | O16: Año 11 | P16: Año 12 | Q16: Año 13 | R16: Año 14 | S16: Año 15 | T16: Año 16 | U16: Año 17 | V16: Año 18 | W16: Año 19 | X16: Año 20
B17: Ingresos | C17: $/año
B18: Por venta de energía eléctrica | C18: $/año | E18: =+'6'!E33 -> 0 | F18: =+'6'!F33 -> 0 | G18: =+'6'!G33 -> 0 | H18: =+'6'!H33 -> 0 | I18: =+'6'!I33 -> 0 | J18: =+'6'!J33 -> 0 | K18: =+'6'!K33 -> 0 | L18: =+'6'!L33 -> 0 | M18: =+'6'!M33 -> 0 | N18: =+'6'!N33 -> 0 | O18: =+'6'!O33 -> 0 | P18: =+'6'!P33 -> 0 | Q18: =+'6'!Q33 -> 0 | R18: =+'6'!R33 -> 0 | S18: =+'6'!S33 -> 0 | T18: =+'6'!T33 -> 0 | U18: =+'6'!U33 -> 0 | V18: =+'6'!V33 -> 0 | W18: =+'6'!W33 -> 0 | X18: =+'6'!X33 -> 0
B19: Por componente de disposición final | C19: $/año | E19: =+'6'!E28+'6'!E29+'6'!E30 -> 0 | F19: =+'6'!F28+'6'!F29+'6'!F30 -> 0 | G19: =+'6'!G28+'6'!G29+'6'!G30 -> 0 | H19: =+'6'!H28+'6'!H29+'6'!H30 -> 0 | I19: =+'6'!I28+'6'!I29+'6'!I30 -> 0 | J19: =+'6'!J28+'6'!J29+'6'!J30 -> 0 | K19: =+'6'!K28+'6'!K29+'6'!K30 -> 0 | L19: =+'6'!L28+'6'!L29+'6'!L30 -> 0 | M19: =+'6'!M28+'6'!M29+'6'!M30 -> 0 | N19: =+'6'!N28+'6'!N29+'6'!N30 -> 0 | O19: =+'6'!O28+'6'!O29+'6'!O30 -> 0 | P19: =+'6'!P28+'6'!P29+'6'!P30 -> 0 | Q19: =+'6'!Q28+'6'!Q29+'6'!Q30 -> 0 | R19: =+'6'!R28+'6'!R29+'6'!R30 -> 0 | S19: =+'6'!S28+'6'!S29+'6'!S30 -> 0 | T19: =+'6'!T28+'6'!T29+'6'!T30 -> 0 | U19: =+'6'!U28+'6'!U29+'6'!U30 -> 0 | V19: =+'6'!V28+'6'!V29+'6'!V30 -> 0 | W19: =+'6'!W28+'6'!W29+'6'!W30 -> 0 | X19: =+'6'!X28+'6'!X29+'6'!X30 -> 0
B20: Otros ingresos (Bonos de Carbono) | C20: $/año | E20: =+'6'!E35 -> 0 | F20: =+'6'!F35 -> 0 | G20: =+'6'!G35 -> 0 | H20: =+'6'!H35 -> 0 | I20: =+'6'!I35 -> 0 | J20: =+'6'!J35 -> 0 | K20: =+'6'!K35 -> 0 | L20: =+'6'!L35 -> 0 | M20: =+'6'!M35 -> 0 | N20: =+'6'!N35 -> 0 | O20: =+'6'!O35 -> 0 | P20: =+'6'!P35 -> 0 | Q20: =+'6'!Q35 -> 0 | R20: =+'6'!R35 -> 0 | S20: =+'6'!S35 -> 0 | T20: =+'6'!T35 -> 0 | U20: =+'6'!U35 -> 0 | V20: =+'6'!V35 -> 0 | W20: =+'6'!W35 -> 0 | X20: =+'6'!X35 -> 0
B21: Ingreso de los sub productos comercializables | C21: $/año | E21: =+'6'!E32+'6'!E31 -> 0 | F21: =+'6'!F32+'6'!F31 -> 0 | G21: =+'6'!G32+'6'!G31 -> 0 | H21: =+'6'!H32+'6'!H31 -> 0 | I21: =+'6'!I32+'6'!I31 -> 0 | J21: =+'6'!J32+'6'!J31 -> 0 | K21: =+'6'!K32+'6'!K31 -> 0 | L21: =+'6'!L32+'6'!L31 -> 0 | M21: =+'6'!M32+'6'!M31 -> 0 | N21: =+'6'!N32+'6'!N31 -> 0 | O21: =+'6'!O32+'6'!O31 -> 0 | P21: =+'6'!P32+'6'!P31 -> 0 | Q21: =+'6'!Q32+'6'!Q31 -> 0 | R21: =+'6'!R32+'6'!R31 -> 0 | S21: =+'6'!S32+'6'!S31 -> 0 | T21: =+'6'!T32+'6'!T31 -> 0 | U21: =+'6'!U32+'6'!U31 -> 0 | V21: =+'6'!V32+'6'!V31 -> 0 | W21: =+'6'!W32+'6'!W31 -> 0 | X21: =+'6'!X32+'6'!X31 -> 0
B22: Mejorador de Suelos (COMPOST) | E22: =+'6'!E34 -> 0 | F22: =+'6'!F34 -> 0 | G22: =+'6'!G34 -> 0 | H22: =+'6'!H34 -> 0 | I22: =+'6'!I34 -> 0 | J22: =+'6'!J34 -> 0 | K22: =+'6'!K34 -> 0 | L22: =+'6'!L34 -> 0 | M22: =+'6'!M34 -> 0 | N22: =+'6'!N34 -> 0 | O22: =+'6'!O34 -> 0 | P22: =+'6'!P34 -> 0 | Q22: =+'6'!Q34 -> 0 | R22: =+'6'!R34 -> 0 | S22: =+'6'!S34 -> 0 | T22: =+'6'!T34 -> 0 | U22: =+'6'!U34 -> 0 | V22: =+'6'!V34 -> 0 | W22: =+'6'!W34 -> 0 | X22: =+'6'!X34 -> 0
B23: Total Ingresos | C23: $/año | D23: =+SUM(D19:D21) -> 0 | E23: =+SUM(E18:E22) -> 0 | F23: =+SUM(F18:F22) -> 0 | G23: 0 | H23: 0 | I23: 0 | J23: 0 | K23: 0 | L23: 0 | M23: 0 | N23: 0 | O23: 0 | P23: 0 | Q23: 0 | R23: 0 | S23: 0 | T23: 0 | U23: 0 | V23: 0 | W23: 0 | X23: 0
C24: $/año
B25: Costos de Inversión | C25: $/año
B26: Estudios y Diseños | C26: $/año | D26: =+'6'!D7 -> 0
B27: Predio | C27: $/año | D27: =+'6'!D8 -> 0
B28: Obras Civiles Preliminares | C28: $/año | D28: =+'6'!D11 -> 0
B29: Obras generalaes | C29: $/año | D29: =+'6'!D12 -> 0
B30: Edificaciones | C30: $/año | D30: =+'6'!D13 -> 0
B31: Equipos pretratamiento de residuos | C31: $/año | D31: =+'6'!D14 -> 0
B32: Obras para valoración energética | C32: $/año | D32: =+'6'!D16 -> 0
B33: Equipos pretratmiento otras Biomasas | C33: =+C32 -> $/año | D33: =+'6'!D15 -> 0
B34: Reposición de Equipos | D34: =+'6'!D23 -> 0 | E34: =+'6'!E23 -> 0 | F34: =+'6'!F23 -> 0 | G34: =+'6'!G23 -> 0 | H34: =+'6'!H23 -> 0 | I34: =+'6'!I23 -> 0 | J34: =+'6'!J23 -> 0 | K34: =+'6'!K23 -> 0 | L34: =+'6'!L23 -> 0 | M34: =+'6'!M23 -> 0 | N34: =+'6'!N23 -> 0 | O34: =+'6'!O23 -> 0 | P34: =+'6'!P23 -> 0 | Q34: =+'6'!Q23 -> 0 | R34: =+'6'!R23 -> 0 | S34: =+'6'!S23 -> 0 | T34: =+'6'!T23 -> 0 | U34: =+'6'!U23 -> 0 | V34: =+'6'!V23 -> 0 | W34: =+'6'!W23 -> 0 | X34: =+'6'!X23 -> 0
B35: Total Costos de Inversión | C35: $/año | D35: =+SUM(D26:D34)*(1-D8) -> 0 | E35: =+SUM(E26:E34) -> 0 | F35: 0 | G35: 0 | H35: 0 | I35: 0 | J35: 0 | K35: 0 | L35: 0 | M35: 0 | N35: 0 | O35: 0 | P35: 0 | Q35: 0 | R35: 0 | S35: 0 | T35: 0 | U35: 0 | V35: 0 | W35: 0 | X35: 0
B37: Costos de Operación y Mantenimiento | C37: $/año
B38: Aspectos generales | C38: $/año | E38: =+'6'!E19 -> 0 | F38: =+'6'!F19 -> 0 | G38: =+'6'!G19 -> 0 | H38: =+'6'!H19 -> 0 | I38: =+'6'!I19 -> 0 | J38: =+'6'!J19 -> 0 | K38: =+'6'!K19 -> 0 | L38: =+'6'!L19 -> 0 | M38: =+'6'!M19 -> 0 | N38: =+'6'!N19 -> 0 | O38: =+'6'!O19 -> 0 | P38: =+'6'!P19 -> 0 | Q38: =+'6'!Q19 -> 0 | R38: =+'6'!R19 -> 0 | S38: =+'6'!S19 -> 0 | T38: =+'6'!T19 -> 0 | U38: =+'6'!U19 -> 0 | V38: =+'6'!V19 -> 0 | W38: =+'6'!W19 -> 0 | X38: =+'6'!X19 -> 0
B39: Personal | C39: $/año | E39: =+'6'!E20 -> 0 | F39: =+'6'!F20 -> 0 | G39: =+'6'!G20 -> 0 | H39: =+'6'!H20 -> 0 | I39: =+'6'!I20 -> 0 | J39: =+'6'!J20 -> 0 | K39: =+'6'!K20 -> 0 | L39: =+'6'!L20 -> 0 | M39: =+'6'!M20 -> 0 | N39: =+'6'!N20 -> 0 | O39: =+'6'!O20 -> 0 | P39: =+'6'!P20 -> 0 | Q39: =+'6'!Q20 -> 0 | R39: =+'6'!R20 -> 0 | S39: =+'6'!S20 -> 0 | T39: =+'6'!T20 -> 0 | U39: =+'6'!U20 -> 0 | V39: =+'6'!V20 -> 0 | W39: =+'6'!W20 -> 0 | X39: =+'6'!X20 -> 0
B40: Valoración energética | C40: $/año | E40: =+'6'!E21 -> 0 | F40: =+'6'!F21 -> 0 | G40: =+'6'!G21 -> 0 | H40: =+'6'!H21 -> 0 | I40: =+'6'!I21 -> 0 | J40: =+'6'!J21 -> 0 | K40: =+'6'!K21 -> 0 | L40: =+'6'!L21 -> 0 | M40: =+'6'!M21 -> 0 | N40: =+'6'!N21 -> 0 | O40: =+'6'!O21 -> 0 | P40: =+'6'!P21 -> 0 | Q40: =+'6'!Q21 -> 0 | R40: =+'6'!R21 -> 0 | S40: =+'6'!S21 -> 0 | T40: =+'6'!T21 -> 0 | U40: =+'6'!U21 -> 0 | V40: =+'6'!V21 -> 0 | W40: =+'6'!W21 -> 0 | X40: =+'6'!X21 -> 0
B41: Varios | C41: $/año | E41: =+'6'!E22 -> 0 | F41: =+'6'!F22 -> 0 | G41: =+'6'!G22 -> 0 | H41: =+'6'!H22 -> 0 | I41: =+'6'!I22 -> 0 | J41: =+'6'!J22 -> 0 | K41: =+'6'!K22 -> 0 | L41: =+'6'!L22 -> 0 | M41: =+'6'!M22 -> 0 | N41: =+'6'!N22 -> 0 | O41: =+'6'!O22 -> 0 | P41: =+'6'!P22 -> 0 | Q41: =+'6'!Q22 -> 0 | R41: =+'6'!R22 -> 0 | S41: =+'6'!S22 -> 0 | T41: =+'6'!T22 -> 0 | U41: =+'6'!U22 -> 0 | V41: =+'6'!V22 -> 0 | W41: =+'6'!W22 -> 0 | X41: =+'6'!X22 -> 0
B42: Total Costos de Operación y Mantenimiento | C42: $/año | E42: =+SUM(E38:E41) -> 0 | F42: =+SUM(F38:F41) -> 0 | G42: 0 | H42: 0 | I42: 0 | J42: 0 | K42: 0 | L42: 0 | M42: 0 | N42: 0 | O42: 0 | P42: 0 | Q42: 0 | R42: 0 | S42: 0 | T42: 0 | U42: 0 | V42: 0 | W42: 0 | X42: 0
C43: $/año
B44: Costos de Administración | C44: $/año
B45: Gerenciamiento y de obras e inversiones | C45: $/año | E45: =+E42*$D$10 -> 0 | F45: 0 | G45: 0 | H45: 0 | I45: 0 | J45: 0 | K45: 0 | L45: 0 | M45: 0 | N45: 0 | O45: 0 | P45: 0 | Q45: 0 | R45: 0 | S45: 0 | T45: 0 | U45: 0 | V45: 0 | W45: 0 | X45: 0
B46: Seguros | C46: $/año | E46: =+D35*1% -> 0 | F46: =+E46 -> 0 | G46: =+F46 -> 0 | H46: 0 | I46: 0 | J46: 0 | K46: 0 | L46: 0 | M46: 0 | N46: 0 | O46: 0 | P46: 0 | Q46: 0 | R46: 0 | S46: 0 | T46: 0 | U46: 0 | V46: 0 | W46: 0 | X46: 0
B47: Costos Financieros | C47: $/año | E47: =+E23/1000*4 -> 0 | F47: 0 | G47: 0 | H47: 0 | I47: 0 | J47: 0 | K47: 0 | L47: 0 | M47: 0 | N47: 0 | O47: 0 | P47: 0 | Q47: 0 | R47: 0 | S47: 0 | T47: 0 | U47: 0 | V47: 0 | W47: 0 | X47: 0
B48: Total Costos Administrativos | C48: $/año | D48: =+SUM(D45:D47) -> 0 | E48: 0 | F48: 0 | G48: 0 | H48: 0 | I48: 0 | J48: 0 | K48: 0 | L48: 0 | M48: 0 | N48: 0 | O48: 0 | P48: 0 | Q48: 0 | R48: 0 | S48: 0 | T48: 0 | U48: 0 | V48: 0 | W48: 0 | X48: 0
B50: Impuestos
B51: IVA
B52: Impuesto de Renta | E52: =+IF($D$11="SI",E83*50%,E83) -> 0 | F52: =+IF($D$11="SI",F83*50%,F83) -> 0 | G52: =+IF($D$11="SI",G83*50%,G83) -> 0 | H52: =+IF($D$11="SI",H83*50%,H83) -> 0 | I52: =+IF($D$11="SI",I83*50%,I83) -> 0 | J52: =+J83 -> 0 | K52: 0 | L52: 0 | M52: 0 | N52: 0 | O52: 0 | P52: 0 | Q52: 0 | R52: 0 | S52: 0 | T52: 0 | U52: 0 | V52: 0 | W52: 0 | X52: 0
B53: Aranceles
B56: Flujo de Caja libre | D56: =+D23-D35-D42-D48-D52 -> 0 | E56: =+E23-E35-E42-E48-E52 -> 0 | F56: 0 | G56: 0 | H56: 0 | I56: 0 | J56: 0 | K56: 0 | L56: 0 | M56: 0 | N56: 0 | O56: 0 | P56: 0 | Q56: 0 | R56: 0 | S56: 0 | T56: 0 | U56: 0 | V56: 0 | W56: 0 | X56: 0
B57: Flujo de caja acumulado | D57: =+D56 -> 0 | E57: =+D57+E56 -> 0 | F57: =+E57+F56 -> 0 | G57: 0 | H57: 0 | I57: 0 | J57: 0 | K57: 0 | L57: 0 | M57: 0 | N57: 0 | O57: 0 | P57: 0 | Q57: 0 | R57: 0 | S57: 0 | T57: 0 | U57: 0 | V57: 0 | W57: 0 | X57: 0
B58: Beneficios | D58: =+D23 -> 0 | E58: 0 | F58: 0 | G58: 0 | H58: 0 | I58: 0 | J58: 0 | K58: 0 | L58: 0 | M58: 0 | N58: 0 | O58: 0 | P58: 0 | Q58: 0 | R58: 0 | S58: 0 | T58: 0 | U58: 0 | V58: 0 | W58: 0 | X58: 0
B59: Costos | D59: =+D52+D42+D35+D48 -> 0 | E59: =+E52+E42+E35+E48 -> 0 | F59: 0 | G59: 0 | H59: 0 | I59: 0 | J59: 0 | K59: 0 | L59: 0 | M59: 0 | N59: 0 | O59: 0 | P59: 0 | Q59: 0 | R59: 0 | S59: 0 | T59: 0 | U59: 0 | V59: 0 | W59: 0 | X59: 0
B61: TIR | C61: =+IRR(D56:X56) -> 
B62: VPN | C62: =+NPV($D$7,E56:X56)+D56 -> 0
B63: VPB | C63: =+NPV($D$7,E58:X58)+D58 -> 0
B64: VPC | C64: =+NPV($D$7,E59:X59)+D59 -> 0
B65: Relación B/C | C65: =+C63/C64 -> 
B66: Payback | C66: =IF(COUNTIF(D57:X57,"<0")>20,"",COUNTIF(D57:X57,"<0")) -> 0
B69: Estados de Resultados
B70: Concepto | C70: Unidad | D70: Año 0 | E70: Año 1 | F70: Año 2 | G70: Año 3 | H70: Año 4 | I70: Año 5 | J70: Año 6 | K70: Año 7 | L70: Año 8 | M70: Año 9 | N70: Año 10 | O70: Año 11 | P70: Año 12 | Q70: Año 13 | R70: Año 14 | S70: Año 15 | T70: Año 16 | U70: Año 17 | V70: Año 18 | W70: Año 19 | X70: Año 20
B71: Total Ingresos | C71: =+C20 -> $/año | D71: =+D23 -> 0 | E71: 0 | F71: 0 | G71: 0 | H71: 0 | I71: 0 | J71: 0 | K71: 0 | L71: 0 | M71: 0 | N71: 0 | O71: 0 | P71: 0 | Q71: 0 | R71: 0 | S71: 0 | T71: 0 | U71: 0 | V71: 0 | W71: 0 | X71: 0
B72: Total Costos de Operación y Mantenimiento | C72: =+C42 -> $/año | D72: 0 | E72: 0 | F72: 0 | G72: 0 | H72: 0 | I72: 0 | J72: 0 | K72: 0 | L72: 0 | M72: 0 | N72: 0 | O72: 0 | P72: 0 | Q72: 0 | R72: 0 | S72: 0 | T72: 0 | U72: 0 | V72: 0 | W72: 0 | X72: 0
B73: Utilidad Bruta | D73: =+D71-D72 -> 0 | E73: 0 | F73: 0 | G73: 0 | H73: 0 | I73: 0 | J73: 0 | K73: 0 | L73: 0 | M73: 0 | N73: 0 | O73: 0 | P73: 0 | Q73: 0 | R73: 0 | S73: 0 | T73: 0 | U73: 0 | V73: 0 | W73: 0 | X73: 0
B74: =+B48 -> Total Costos Administrativos | C74: =+C48 -> $/año | D74: =+D48 -> 0 | E74: =+E48-E47 -> 0 | F74: 0 | G74: 0 | H74: 0 | I74: 0 | J74: 0 | K74: 0 | L74: 0 | M74: 0 | N74: 0 | O74: 0 | P74: 0 | Q74: 0 | R74: 0 | S74: 0 | T74: 0 | U74: 0 | V74: 0 | W74: 0 | X74: 0
B75: EBITDA | D75: =+D73-D74 -> 0 | E75: 0 | F75: 0 | G75: 0 | H75: 0 | I75: 0 | J75: 0 | K75: 0 | L75: 0 | M75: 0 | N75: 0 | O75: 0 | P75: 0 | Q75: 0 | R75: 0 | S75: 0 | T75: 0 | U75: 0 | V75: 0 | W75: 0 | X75: 0
B76: Depreciación Inv Inicial | C76: =+C74 -> $/año | E76: =+(SUM(D28:D33))/D9 -> 0 | F76: =+E76 -> 0 | G76: =+F76 -> 0 | H76: 0 | I76: 0 | J76: 0 | K76: 0 | L76: 0 | M76: 0 | N76: 0 | O76: 0 | P76: 0 | Q76: 0 | R76: 0 | S76: 0 | T76: 0 | U76: 0 | V76: 0 | W76: 0 | X76: 0
B77: Deprecciacion Reposición | L77: =+$K$35/6 -> 0 | M77: =+$K$35/6 -> 0 | N77: 0 | O77: 0 | P77: 0 | Q77: 0 | S77: =+$R$35/6 -> 0 | T77: =+$R$35/6 -> 0 | U77: 0 | V77: 0 | W77: 0 | X77: 0
B78: UTILIDAD OPERATIVA | D78: =+D75-D76 -> 0 | E78: =+E75-E76-E77 -> 0 | F78: =+F75-F76-F77 -> 0 | G78: 0 | H78: 0 | I78: 0 | J78: 0 | K78: 0 | L78: 0 | M78: 0 | N78: 0 | O78: 0 | P78: 0 | Q78: 0 | R78: 0 | S78: 0 | T78: 0 | U78: 0 | V78: 0 | W78: 0 | X78: 0
B79: Otros Gastos No Operacionales | E79: =+E47 -> 0 | F79: 0 | G79: 0 | H79: 0 | I79: 0 | J79: 0 | K79: 0 | L79: 0 | M79: 0 | N79: 0 | O79: 0 | P79: 0 | Q79: 0 | R79: 0 | S79: 0 | T79: 0 | U79: 0 | V79: 0 | W79: 0 | X79: 0
B80: UTILIDAD ANTES DE IMPUESTOS | D80: =+D78 -> 0 | E80: =+E78-E79 -> 0 | F80: 0 | G80: 0 | H80: 0 | I80: 0 | J80: 0 | K80: 0 | L80: 0 | M80: 0 | N80: 0 | O80: 0 | P80: 0 | Q80: 0 | R80: 0 | S80: 0 | T80: 0 | U80: 0 | V80: 0 | W80: 0 | X80: 0
B81: Impuestos
B82: IVA
B83: Impuesto de Renta | D83: =+IF(D80<0,0,D80*$D$12) -> 0 | E83: 0 | F83: 0 | G83: 0 | H83: 0 | I83: 0 | J83: 0 | K83: 0 | L83: 0 | M83: 0 | N83: 0 | O83: 0 | P83: 0 | Q83: 0 | R83: 0 | S83: 0 | T83: 0 | U83: 0 | V83: 0 | W83: 0 | X83: 0
B84: UTILIDAD NETA | D84: =+D80-D83 -> 0 | E84: 0 | F84: 0 | G84: 0 | H84: 0 | I84: 0 | J84: 0 | K84: 0 | L84: 0 | M84: 0 | N84: 0 | O84: 0 | P84: 0 | Q84: 0 | R84: 0 | S84: 0 | T84: 0 | U84: 0 | V84: 0 | W84: 0 | X84: 0
B86: Analisis de Sensibilidad
B88: Tir verus precio venta energia y financiamiento publico | E88: =+C61 -> 
D89: 0
D90: 0.05
D91: 0.1
D92: 0.2
D93: 0.3
D94: 0.4
D95: 0.5
D96: 0.6
D97: 0.7
D98: 0.8
B100: Tir verus precio disposición final y precio venta de energia | D100: =+C61 ->  | E100: 33 | F100: 34 | G100: 35 | H100: 36 | I100: 37
D101: 0.12
D102: 0.14
D103: 0.16
D104: 0.18
D105: 0.2
D106: 0.22
D107: 0.24

Sheet EFINA-2 (hidden)
B1: Evaluación financiera del proyecto WTE
B2: Alternativa 1. Gen. Energía Eléctrica
B3: g
B4: WTE Incineración
B5: Parámetros | F5: SI
B6: Concepto | C6: Unidad | D6: Valor | F6: NO
B7: Tasa de descuento | C7: % | D7: 0.118 | E7: =+'EFINA-1'!E7 -> Tasa de retorno para la actividad de distribución de energía eléctrica -CREG
B8: Porcentaje de inversión inicial con fuente publica | C8: % | D8: =+'EFINA-1'!D8 -> 0
B9: Años de vida util | C9: # | D9: 20
B10: % Costos de gerenciamiento sobre Costos de Op. | D10: 0.03
B11: Beneficio tributario (Impuesto de Renta) | D11: SI
B12: Impuesto de Renta | C12: % | D12: 0.35
B14: (Miles de $)
B15: FLUJO DE CAJA
B16: Concepto | C16: Unidad | D16: Año 0 | E16: Año 1 | F16: Año 2 | G16: Año 3 | H16: Año 4 | I16: Año 5 | J16: Año 6 | K16: Año 7 | L16: Año 8 | M16: Año 9 | N16: Año 10 | O16: Año 11 | P16: Año 12 | Q16: Año 13 | R16: Año 14 | S16: Año 15 | T16: Año 16 | U16: Año 17 | V16: Año 18 | W16: Año 19 | X16: Año 20
B17: Ingresos | C17: $/año
B18: Por venta de energía eléctrica | C18: $/año | E18: =+'7'!E32 -> 0 | F18: =+'7'!F32 -> 0 | G18: =+'7'!G32 -> 0 | H18: =+'7'!H32 -> 0 | I18: =+'7'!I32 -> 0 | J18: =+'7'!J32 -> 0 | K18: =+'7'!K32 -> 0 | L18: =+'7'!L32 -> 0 | M18: =+'7'!M32 -> 0 | N18: =+'7'!N32 -> 0 | O18: =+'7'!O32 -> 0 | P18: =+'7'!P32 -> 0 | Q18: =+'7'!Q32 -> 0 | R18: =+'7'!R32 -> 0 | S18: =+'7'!S32 -> 0 | T18: =+'7'!T32 -> 0 | U18: =+'7'!U32 -> 0 | V18: =+'7'!V32 -> 0 | W18: =+'7'!W32 -> 0 | X18: =+'7'!X32 -> 0
B19: Por componente de disposición final | C19: $/año | E19: =+'7'!E28+'7'!E29 -> 0 | F19: =+'7'!F28+'7'!F29 -> 0 | G19: =+'7'!G28+'7'!G29 -> 0 | H19: =+'7'!H28+'7'!H29 -> 0 | I19: =+'7'!I28+'7'!I29 -> 0 | J19: =+'7'!J28+'7'!J29 -> 0 | K19: =+'7'!K28+'7'!K29 -> 0 | L19: =+'7'!L28+'7'!L29 -> 0 | M19: =+'7'!M28+'7'!M29 -> 0 | N19: =+'7'!N28+'7'!N29 -> 0 | O19: =+'7'!O28+'7'!O29 -> 0 | P19: =+'7'!P28+'7'!P29 -> 0 | Q19: =+'7'!Q28+'7'!Q29 -> 0 | R19: =+'7'!R28+'7'!R29 -> 0 | S19: =+'7'!S28+'7'!S29 -> 0 | T19: =+'7'!T28+'7'!T29 -> 0 | U19: =+'7'!U28+'7'!U29 -> 0 | V19: =+'7'!V28+'7'!V29 -> 0 | W19: =+'7'!W28+'7'!W29 -> 0 | X19: =+'7'!X28+'7'!X29 -> 0
B20: Otros ingresos (Bonos de Carbono) | C20: $/año | E20: =+'7'!E34 -> 0 | F20: =+'7'!F34 -> 0 | G20: =+'7'!G34 -> 0 | H20: =+'7'!H34 -> 0 | I20: =+'7'!I34 -> 0 | J20: =+'7'!J34 -> 0 | K20: =+'7'!K34 -> 0 | L20: =+'7'!L34 -> 0 | M20: =+'7'!M34 -> 0 | N20: =+'7'!N34 -> 0 | O20: =+'7'!O34 -> 0 | P20: =+'7'!P34 -> 0 | Q20: =+'7'!Q34 -> 0 | R20: =+'7'!R34 -> 0 | S20: =+'7'!S34 -> 0 | T20: =+'7'!T34 -> 0 | U20: =+'7'!U34 -> 0 | V20: =+'7'!V34 -> 0 | W20: =+'7'!W34 -> 0 | X20: =+'7'!X34 -> 0
B21: Ingreso de los sub productos comercializables | C21: $/año | E21: =+'7'!E31+'7'!E30 -> 0 | F21: =+'7'!F31+'7'!F30 -> 0 | G21: =+'7'!G31+'7'!G30 -> 0 | H21: =+'7'!H31+'7'!H30 -> 0 | I21: =+'7'!I31+'7'!I30 -> 0 | J21: =+'7'!J31+'7'!J30 -> 0 | K21: =+'7'!K31+'7'!K30 -> 0 | L21: =+'7'!L31+'7'!L30 -> 0 | M21: =+'7'!M31+'7'!M30 -> 0 | N21: =+'7'!N31+'7'!N30 -> 0 | O21: =+'7'!O31+'7'!O30 -> 0 | P21: =+'7'!P31+'7'!P30 -> 0 | Q21: =+'7'!Q31+'7'!Q30 -> 0 | R21: =+'7'!R31+'7'!R30 -> 0 | S21: =+'7'!S31+'7'!S30 -> 0 | T21: =+'7'!T31+'7'!T30 -> 0 | U21: =+'7'!U31+'7'!U30 -> 0 | V21: =+'7'!V31+'7'!V30 -> 0 | W21: =+'7'!W31+'7'!W30 -> 0 | X21: =+'7'!X31+'7'!X30 -> 0
B22: Mejorador de Suelos (COMPOST) | E22: =+'7'!E33 -> 0 | F22: =+'7'!F33 -> 0 | G22: =+'7'!G33 -> 0 | H22: =+'7'!H33 -> 0 | I22: =+'7'!I33 -> 0 | J22: =+'7'!J33 -> 0 | K22: =+'7'!K33 -> 0 | L22: =+'7'!L33 -> 0 | M22: =+'7'!M33 -> 0 | N22: =+'7'!N33 -> 0 | O22: =+'7'!O33 -> 0 | P22: =+'7'!P33 -> 0 | Q22: =+'7'!Q33 -> 0 | R22: =+'7'!R33 -> 0 | S22: =+'7'!S33 -> 0 | T22: =+'7'!T33 -> 0 | U22: =+'7'!U33 -> 0 | V22: =+'7'!V33 -> 0 | W22: =+'7'!W33 -> 0 | X22: =+'7'!X33 -> 0
B23: Energía como calor | C23: =+C21 -> $/año | E23: =+'7'!E35 -> 0 | F23: =+'7'!F35 -> 0 | G23: =+'7'!G35 -> 0 | H23: =+'7'!H35 -> 0 | I23: =+'7'!I35 -> 0 | J23: =+'7'!J35 -> 0 | K23: =+'7'!K35 -> 0 | L23: =+'7'!L35 -> 0 | M23: =+'7'!M35 -> 0 | N23: =+'7'!N35 -> 0 | O23: =+'7'!O35 -> 0 | P23: =+'7'!P35 -> 0 | Q23: =+'7'!Q35 -> 0 | R23: =+'7'!R35 -> 0 | S23: =+'7'!S35 -> 0 | T23: =+'7'!T35 -> 0 | U23: =+'7'!U35 -> 0 | V23: =+'7'!V35 -> 0 | W23: =+'7'!W35 -> 0 | X23: =+'7'!X35 -> 0
B24: Total Ingresos | C24: $/año | D24: =+SUM(D19:D21) -> 0 | E24: =+SUM(E18:E23) -> 0 | F24: =+SUM(F18:F23) -> 0 | G24: 0 | H24: 0 | I24: 0 | J24: 0 | K24: 0 | L24: 0 | M24: 0 | N24: 0 | O24: 0 | P24: 0 | Q24: 0 | R24: 0 | S24: 0 | T24: 0 | U24: 0 | V24: 0 | W24: 0 | X24: 0
C25: $/año
B26: Costos de Inversión | C26: $/año
B27: Estudios y Diseños | C27: $/año | D27: =+'7'!D7 -> 0
B28: Predio | C28: $/año | D28: =+'7'!D8 -> 0
B29: Obras Civiles Preliminares | C29: $/año | D29: =+'7'!D11 -> 0
B30: Obras generalaes | C30: $/año | D30: =+'7'!D12 -> 0
B31: Edificaciones | C31: $/año | D31: =+'7'!D13 -> 0
B32: Equipos pretratamiento de residuos | C32: $/año | D32: =+'7'!D14 -> 0
B33: Obras para valoración energética | C33: $/año | D33: =+'7'!D16 -> 0
B34: =+'7'!C15 -> Equipos pretratamiento otras biomasas | C34: $/año | D34: =+'7'!D15 -> 0
B35: Reposición de Equipos | C35: $/año | D35: =+'7'!D23 -> 0 | E35: =+'7'!E23 -> 0 | F35: =+'7'!F23 -> 0 | G35: =+'7'!G23 -> 0 | H35: =+'7'!H23 -> 0 | I35: =+'7'!I23 -> 0 | J35: =+'7'!J23 -> 0 | K35: =+'7'!K23 -> 0 | L35: =+'7'!L23 -> 0 | M35: =+'7'!M23 -> 0 | N35: =+'7'!N23 -> 0 | O35: =+'7'!O23 -> 0 | P35: =+'7'!P23 -> 0 | Q35: =+'7'!Q23 -> 0 | R35: =+'7'!R23 -> 0 | S35: =+'7'!S23 -> 0 | T35: =+'7'!T23 -> 0 | U35: =+'7'!U23 -> 0 | V35: =+'7'!V23 -> 0 | W35: =+'7'!W23 -> 0 | X35: =+'7'!X23 -> 0
B36: Total Costos de Inversión | C36: $/año | D36: =+SUM(D27:D35)*(1-D8) -> 0 | E36: =+SUM(E27:E35) -> 0 | F36: 0 | G36: 0 | H36: 0 | I36: 0 | J36: 0 | K36: 0 | L36: 0 | M36: 0 | N36: 0 | O36: 0 | P36: 0 | Q36: 0 | R36: 0 | S36: 0 | T36: 0 | U36: 0 | V36: 0 | W36: 0 | X36: 0
B38: Costos de Operación y Mantenimiento | C38: $/año
B39: Aspectos generales | C39: $/año | E39: =+'7'!E19 -> 0 | F39: =+'7'!F19 -> 0 | G39: =+'7'!G19 -> 0 | H39: =+'7'!H19 -> 0 | I39: =+'7'!I19 -> 0 | J39: =+'7'!J19 -> 0 | K39: =+'7'!K19 -> 0 | L39: =+'7'!L19 -> 0 | M39: =+'7'!M19 -> 0 | N39: =+'7'!N19 -> 0 | O39: =+'7'!O19 -> 0 | P39: =+'7'!P19 -> 0 | Q39: =+'7'!Q19 -> 0 | R39: =+'7'!R19 -> 0 | S39: =+'7'!S19 -> 0 | T39: =+'7'!T19 -> 0 | U39: =+'7'!U19 -> 0 | V39: =+'7'!V19 -> 0 | W39: =+'7'!W19 -> 0 | X39: =+'7'!X19 -> 0
B40: Personal | C40: $/año | E40: =+'7'!E20 -> 0 | F40: =+'7'!F20 -> 0 | G40: =+'7'!G20 -> 0 | H40: =+'7'!H20 -> 0 | I40: =+'7'!I20 -> 0 | J40: =+'7'!J20 -> 0 | K40: =+'7'!K20 -> 0 | L40: =+'7'!L20 -> 0 | M40: =+'7'!M20 -> 0 | N40: =+'7'!N20 -> 0 | O40: =+'7'!O20 -> 0 | P40: =+'7'!P20 -> 0 | Q40: =+'7'!Q20 -> 0 | R40: =+'7'!R20 -> 0 | S40: =+'7'!S20 -> 0 | T40: =+'7'!T20 -> 0 | U40: =+'7'!U20 -> 0 | V40: =+'7'!V20 -> 0 | W40: =+'7'!W20 -> 0 | X40: =+'7'!X20 -> 0
B41: Valoración energética | C41: $/año | E41: =+'7'!E21 -> 0 | F41: =+'7'!F21 -> 0 | G41: =+'7'!G21 -> 0 | H41: =+'7'!H21 -> 0 | I41: =+'7'!I21 -> 0 | J41: =+'7'!J21 -> 0 | K41: =+'7'!K21 -> 0 | L41: =+'7'!L21 -> 0 | M41: =+'7'!M21 -> 0 | N41: =+'7'!N21 -> 0 | O41: =+'7'!O21 -> 0 | P41: =+'7'!P21 -> 0 | Q41: =+'7'!Q21 -> 0 | R41: =+'7'!R21 -> 0 | S41: =+'7'!S21 -> 0 | T41: =+'7'!T21 -> 0 | U41: =+'7'!U21 -> 0 | V41: =+'7'!V21 -> 0 | W41: =+'7'!W21 -> 0 | X41: =+'7'!X21 -> 0
B42: Varios | C42: $/año | E42: =+'7'!E22 -> 0 | F42: =+'7'!F22 -> 0 | G42: =+'7'!G22 -> 0 | H42: =+'7'!H22 -> 0 | I42: =+'7'!I22 -> 0 | J42: =+'7'!J22 -> 0 | K42: =+'7'!K22 -> 0 | L42: =+'7'!L22 -> 0 | M42: =+'7'!M22 -> 0 | N42: =+'7'!N22 -> 0 | O42: =+'7'!O22 -> 0 | P42: =+'7'!P22 -> 0 | Q42: =+'7'!Q22 -> 0 | R42: =+'7'!R22 -> 0 | S42: =+'7'!S22 -> 0 | T42: =+'7'!T22 -> 0 | U42: =+'7'!U22 -> 0 | V42: =+'7'!V22 -> 0 | W42: =+'7'!W22 -> 0 | X42: =+'7'!X22 -> 0
B43: Total Costos de Operación y Mantenimiento | C43: $/año | E43: =+SUM(E39:E42) -> 0 | F43: =+SUM(F39:F42) -> 0 | G43: 0 | H43: 0 | I43: 0 | J43: 0 | K43: 0 | L43: 0 | M43: 0 | N43: 0 | O43: 0 | P43: 0 | Q43: 0 | R43: 0 | S43: 0 | T43: 0 | U43: 0 | V43: 0 | W43: 0 | X43: 0
C44: $/año
B45: Costos de Administración | C45: $/año
B46: Gerenciamiento y de obras e inversiones | C46: $/año | E46: =+E43*$D$10 -> 0 | F46: =+F43*$D$10 -> 0 | G46: 0 | H46: 0 | I46: 0 | J46: 0 | K46: 0 | L46: 0 | M46: 0 | N46: 0 | O46: 0 | P46: 0 | Q46: 0 | R46: 0 | S46: 0 | T46: 0 | U46: 0 | V46: 0 | W46: 0 | X46: 0
B47: Seguros | C47: $/año | E47: =+D36*1% -> 0 | F47: =+E47 -> 0 | G47: =+F47 -> 0 | H47: 0 | I47: 0 | J47: 0 | K47: 0 | L47: 0 | M47: 0 | N47: 0 | O47: 0 | P47: 0 | Q47: 0 | R47: 0 | S47: 0 | T47: 0 | U47: 0 | V47: 0 | W47: 0 | X47: 0
B48: Costos Financieros | C48: $/año | E48: =+E24/1000*4 -> 0 | F48: 0 | G48: 0 | H48: 0 | I48: 0 | J48: 0 | K48: 0 | L48: 0 | M48: 0 | N48: 0 | O48: 0 | P48: 0 | Q48: 0 | R48: 0 | S48: 0 | T48: 0 | U48: 0 | V48: 0 | W48: 0 | X48: 0
B49: Total Costos Administrativos | C49: $/año | D49: =+SUM(D46:D48) -> 0 | E49: 0 | F49: 0 | G49: 0 | H49: 0 | I49: 0 | J49: 0 | K49: 0 | L49: 0 | M49: 0 | N49: 0 | O49: 0 | P49: 0 | Q49: 0 | R49: 0 | S49: 0 | T49: 0 | U49: 0 | V49: 0 | W49: 0 | X49: 0
B51: Impuestos
B52: IVA
B53: Impuesto de Renta | E53: =+IF($D$11="SI",E84*50%,E84) -> 0 | F53: =+IF($D$11="SI",F84*50%,F84) -> 0 | G53: 0 | H53: 0 | I53: 0 | J53: =+J84 -> 0 | K53: 0 | L53: 0 | M53: 0 | N53: 0 | O53: 0 | P53: 0 | Q53: 0 | R53: 0 | S53: 0 | T53: 0 | U53: 0 | V53: 0 | W53: 0 | X53: 0
B54: Aranceles
B57: Flujo de Caja libre | D57: =+D24-D36-D43-D49-D53 -> 0 | E57: =+E24-E36-E43-E49-E53 -> 0 | F57: 0 | G57: 0 | H57: 0 | I57: 0 | J57: 0 | K57: 0 | L57: 0 | M57: 0 | N57: 0 | O57: 0 | P57: 0 | Q57: 0 | R57: 0 | S57: 0 | T57: 0 | U57: 0 | V57: 0 | W57: 0 | X57: 0
B58: Flujo de caja acumulado | D58: =+D57 -> 0 | E58: =+D58+E57 -> 0 | F58: =+E58+F57 -> 0 | G58: 0 | H58: 0 | I58: 0 | J58: 0 | K58: 0 | L58: 0 | M58: 0 | N58: 0 | O58: 0 | P58: 0 | Q58: 0 | R58: 0 | S58: 0 | T58: 0 | U58: 0 | V58: 0 | W58: 0 | X58: 0
B59: Beneficios | D59: =+D24 -> 0 | E59: 0 | F59: 0 | G59: 0 | H59: 0 | I59: 0 | J59: 0 | K59: 0 | L59: 0 | M59: 0 | N59: 0 | O59: 0 | P59: 0 | Q59: 0 | R59: 0 | S59: 0 | T59: 0 | U59: 0 | V59: 0 | W59: 0 | X59: 0
B60: Costos | D60: =+D53+D43+D36+D49 -> 0 | E60: =+E53+E43+E36+E49 -> 0 | F60: 0 | G60: 0 | H60: 0 | I60: 0 | J60: 0 | K60: 0 | L60: 0 | M60: 0 | N60: 0 | O60: 0 | P60: 0 | Q60: 0 | R60: 0 | S60: 0 | T60: 0 | U60: 0 | V60: 0 | W60: 0 | X60: 0
D61: =+D60*40% -> 0
B62: TIR | C62: =+IRR(D57:X57) -> 
B63: VPN | C63: =+NPV($D$7,E57:X57)+D57 -> 0
B64: VPB | C64: =+NPV($D$7,E59:X59)+D59 -> 0
B65: VPC | C65: =+NPV($D$7,E60:X60)+D60 -> 0
B66: Relación B/C | C66: =+C64/C65 -> 
B67: Payback | C67: =IF(COUNTIF(D58:X58,"<0")>20,"",COUNTIF(D58:X58,"<0")) -> 0
B70: Estados de Resultados
B71: Concepto | C71: Unidad | D71: Año 0 | E71: Año 1 | F71: Año 2 | G71: Año 3 | H71: Año 4 | I71: Año 5 | J71: Año 6 | K71: Año 7 | L71: Año 8 | M71: Año 9 | N71: Año 10 | O71: Año 11 | P71: Año 12 | Q71: Año 13 | R71: Año 14 | S71: Año 15 | T71: Año 16 | U71: Año 17 | V71: Año 18 | W71: Año 19 | X71: Año 20
B72: Total Ingresos | C72: =+C20 -> $/año | D72: =+D24 -> 0 | E72: 0 | F72: 0 | G72: 0 | H72: 0 | I72: 0 | J72: 0 | K72: 0 | L72: 0 | M72: 0 | N72: 0 | O72: 0 | P72: 0 | Q72: 0 | R72: 0 | S72: 0 | T72: 0 | U72: 0 | V72: 0 | W72: 0 | X72: 0
B73: Total Costos de Operación y Mantenimiento | C73: =+C43 -> $/año | D73: 0 | E73: 0 | F73: 0 | G73: 0 | H73: 0 | I73: 0 | J73: 0 | K73: 0 | L73: 0 | M73: 0 | N73: 0 | O73: 0 | P73: 0 | Q73: 0 | R73: 0 | S73: 0 | T73: 0 | U73: 0 | V73: 0 | W73: 0 | X73: 0
B74: Utilidad Bruta | D74: =+D72-D73 -> 0 | E74: 0 | F74: 0 | G74: 0 | H74: 0 | I74: 0 | J74: 0 | K74: 0 | L74: 0 | M74: 0 | N74: 0 | O74: 0 | P74: 0 | Q74: 0 | R74: 0 | S74: 0 | T74: 0 | U74: 0 | V74: 0 | W74: 0 | X74: 0
B75: =+B49 -> Total Costos Administrativos | C75: =+C49 -> $/año | D75: =+D49 -> 0 | E75: =+E49-E48 -> 0 | F75: 0 | G75: 0 | H75: 0 | I75: 0 | J75: 0 | K75: 0 | L75: 0 | M75: 0 | N75: 0 | O75: 0 | P75: 0 | Q75: 0 | R75: 0 | S75: 0 | T75: 0 | U75: 0 | V75: 0 | W75: 0 | X75: 0
B76: EBITDA | D76: =+D74-D75 -> 0 | E76: 0 | F76: 0 | G76: 0 | H76: 0 | I76: 0 | J76: 0 | K76: 0 | L76: 0 | M76: 0 | N76: 0 | O76: 0 | P76: 0 | Q76: 0 | R76: 0 | S76: 0 | T76: 0 | U76: 0 | V76: 0 | W76: 0 | X76: 0
B77: Depreciación Inv Inicial | C77: =+C75 -> $/año | E77: =+(SUM(D29:D34))/D9 -> 0 | F77: =+E77 -> 0 | G77: =+F77 -> 0 | H77: 0 | I77: 0 | J77: 0 | K77: 0 | L77: 0 | M77: 0 | N77: 0 | O77: 0 | P77: 0 | Q77: 0 | R77: 0 | S77: 0 | T77: 0 | U77: 0 | V77: 0 | W77: 0 | X77: 0
B78: Deprecciacion Reposición | L78: =+$K$36/6 -> 0 | M78: =+$K$36/6 -> 0 | N78: 0 | O78: 0 | P78: 0 | Q78: 0 | S78: =+$R$36/6 -> 0 | T78: =+$R$36/6 -> 0 | U78: 0 | V78: 0 | W78: 0 | X78: 0
B79: UTILIDAD OPERATIVA | D79: =+D76-D77 -> 0 | E79: =+E76-E77-E78 -> 0 | F79: =+F76-F77-F78 -> 0 | G79: 0 | H79: 0 | I79: 0 | J79: 0 | K79: 0 | L79: 0 | M79: 0 | N79: 0 | O79: 0 | P79: 0 | Q79: 0 | R79: 0 | S79: 0 | T79: 0 | U79: 0 | V79: 0 | W79: 0 | X79: 0
B80: Otros Gastos No Operacionales | E80: =+E48 -> 0 | F80: 0 | G80: 0 | H80: 0 | I80: 0 | J80: 0 | K80: 0 | L80: 0 | M80: 0 | N80: 0 | O80: 0 | P80: 0 | Q80: 0 | R80: 0 | S80: 0 | T80: 0 | U80: 0 | V80: 0 | W80: 0 | X80: 0
B81: UTILIDAD ANTES DE IMPUESTOS | D81: =+D79 -> 0 | E81: =+E79-E80 -> 0 | F81: 0 | G81: 0 | H81: 0 | I81: 0 | J81: 0 | K81: 0 | L81: 0 | M81: 0 | N81: 0 | O81: 0 | P81: 0 | Q81: 0 | R81: 0 | S81: 0 | T81: 0 | U81: 0 | V81: 0 | W81: 0 | X81: 0
B82: Impuestos
B83: IVA
B84: Impuesto de Renta | D84: =+IF(D81<0,0,D81*$D$12) -> 0 | E84: 0 | F84: 0 | G84: 0 | H84: 0 | I84: 0 | J84: 0 | K84: 0 | L84: 0 | M84: 0 | N84: 0 | O84: 0 | P84: 0 | Q84: 0 | R84: 0 | S84: 0 | T84: 0 | U84: 0 | V84: 0 | W84: 0 | X84: 0
B85: UTILIDAD NETA | D85: =+D81-D84 -> 0 | E85: 0 | F85: 0 | G85: 0 | H85: 0 | I85: 0 | J85: 0 | K85: 0 | L85: 0 | M85: 0 | N85: 0 | O85: 0 | P85: 0 | Q85: 0 | R85: 0 | S85: 0 | T85: 0 | U85: 0 | V85: 0 | W85: 0 | X85: 0
B87: Analisis de Sensibilidad
B89: Tir verus precio venta energia y financiamiento publico | E89: =+C62 -> 
D90: 0
D91: 0.05
D92: 0.1
D93: 0.2
D94: 0.3
D95: 0.4
D96: 0.5
D97: 0.6
D98: 0.7
D99: 0.8

Sheet EFINA-3 (hidden)
B1: Evaluación financiera del proyecto WTE
B2: Alternativa 1. Gen. Energía Eléctrica
B3: g
B4: WTE Pirolisis
B5: Parámetros | F5: SI
B6: Concepto | C6: Unidad | D6: Valor | F6: NO
B7: Tasa de descuento | C7: % | D7: 0.118
B8: Porcentaje de inversión inicial con fuente publica | C8: % | D8: ='EFINA-2'!D8 -> 0
B9: Años de vida util | C9: # | D9: 20
B10: % Costos de gerenciamiento sobre Costos de Op. | D10: 0.03
B11: Beneficio tributario (Impuesto de Renta) | D11: SI
B12: Impuesto de Renta | C12: % | D12: 0.35
B14: (Miles de $)
B15: FLUJO DE CAJA
B16: Concepto | C16: Unidad | D16: Año 0 | E16: Año 1 | F16: Año 2 | G16: Año 3 | H16: Año 4 | I16: Año 5 | J16: Año 6 | K16: Año 7 | L16: Año 8 | M16: Año 9 | N16: Año 10 | O16: Año 11 | P16: Año 12 | Q16: Año 13 | R16: Año 14 | S16: Año 15 | T16: Año 16 | U16: Año 17 | V16: Año 18 | W16: Año 19 | X16: Año 20
B17: Ingresos | C17: $/año
B18: Por venta de energía eléctrica | C18: $/año | E18: =+'8'!E32 -> 0 | F18: =+'8'!F32 -> 0 | G18: =+'8'!G32 -> 0 | H18: =+'8'!H32 -> 0 | I18: =+'8'!I32 -> 0 | J18: =+'8'!J32 -> 0 | K18: =+'8'!K32 -> 0 | L18: =+'8'!L32 -> 0 | M18: =+'8'!M32 -> 0 | N18: =+'8'!N32 -> 0 | O18: =+'8'!O32 -> 0 | P18: =+'8'!P32 -> 0 | Q18: =+'8'!Q32 -> 0 | R18: =+'8'!R32 -> 0 | S18: =+'8'!S32 -> 0 | T18: =+'8'!T32 -> 0 | U18: =+'8'!U32 -> 0 | V18: =+'8'!V32 -> 0 | W18: =+'8'!W32 -> 0 | X18: =+'8'!X32 -> 0
B19: Por componente de disposición final | C19: $/año | E19: =+'8'!E28+'8'!E29 -> 0 | F19: =+'8'!F28+'8'!F29 -> 0 | G19: =+'8'!G28+'8'!G29 -> 0 | H19: =+'8'!H28+'8'!H29 -> 0 | I19: =+'8'!I28+'8'!I29 -> 0 | J19: =+'8'!J28+'8'!J29 -> 0 | K19: =+'8'!K28+'8'!K29 -> 0 | L19: =+'8'!L28+'8'!L29 -> 0 | M19: =+'8'!M28+'8'!M29 -> 0 | N19: =+'8'!N28+'8'!N29 -> 0 | O19: =+'8'!O28+'8'!O29 -> 0 | P19: =+'8'!P28+'8'!P29 -> 0 | Q19: =+'8'!Q28+'8'!Q29 -> 0 | R19: =+'8'!R28+'8'!R29 -> 0 | S19: =+'8'!S28+'8'!S29 -> 0 | T19: =+'8'!T28+'8'!T29 -> 0 | U19: =+'8'!U28+'8'!U29 -> 0 | V19: =+'8'!V28+'8'!V29 -> 0 | W19: =+'8'!W28+'8'!W29 -> 0 | X19: =+'8'!X28+'8'!X29 -> 0
B20: Otros ingresos (Bonos de Carbono) | C20: $/año | E20: =+'8'!E34 -> 0 | F20: =+'8'!F34 -> 0 | G20: =+'8'!G34 -> 0 | H20: =+'8'!H34 -> 0 | I20: =+'8'!I34 -> 0 | J20: =+'8'!J34 -> 0 | K20: =+'8'!K34 -> 0 | L20: =+'8'!L34 -> 0 | M20: =+'8'!M34 -> 0 | N20: =+'8'!N34 -> 0 | O20: =+'8'!O34 -> 0 | P20: =+'8'!P34 -> 0 | Q20: =+'8'!Q34 -> 0 | R20: =+'8'!R34 -> 0 | S20: =+'8'!S34 -> 0 | T20: =+'8'!T34 -> 0 | U20: =+'8'!U34 -> 0 | V20: =+'8'!V34 -> 0 | W20: =+'8'!W34 -> 0 | X20: =+'8'!X34 -> 0
B21: Ingreso de los sub productos comercializables | C21: $/año | E21: =+'8'!E31+'8'!E30 -> 0 | F21: =+'8'!F31+'8'!F30 -> 0 | G21: =+'8'!G31+'8'!G30 -> 0 | H21: =+'8'!H31+'8'!H30 -> 0 | I21: =+'8'!I31+'8'!I30 -> 0 | J21: =+'8'!J31+'8'!J30 -> 0 | K21: =+'8'!K31+'8'!K30 -> 0 | L21: =+'8'!L31+'8'!L30 -> 0 | M21: =+'8'!M31+'8'!M30 -> 0 | N21: =+'8'!N31+'8'!N30 -> 0 | O21: =+'8'!O31+'8'!O30 -> 0 | P21: =+'8'!P31+'8'!P30 -> 0 | Q21: =+'8'!Q31+'8'!Q30 -> 0 | R21: =+'8'!R31+'8'!R30 -> 0 | S21: =+'8'!S31+'8'!S30 -> 0 | T21: =+'8'!T31+'8'!T30 -> 0 | U21: =+'8'!U31+'8'!U30 -> 0 | V21: =+'8'!V31+'8'!V30 -> 0 | W21: =+'8'!W31+'8'!W30 -> 0 | X21: =+'8'!X31+'8'!X30 -> 0
B22: Mejorador de Suelos (COMPOST) | E22: =+'8'!E33 -> 0 | F22: =+'8'!F33 -> 0 | G22: =+'8'!G33 -> 0 | H22: =+'8'!H33 -> 0 | I22: =+'8'!I33 -> 0 | J22: =+'8'!J33 -> 0 | K22: =+'8'!K33 -> 0 | L22: =+'8'!L33 -> 0 | M22: =+'8'!M33 -> 0 | N22: =+'8'!N33 -> 0 | O22: =+'8'!O33 -> 0 | P22: =+'8'!P33 -> 0 | Q22: =+'8'!Q33 -> 0 | R22: =+'8'!R33 -> 0 | S22: =+'8'!S33 -> 0 | T22: =+'8'!T33 -> 0 | U22: =+'8'!U33 -> 0 | V22: =+'8'!V33 -> 0 | W22: =+'8'!W33 -> 0 | X22: =+'8'!X33 -> 0
B23: =+'8'!C35 -> Energía como calor: | E23: =+'8'!E35 -> 0 | F23: =+'8'!F35 -> 0 | G23: =+'8'!G35 -> 0 | H23: =+'8'!H35 -> 0 | I23: =+'8'!I35 -> 0 | J23: =+'8'!J35 -> 0 | K23: =+'8'!K35 -> 0 | L23: =+'8'!L35 -> 0 | M23: =+'8'!M35 -> 0 | N23: =+'8'!N35 -> 0 | O23: =+'8'!O35 -> 0 | P23: =+'8'!P35 -> 0 | Q23: =+'8'!Q35 -> 0 | R23: =+'8'!R35 -> 0 | S23: =+'8'!S35 -> 0 | T23: =+'8'!T35 -> 0 | U23: =+'8'!U35 -> 0 | V23: =+'8'!V35 -> 0 | W23: =+'8'!W35 -> 0 | X23: =+'8'!X35 -> 0
B24: =+'8'!C36 -> Aceite Pirolítico: | E24: =+'8'!E36 -> 0 | F24: =+'8'!F36 -> 0 | G24: =+'8'!G36 -> 0 | H24: =+'8'!H36 -> 0 | I24: =+'8'!I36 -> 0 | J24: =+'8'!J36 -> 0 | K24: =+'8'!K36 -> 0 | L24: =+'8'!L36 -> 0 | M24: =+'8'!M36 -> 0 | N24: =+'8'!N36 -> 0 | O24: =+'8'!O36 -> 0 | P24: =+'8'!P36 -> 0 | Q24: =+'8'!Q36 -> 0 | R24: =+'8'!R36 -> 0 | S24: =+'8'!S36 -> 0 | T24: =+'8'!T36 -> 0 | U24: =+'8'!U36 -> 0 | V24: =+'8'!V36 -> 0 | W24: =+'8'!W36 -> 0 | X24: =+'8'!X36 -> 0
B25: Total Ingresos | C25: $/año | D25: =+SUM(D19:D21) -> 0 | E25: =+SUM(E18:E24) -> 0 | F25: =+SUM(F18:F24) -> 0 | G25: 0 | H25: 0 | I25: 0 | J25: 0 | K25: 0 | L25: 0 | M25: 0 | N25: 0 | O25: 0 | P25: 0 | Q25: 0 | R25: 0 | S25: 0 | T25: 0 | U25: 0 | V25: 0 | W25: 0 | X25: 0
C26: $/año
B27: Costos de Inversión | C27: $/año
B28: Estudios y Diseños | C28: $/año | D28: =+'8'!D7 -> 0
B29: Predio | C29: $/año | D29: =+'8'!D8 -> 0
B30: Obras Civiles Preliminares | C30: $/año | D30: =+'8'!D11 -> 0
B31: Obras generalaes | C31: $/año | D31: =+'8'!D12 -> 0
B32: Edificaciones | C32: $/año | D32: =+'8'!D13 -> 0
B33: Equipos pretratamiento de residuos | C33: $/año | D33: =+'8'!D14 -> 0
B34: Obras para valoración energética | C34: $/año | D34: =+'8'!D16 -> 0
B35: =+'8'!C15 -> Equipos pretratamiento otras biomasas | C35: $/año | D35: =+'8'!D15 -> 0
B36: Reposición de Equipos | C36: $/año | D36: =+'8'!D23 -> 0 | E36: =+'8'!E23 -> 0 | F36: =+'8'!F23 -> 0 | G36: =+'8'!G23 -> 0 | H36: =+'8'!H23 -> 0 | I36: =+'8'!I23 -> 0 | J36: =+'8'!J23 -> 0 | K36: =+'8'!K23 -> 0 | L36: =+'8'!L23 -> 0 | M36: =+'8'!M23 -> 0 | N36: =+'8'!N23 -> 0 | O36: =+'8'!O23 -> 0 | P36: =+'8'!P23 -> 0 | Q36: =+'8'!Q23 -> 0 | R36: =+'8'!R23 -> 0 | S36: =+'8'!S23 -> 0 | T36: =+'8'!T23 -> 0 | U36: =+'8'!U23 -> 0 | V36: =+'8'!V23 -> 0 | W36: =+'8'!W23 -> 0 | X36: =+'8'!X23 -> 0
B37: Total Costos de Inversión | C37: $/año | D37: =+SUM(D28:D36)*(1-D8) -> 0 | E37: =+SUM(E28:E36) -> 0 | F37: 0 | G37: 0 | H37: 0 | I37: 0 | J37: 0 | K37: 0 | L37: 0 | M37: 0 | N37: 0 | O37: 0 | P37: 0 | Q37: 0 | R37: 0 | S37: 0 | T37: 0 | U37: 0 | V37: 0 | W37: 0 | X37: 0
B39: Costos de Operación y Mantenimiento | C39: $/año
B40: Aspectos generales | C40: $/año | E40: =+'8'!E19 -> 0 | F40: =+'8'!F19 -> 0 | G40: =+'8'!G19 -> 0 | H40: =+'8'!H19 -> 0 | I40: =+'8'!I19 -> 0 | J40: =+'8'!J19 -> 0 | K40: =+'8'!K19 -> 0 | L40: =+'8'!L19 -> 0 | M40: =+'8'!M19 -> 0 | N40: =+'8'!N19 -> 0 | O40: =+'8'!O19 -> 0 | P40: =+'8'!P19 -> 0 | Q40: =+'8'!Q19 -> 0 | R40: =+'8'!R19 -> 0 | S40: =+'8'!S19 -> 0 | T40: =+'8'!T19 -> 0 | U40: =+'8'!U19 -> 0 | V40: =+'8'!V19 -> 0 | W40: =+'8'!W19 -> 0 | X40: =+'8'!X19 -> 0
B41: Personal | C41: $/año | E41: =+'8'!E20 -> 0 | F41: =+'8'!F20 -> 0 | G41: =+'8'!G20 -> 0 | H41: =+'8'!H20 -> 0 | I41: =+'8'!I20 -> 0 | J41: =+'8'!J20 -> 0 | K41: =+'8'!K20 -> 0 | L41: =+'8'!L20 -> 0 | M41: =+'8'!M20 -> 0 | N41: =+'8'!N20 -> 0 | O41: =+'8'!O20 -> 0 | P41: =+'8'!P20 -> 0 | Q41: =+'8'!Q20 -> 0 | R41: =+'8'!R20 -> 0 | S41: =+'8'!S20 -> 0 | T41: =+'8'!T20 -> 0 | U41: =+'8'!U20 -> 0 | V41: =+'8'!V20 -> 0 | W41: =+'8'!W20 -> 0 | X41: =+'8'!X20 -> 0
B42: Valoración energética | C42: $/año | E42: =+'8'!E21 -> 0 | F42: =+'8'!F21 -> 0 | G42: =+'8'!G21 -> 0 | H42: =+'8'!H21 -> 0 | I42: =+'8'!I21 -> 0 | J42: =+'8'!J21 -> 0 | K42: =+'8'!K21 -> 0 | L42: =+'8'!L21 -> 0 | M42: =+'8'!M21 -> 0 | N42: =+'8'!N21 -> 0 | O42: =+'8'!O21 -> 0 | P42: =+'8'!P21 -> 0 | Q42: =+'8'!Q21 -> 0 | R42: =+'8'!R21 -> 0 | S42: =+'8'!S21 -> 0 | T42: =+'8'!T21 -> 0 | U42: =+'8'!U21 -> 0 | V42: =+'8'!V21 -> 0 | W42: =+'8'!W21 -> 0 | X42: =+'8'!X21 -> 0
B43: Varios | C43: $/año | E43: =+'8'!E22 -> 0 | F43: =+'8'!F22 -> 0 | G43: =+'8'!G22 -> 0 | H43: =+'8'!H22 -> 0 | I43: =+'8'!I22 -> 0 | J43: =+'8'!J22 -> 0 | K43: =+'8'!K22 -> 0 | L43: =+'8'!L22 -> 0 | M43: =+'8'!M22 -> 0 | N43: =+'8'!N22 -> 0 | O43: =+'8'!O22 -> 0 | P43: =+'8'!P22 -> 0 | Q43: =+'8'!Q22 -> 0 | R43: =+'8'!R22 -> 0 | S43: =+'8'!S22 -> 0 | T43: =+'8'!T22 -> 0 | U43: =+'8'!U22 -> 0 | V43: =+'8'!V22 -> 0 | W43: =+'8'!W22 -> 0 | X43: =+'8'!X22 -> 0
B44: Total Costos de Operación y Mantenimiento | C44: $/año | E44: =+SUM(E40:E43) -> 0 | F44: =+SUM(F40:F43) -> 0 | G44: 0 | H44: 0 | I44: 0 | J44: 0 | K44: 0 | L44: 0 | M44: 0 | N44: 0 | O44: 0 | P44: 0 | Q44: 0 | R44: 0 | S44: 0 | T44: 0 | U44: 0 | V44: 0 | W44: 0 | X44: 0
C45: $/año
B46: Costos de Administración | C46: $/año
B47: Gerenciamiento y de obras e inversiones | C47: $/año | E47: =+E44*$D$10 -> 0 | F47: =+F44*$D$10 -> 0 | G47: 0 | H47: 0 | I47: 0 | J47: 0 | K47: 0 | L47: 0 | M47: 0 | N47: 0 | O47: 0 | P47: 0 | Q47: 0 | R47: 0 | S47: 0 | T47: 0 | U47: 0 | V47: 0 | W47: 0 | X47: 0
B48: Seguros | C48: $/año | E48: =+D37*1% -> 0 | F48: =+E48 -> 0 | G48: =+F48 -> 0 | H48: 0 | I48: 0 | J48: 0 | K48: 0 | L48: 0 | M48: 0 | N48: 0 | O48: 0 | P48: 0 | Q48: 0 | R48: 0 | S48: 0 | T48: 0 | U48: 0 | V48: 0 | W48: 0 | X48: 0
B49: Costos Financieros | C49: $/año | E49: =+E25/1000*4 -> 0 | F49: =+F25/1000*4 -> 0 | G49: 0 | H49: 0 | I49: 0 | J49: 0 | K49: 0 | L49: 0 | M49: 0 | N49: 0 | O49: 0 | P49: 0 | Q49: 0 | R49: 0 | S49: 0 | T49: 0 | U49: 0 | V49: 0 | W49: 0 | X49: 0
B50: Total Costos Administrativos | C50: $/año | D50: =+SUM(D47:D49) -> 0 | E50: 0 | F50: 0 | G50: 0 | H50: 0 | I50: 0 | J50: 0 | K50: 0 | L50: 0 | M50: 0 | N50: 0 | O50: 0 | P50: 0 | Q50: 0 | R50: 0 | S50: 0 | T50: 0 | U50: 0 | V50: 0 | W50: 0 | X50: 0
B52: Impuestos
B53: IVA
B54: Impuesto de Renta | E54: =+IF($D$11="SI",E85*50%,E85) -> 0 | F54: =+IF($D$11="SI",F85*50%,F85) -> 0 | G54: 0 | H54: 0 | I54: 0 | J54: =+J85 -> 0 | K54: 0 | L54: 0 | M54: 0 | N54: 0 | O54: 0 | P54: 0 | Q54: 0 | R54: 0 | S54: 0 | T54: 0 | U54: 0 | V54: 0 | W54: 0 | X54: 0
B55: Aranceles
B58: Flujo de Caja libre | D58: =+D25-D37-D44-D50-D54 -> 0 | E58: =+E25-E37-E44-E50-E54 -> 0 | F58: 0 | G58: 0 | H58: 0 | I58: 0 | J58: 0 | K58: 0 | L58: 0 | M58: 0 | N58: 0 | O58: 0 | P58: 0 | Q58: 0 | R58: 0 | S58: 0 | T58: 0 | U58: 0 | V58: 0 | W58: 0 | X58: 0
B59: Flujo de caja acumulado | D59: =+D58 -> 0 | E59: =+D59+E58 -> 0 | F59: =+E59+F58 -> 0 | G59: 0 | H59: 0 | I59: 0 | J59: 0 | K59: 0 | L59: 0 | M59: 0 | N59: 0 | O59: 0 | P59: 0 | Q59: 0 | R59: 0 | S59: 0 | T59: 0 | U59: 0 | V59: 0 | W59: 0 | X59: 0
B60: Beneficios | D60: =+D25 -> 0 | E60: 0 | F60: 0 | G60: 0 | H60: 0 | I60: 0 | J60: 0 | K60: 0 | L60: 0 | M60: 0 | N60: 0 | O60: 0 | P60: 0 | Q60: 0 | R60: 0 | S60: 0 | T60: 0 | U60: 0 | V60: 0 | W60: 0 | X60: 0
B61: Costos | D61: =+D54+D44+D37+D50 -> 0 | E61: =+E54+E44+E37+E50 -> 0 | F61: 0 | G61: 0 | H61: 0 | I61: 0 | J61: 0 | K61: 0 | L61: 0 | M61: 0 | N61: 0 | O61: 0 | P61: 0 | Q61: 0 | R61: 0 | S61: 0 | T61: 0 | U61: 0 | V61: 0 | W61: 0 | X61: 0
D62: =+D61*57% -> 0
B63: TIR | C63: =+IRR(D58:X58) -> 
B64: VPN | C64: =+NPV($D$7,E58:X58)+D58 -> 0
B65: VPB | C65: =+NPV($D$7,E60:X60)+D60 -> 0
B66: VPC | C66: =+NPV($D$7,E61:X61)+D61 -> 0
B67: Relación B/C | C67: =+C65/C66 -> 
B68: Payback | C68: =IF(COUNTIF(D59:X59,"<0")>20,"",COUNTIF(D59:X59,"<0")) -> 0
B71: Estados de Resultados
B72: Concepto | C72: Unidad | D72: Año 0 | E72: Año 1 | F72: Año 2 | G72: Año 3 | H72: Año 4 | I72: Año 5 | J72: Año 6 | K72: Año 7 | L72: Año 8 | M72: Año 9 | N72: Año 10 | O72: Año 11 | P72: Año 12 | Q72: Año 13 | R72: Año 14 | S72: Año 15 | T72: Año 16 | U72: Año 17 | V72: Año 18 | W72: Año 19 | X72: Año 20
B73: Total Ingresos | C73: =+C20 -> $/año | D73: =+D25 -> 0 | E73: 0 | F73: 0 | G73: 0 | H73: 0 | I73: 0 | J73: 0 | K73: 0 | L73: 0 | M73: 0 | N73: 0 | O73: 0 | P73: 0 | Q73: 0 | R73: 0 | S73: 0 | T73: 0 | U73: 0 | V73: 0 | W73: 0 | X73: 0
B74: Total Costos de Operación y Mantenimiento | C74: =+C44 -> $/año | D74: 0 | E74: 0 | F74: 0 | G74: 0 | H74: 0 | I74: 0 | J74: 0 | K74: 0 | L74: 0 | M74: 0 | N74: 0 | O74: 0 | P74: 0 | Q74: 0 | R74: 0 | S74: 0 | T74: 0 | U74: 0 | V74: 0 | W74: 0 | X74: 0
B75: Utilidad Bruta | D75: =+D73-D74 -> 0 | E75: 0 | F75: 0 | G75: 0 | H75: 0 | I75: 0 | J75: 0 | K75: 0 | L75: 0 | M75: 0 | N75: 0 | O75: 0 | P75: 0 | Q75: 0 | R75: 0 | S75: 0 | T75: 0 | U75: 0 | V75: 0 | W75: 0 | X75: 0
B76: =+B50 -> Total Costos Administrativos | C76: =+C50 -> $/año | D76: =+D50 -> 0 | E76: =+E50-E49 -> 0 | F76: 0 | G76: 0 | H76: 0 | I76: 0 | J76: 0 | K76: 0 | L76: 0 | M76: 0 | N76: 0 | O76: 0 | P76: 0 | Q76: 0 | R76: 0 | S76: 0 | T76: 0 | U76: 0 | V76: 0 | W76: 0 | X76: 0
B77: EBITDA | D77: =+D75-D76 -> 0 | E77: 0 | F77: 0 | G77: 0 | H77: 0 | I77: 0 | J77: 0 | K77: 0 | L77: 0 | M77: 0 | N77: 0 | O77: 0 | P77: 0 | Q77: 0 | R77: 0 | S77: 0 | T77: 0 | U77: 0 | V77: 0 | W77: 0 | X77: 0
B78: Depreciación Inv Inicial | C78: =+C76 -> $/año | E78: =+(SUM(D30:D35))/D9 -> 0 | F78: =+E78 -> 0 | G78: =+F78 -> 0 | H78: 0 | I78: 0 | J78: 0 | K78: 0 | L78: 0 | M78: 0 | N78: 0 | O78: 0 | P78: 0 | Q78: 0 | R78: 0 | S78: 0 | T78: 0 | U78: 0 | V78: 0 | W78: 0 | X78: 0
B79: Deprecciacion Reposición | L79: =+$K$37/6 -> 0 | M79: =+$K$37/6 -> 0 | N79: 0 | O79: 0 | P79: 0 | Q79: 0 | S79: =+$R$37/6 -> 0 | T79: =+$R$37/6 -> 0 | U79: 0 | V79: 0 | W79: 0 | X79: 0
B80: UTILIDAD OPERATIVA | D80: =+D77-D78 -> 0 | E80: =+E77-E78-E79 -> 0 | F80: =+F77-F78-F79 -> 0 | G80: 0 | H80: 0 | I80: 0 | J80: 0 | K80: 0 | L80: 0 | M80: 0 | N80: 0 | O80: 0 | P80: 0 | Q80: 0 | R80: 0 | S80: 0 | T80: 0 | U80: 0 | V80: 0 | W80: 0 | X80: 0
B81: Otros Gastos No Operacionales | E81: =+E49 -> 0 | F81: 0 | G81: 0 | H81: 0 | I81: 0 | J81: 0 | K81: 0 | L81: 0 | M81: 0 | N81: 0 | O81: 0 | P81: 0 | Q81: 0 | R81: 0 | S81: 0 | T81: 0 | U81: 0 | V81: 0 | W81: 0 | X81: 0
B82: UTILIDAD ANTES DE IMPUESTOS | D82: =+D80 -> 0 | E82: =+E80-E81 -> 0 | F82: 0 | G82: 0 | H82: 0 | I82: 0 | J82: 0 | K82: 0 | L82: 0 | M82: 0 | N82: 0 | O82: 0 | P82: 0 | Q82: 0 | R82: 0 | S82: 0 | T82: 0 | U82: 0 | V82: 0 | W82: 0 | X82: 0
B83: Impuestos
B84: IVA
B85: Impuesto de Renta | D85: =+IF(D82<0,0,D82*$D$12) -> 0 | E85: 0 | F85: 0 | G85: 0 | H85: 0 | I85: 0 | J85: 0 | K85: 0 | L85: 0 | M85: 0 | N85: 0 | O85: 0 | P85: 0 | Q85: 0 | R85: 0 | S85: 0 | T85: 0 | U85: 0 | V85: 0 | W85: 0 | X85: 0
B86: UTILIDAD NETA | D86: =+D82-D85 -> 0 | E86: 0 | F86: 0 | G86: 0 | H86: 0 | I86: 0 | J86: 0 | K86: 0 | L86: 0 | M86: 0 | N86: 0 | O86: 0 | P86: 0 | Q86: 0 | R86: 0 | S86: 0 | T86: 0 | U86: 0 | V86: 0 | W86: 0 | X86: 0
B88: Analisis de Sensibilidad
B90: Tir verus precio venta energia y financiamiento publico | E90: =+C63 -> 
D91: 0
D92: 0.05
D93: 0.1
D94: 0.2
D95: 0.3
D96: 0.4
D97: 0.5
D98: 0.6
D99: 0.7
D100: 0.8

Sheet Reporte viabilidad
B3: REPORTE DE LA VIABILIDAD TECNICA AMBIENTAL ECONOMICA Y FINANCIERA DE DE PROYECTOS REPLICABLES EN DIFERENTES SECTORES,MUNICIPIOS,REGIONES, CON DIVERSOS TIPOS DE RESIDUOS EN COLOMBIA.
B4: Datos de entrada
C6: Biomasa (sustrato) | M6: Parámetros
C8: Sector | F8: Biomasa | J8: Ton/dia | M8: INGRESOS | P8: Valor Tarifa Mil $
C9: PECUARIO | E9: Avícola | F9: Estiércol | J9: ='M1'!E27/312 -> 0 | M9: Servicio de tratamiento RSOU | Q9: =Ingresos!F8 -> 35
E10: Porcícola | F10: Estiércol | J10: ='M1'!F27/312 -> 0 | M10: Servicio de tratamiento lodos de PTAR | Q10: =Ingresos!F9 -> 20
E11: Bovino | F11: Estiércol | J11: ='M1'!G27/312 -> 0 | M11: Servicio de tratamiento otras biomasas | Q11: =Ingresos!F10 -> 10
M12: Venta de materiales plasticos | Q12: =Ingresos!F12 -> 0.1
C13: AGRICOLA | E13: Arroz | F13: Paja | J13: ='M1'!H27/312 -> 0 | M13: Venta de materiales metálicos | Q13: =Ingresos!F11 -> 0.5
E14: Banano | F14: Fruta Rechazo | J14: ='M1'!I27/312 -> 0 | M14: Venta de energía eléctrica | Q14: =Ingresos!F13 -> 0.18
E15: Café pulpa | F15: Pulpa | J15: ='M1'!J27/312 -> 0 | M15: Mejorador de suelos (digestato) | Q15: =Ingresos!F14 -> 100
E16: Café mucilago | F16: Mucilago | J16: ='M1'!K27/312 -> 0 | M16: Bonos de carbón | Q16: =Ingresos!F15 -> 15
E17: Maíz | F17: Caña | J17: ='M1'!L27/312 -> 0 | M17: Energía como calor | Q17: =Ingresos!F28 -> 0.09
E18: Palma de aceite | F18: RFF | J18: ='M1'!M27/312 -> 0 | M18: Aceite pirolítico | Q18: =Ingresos!F42 -> 1.89
E19: Plátano | F19: Fruta Rechazo | J19: ='M1'!N27/312 -> 0
E20: Caña de Azúcar | F20: Bagazo | J20: ='M1'!O27/312 -> 0 | M20: OTROS | Q20: Valor
E21: Caña panelera | F21: Bagazo | J21: ='M1'!P27/312 -> 0 | M21: Tasa de descuento | Q21: 0.118
M22: Porcentaje de inversión inicial con fuente publica | Q22: 0
C23: URBANOS | E23: RSU | F23: RSOU | J23: ='M1'!Q27/312 -> 0 | M23: Años de vida util | Q23: 20
E24: Lodos de PTAR | F24: Lodos | J24: ='M1'!R27/312 -> 0 | M24: % Costos de gerenciamiento sobre Costos de Op. | Q24: 0.03
M25: Beneficio tributario (Impuesto de Renta) | Q25: SI
M26: Impuesto de Renta | Q26: 0.35
B28: Datos de salida
C30: Reporte técnico
E32: Degradación anaeróbica | J32: Incineración | N32: Pirolisis
E33: Parametro | F33: Unidad | H33: Valor | J33: Parametro | K33: Unidad | L33: Valor | N33: Parametro | O33: Unidad | P33: Valor
E34: Capacidad de la planta | F34: Ton/dia | H34: ='Salida datos tecnicos'!D8 -> 0 | J34: Capacidad de la planta | K34: Ton/dia | L34: ='Salida datos tecnicos'!D21 -> 0 | N34: Capacidad de la planta | O34: Ton/dia | P34: ='Salida datos tecnicos'!D33 -> 0
E35: Capacidad para RSOU | F35: Ton/dia | H35: ='Salida datos tecnicos'!D9 -> 0 | J35: Capacidad para RSOU | K35: Ton/dia | L35: ='Salida datos tecnicos'!D22 -> 0 | N35: Capacidad para RSOU | O35: Ton/dia | P35: ='Salida datos tecnicos'!D34 -> 0
E36: Capacidad para otras biomasa | F36: Ton/dia | H36: ='Salida datos tecnicos'!D10 -> 0 | J36: Capacidad para otras biomasa | K36: Ton/dia | L36: ='Salida datos tecnicos'!D23 -> 0 | N36: Capacidad para otras biomasa | O36: Ton/dia | P36: ='Salida datos tecnicos'!D35 -> 0
E37: Area total de la planta | F37: Has | H37: ='Salida datos tecnicos'!D11 -> 0 | J37: Area total de la planta | K37: Has | L37: ='Salida datos tecnicos'!D24 -> 0 | N37: Area total de la planta | O37: Has | P37: ='Salida datos tecnicos'!D36 -> 0
E38: Cantidad de biogás producida | F38: m3/d | H38: ='Salida datos tecnicos'!D12 -> 0 | J38: Potencial energético | K38: Tj/año | L38: ='Salida datos tecnicos'!D25 -> 0 | N38: Potencial energético | O38: Tj/año | P38: ='Salida datos tecnicos'!D37 -> 0
E39: % metano en el Biogás | F39: % | H39: ='Salida datos tecnicos'!D13 -> 0.65 | J39: Electricidad generada | K39: kWh/año | L39: ='Salida datos tecnicos'!D26 -> 0 | N39: Electricidad generada | O39: kWh/año | P39: ='Salida datos tecnicos'!D38 -> 0
E40: Electricidad generada | F40: kWh/año | H40: ='Salida datos tecnicos'!D14 -> 0 | J40: Cantidad de cenizas y escoreas | K40: Ton/dia | L40: ='Salida datos tecnicos'!D27 -> 0 | N40: Aceite pirolítico | O40: Ton/año | P40: ='Salida datos tecnicos'!D39 -> 0
E41: Cantidad de digestato generado | F41: Ton/dia | H41: ='Salida datos tecnicos'!D15 -> 0 | J41: Bonos de carbón | K41: Ton CO2e /año | L41: ='Salida datos tecnicos'!D28 -> 0 | N41: Bonos de carbón | O41: Ton CO2e /año | P41: ='Salida datos tecnicos'!D40 -> 0
E42: Bonos de carbón | F42: Ton CO2e /año | H42: ='Salida datos tecnicos'!D16 -> 0
C44: Reporte economico financiero
F46: Concepto | M46: WTE Degradación anaeróbica | O46: WTE Incineración | P46: WTE Pirolisis
F47: Resumen Cifras (Millones de Pesos)
F48: Inversión inicial (total) | M48: =+'EFINA-1'!D35/1000 -> 0 | O48: =+'EFINA-2'!D36/1000 -> 0 | P48: =+'EFINA-3'!D37/1000 -> 0
F49: Inversion reposición (total) | M49: =+'EFINA-1'!R34*0.002 -> 0 | O49: =+'EFINA-2'!K35*0.002 -> 0 | P49: =+'EFINA-3'!K36*0.002 -> 0
F50: Costos de Operación y mantenimiento (anual) | M50: =+'EFINA-1'!P42/1000 -> 0 | O50: =+'EFINA-2'!E43/1000 -> 0 | P50: =+'EFINA-3'!E44/1000 -> 0
F51: Costos Administrativos (anual) | M51: =+'EFINA-1'!P48/1000 -> 0 | O51: =+'EFINA-2'!E49/1000 -> 0 | P51: =+'EFINA-3'!G50/1000 -> 0
F52: Ingresos (anual) | M52: =+'EFINA-1'!E23/1000 -> 0 | O52: =+'EFINA-2'!E43/1000 -> 0 | P52: =+'EFINA-3'!E25/1000 -> 0
F53: Resultados Financieros
F54: TIR | M54: =+IFERROR('EFINA-1'!C61,"NEGATIVA") -> NEGATIVA | O54: =+IFERROR('EFINA-2'!C62,"NEGATIVA") -> NEGATIVA | P54: =+IFERROR('EFINA-3'!C63,"NEGATIVA") -> NEGATIVA
F55: VPN (Mill $) | M55: =+'EFINA-1'!C62/1000 -> 0 | O55: =+'EFINA-2'!C63/1000 -> 0 | P55: =+'EFINA-3'!C64/1000 -> 0
F56: R/BC | M56: =+IFERROR('EFINA-1'!C65,"NO RECOMENDADA") -> NO RECOMENDADA | O56: =IFERROR(+'EFINA-2'!C66,"NO RECOMENDADA") -> NO RECOMENDADA | P56: =+IFERROR('EFINA-3'!C67,"NO RECOMENDADA") -> NO RECOMENDADA
F57: Payback | M57: =+'EFINA-1'!C66 -> 0 | O57: =+'EFINA-2'!C67 -> 0 | P57: =+'EFINA-3'!C68 -> 0
I60: TIR vs Financiamiento Inv inicial con recursos no reembolsables
J61: TIR
I62: Porcentaje inversión inicial | J62: WTE Degradación anaeróbica | K62: WTE Incineración | L62: WTE Pirolisis
J63: =+M54 -> NEGATIVA | K63: =+O54 -> NEGATIVA | L63: =+P54 -> NEGATIVA
I64: 0.1 | J64: NEGATIVA | K64: NEGATIVA | L64: NEGATIVA
I65: 0.1 | J65: NEGATIVA | K65: NEGATIVA | L65: NEGATIVA
I66: 0.2 | J66: NEGATIVA | K66: NEGATIVA | L66: NEGATIVA
I67: 0.3 | J67: NEGATIVA | K67: NEGATIVA | L67: NEGATIVA
I68: 0.4 | J68: NEGATIVA | K68: NEGATIVA | L68: NEGATIVA
I69: 0.5 | J69: NEGATIVA | K69: NEGATIVA | L69: NEGATIVA
I70: 0.6 | J70: NEGATIVA | K70: NEGATIVA | L70: NEGATIVA
I71: 0.7 | J71: NEGATIVA | K71: NEGATIVA | L71: NEGATIVA
I72: 0.8 | J72: NEGATIVA | K72: NEGATIVA | L72: NEGATIVA
I73: 0.9 | J73: NEGATIVA | K73: NEGATIVA | L73: NEGATIVA
C75: “La gráfica muestra el resultado de la TIR teniendo en cuenta diferentes niveles de financiamiento de la inversión inicial con recursos no reembolsables. Se recomienda utilizar 11,8% como tasa de referencia para comparar la TIR, correspondiente a la tasa de retorno para la actividad de distribución de energía eléctrica, calculada por la CREG.”

Sheet Hoja3 (hidden)
D2: Precio Venta energía ($/Kwh) | E2: Precio Disposición final ($/Ton)
E3: 33000 | F3: 34000 | G3: 35000 | H3: 36000 | I3: 37000
D4: 120 | E4: -0.0294024703 | F4: -0.01268991902 | G4: 0.000796472378 | H4: 0.01053555304 | I4: 0.01984658907
D5: 140 | E5: -0.005716579567 | F5: 0.005657076002 | G5: 0.01517547703 | H5: 0.02430160989 | I5: 0.03309635309
D6: 160 | E6: 0.01040382361 | F6: 0.01972028081 | G6: 0.02867624517 | H6: 0.03732614755 | I6: 0.04571389675
D7: 180 | E7: 0.02417765379 | F7: 0.03297662814 | G7: 0.0414923267 | H7: 0.04976446058 | I7: 0.05782573653
D8: 200 | E8: 0.03720827814 | F8: 0.04559939527 | G8: 0.05376384228 | H8: 0.06173147158 | I8: 0.06952728528
D9: 220 | E9: 0.0496514483 | F9: 0.05771544623 | G9: 0.06559549261 | H9: 0.07331457811 | I9: 0.08089222309
D10: 240 | E10: 0.06162239264 | F10: 0.06942043271 | G10: 0.077067526 | H10: 0.08458173251 | I10: 0.09197855988
D12: Precio Servicio de tratamiento otras biomasas ($ /ton) | E12: E2 | F12: E3
D13: 2000 | E13: -0.172773943
D14: 5000 | E14: -0.05219007029
D15: 7000 | E15: -0.01227600681 | F15: -0.1064078542
D16: 10000 | E16: 0.0277284883 | F16: -0.0107164511
D17: 15000 | E17: 0.07648971607 | F17: 0.06461316498
D18: 20000 | E18: 0.1205949924 | F18: 0.1232471432
D19: 25000 | E19: 0.1623915774 | F19: 0.1780189259
